Workbook

Sheet AER CF (hidden)
B1: AER CONDITIONAL FORMATTING
B4: CONDITIONAL FORMATTING MAP
F5: =INDEX(dms_CF_3.6.1, MATCH(dms_TradingName,dms_CF_TradingName))="Y" | G5: =INDEX(dms_CF_3.6.5, MATCH(dms_TradingName,dms_CF_TradingName))="Y" | H5: =INDEX(dms_CF_3.6.6, MATCH(dms_TradingName,dms_CF_TradingName))="Y" | I5: =INDEX(dms_CF_3.6.7.1, MATCH(dms_TradingName,dms_CF_TradingName))="Y" | J5: =INDEX(dms_CF_3.6.7.2, MATCH(dms_TradingName,dms_CF_TradingName))="Y" | K5: =INDEX(dms_CF_3.6.7.3, MATCH(dms_TradingName,dms_CF_TradingName))="Y" | L5: =INDEX(dms_CF_3.6.7.4, MATCH(dms_TradingName,dms_CF_TradingName))="Y" | M5: =INDEX(dms_CF_3.6.8, MATCH(dms_TradingName,dms_CF_TradingName))="Y" | N5: =INDEX(dms_CF_4.1, MATCH(dms_TradingName,dms_CF_TradingName))="Y" | O5: =INDEX(dms_CF_6.6.1, MATCH(dms_TradingName,dms_CF_TradingName))="Y" | P5: =INDEX(dms_CF_6.8, MATCH(dms_TradingName,dms_CF_TradingName))="Y" | Q5: =INDEX(dms_CF_7.12, MATCH(dms_TradingName,dms_CF_TradingName))="Y" | R5: =INDEX(dms_CF_8.1_A, MATCH(dms_TradingName,dms_CF_TradingName))="Y" | S5: =INDEX(dms_CF_8.1_B, MATCH(dms_TradingName,dms_CF_TradingName))="Y" | T5: =INDEX(dms_CF_8.1_Neg, MATCH(dms_TradingName,dms_CF_TradingName))="Y" | U5: =INDEX(dms_CF_4.4.1_Neg, MATCH(dms_TradingName,dms_CF_TradingName))="Y"
B6: dms_CF_TradingName | C6: JurisdictionList | D6: Sector | E6: Segment | F6: dms_CF_3.6.1 | G6: dms_CF_3.6.5 | H6: dms_CF_3.6.6 | I6: dms_CF_3.6.7.1 | J6: dms_CF_3.6.7.2 | K6: dms_CF_3.6.7.3 | L6: dms_CF_3.6.7.4 | M6: dms_CF_3.6.8 | N6: dms_CF_4.1 | O6: dms_CF_6.6.1 | P6: dms_CF_6.8 | Q6: dms_CF_7.12 | R6: dms_CF_8.1_A | S6: dms_CF_8.1_B | T6: dms_CF_8.1_Neg | U6: dms_CF_4.4.1 | V6: dms_CF_MAIFI_flag | W6: Spare1 | X6: Spare2
B7: ActewAGL Distribution | C7: ACT | D7: Electricity | E7: Distribution | G7: Y | I7: Y | J7: Y | K7: N | L7: Y | M7: N | N7: N | O7: N | P7: Y | Q7: Y | R7: N | S7: Y | T7: Y | U7: N | V7: N | W7: N | X7: N
B8: Ausgrid | C8: NSW | D8: Electricity | E8: Distribution | G8: Y | I8: N | J8: N | K8: N | L8: Y | M8: N | N8: N | O8: N | P8: Y | Q8: Y | R8: N | S8: Y | T8: Y | U8: N | V8: N | W8: N | X8: N
B9: AusNet (D) | C9: Vic | D9: Electricity | E9: Distribution | G9: N | I9: N | J9: N | K9: N | L9: N | M9: N | N9: Y | O9: N | P9: Y | Q9: N | R9: N | S9: N | T9: Y | U9: N | V9: N | W9: N | X9: N
B10: AusNet (T) | C10: Vic | D10: Electricity | E10: Transmission | G10: N | I10: N | J10: N | K10: N | L10: N | M10: N | N10: Y | O10: N | P10: Y | Q10: N | R10: N | S10: N | T10: Y | U10: N | V10: N | W10: N | X10: N
B11: CitiPower | C11: Vic | D11: Electricity | E11: Distribution | G11: N | I11: N | J11: N | K11: N | L11: N | M11: N | N11: Y | O11: N | P11: Y | Q11: N | R11: N | S11: N | T11: Y | U11: N | V11: N | W11: N | X11: N
B12: Directlink | C12: Qld | D12: Electricity | E12: Transmission | G12: N | I12: N | J12: N | K12: N | L12: N | M12: N | N12: Y | O12: N | P12: Y | Q12: N | R12: N | S12: Y | T12: Y | U12: N | V12: N | W12: N | X12: N
B13: ElectraNet | C13: SA | D13: Electricity | E13: Transmission | G13: N | I13: N | J13: N | K13: N | L13: N | M13: N | N13: Y | O13: N | P13: Y | Q13: N | R13: N | S13: Y | T13: Y | U13: N | V13: N | W13: N | X13: N
B14: Endeavour Energy | C14: NSW | D14: Electricity | E14: Distribution | G14: Y | I14: N | J14: N | K14: N | L14: Y | M14: N | N14: N | O14: N | P14: Y | Q14: Y | R14: N | S14: Y | T14: Y | U14: Y | V14: N | W14: N | X14: N
B15: Energex | C15: Qld | D15: Electricity | E15: Distribution | G15: Y | I15: N | J15: N | K15: N | L15: N | M15: N | N15: N | O15: N | P15: Y | Q15: Y | R15: N | S15: Y | T15: Y | U15: Y | V15: N | W15: N | X15: N
B16: Ergon Energy | C16: Qld | D16: Electricity | E16: Distribution | G16: Y | I16: N | J16: N | K16: N | L16: N | M16: N | N16: N | O16: N | P16: Y | Q16: Y | R16: N | S16: Y | T16: Y | U16: N | V16: N | W16: N | X16: N
B17: Essential Energy | C17: NSW | D17: Electricity | E17: Distribution | G17: Y | I17: N | J17: N | K17: N | L17: Y | M17: N | N17: N | O17: N | P17: Y | Q17: Y | R17: N | S17: Y | T17: Y | U17: N | V17: N | W17: N | X17: N
B18: Jemena Electricity | C18: Vic | D18: Electricity | E18: Distribution | G18: N | I18: N | J18: N | K18: N | L18: N | M18: N | N18: Y | O18: N | P18: Y | Q18: N | R18: N | S18: N | T18: Y | U18: N | V18: N | W18: N | X18: N
B19: Murraylink | C19: SA | D19: Electricity | E19: Transmission | G19: N | I19: N | J19: N | K19: N | L19: N | M19: N | N19: Y | O19: N | P19: Y | Q19: N | R19: N | S19: Y | T19: Y | U19: N | V19: N | W19: N | X19: N
B20: Power and Water | C20: NT | D20: Electricity | E20: Distribution | G20: N | I20: N | J20: Y | K20: N | L20: N | M20: Y | N20: Y | O20: Y | P20: Y | Q20: Y | R20: N | S20: Y | T20: Y | U20: N | V20: N | W20: N | X20: N
B21: Powercor Australia | C21: Vic | D21: Electricity | E21: Distribution | G21: N | I21: N | J21: N | K21: N | L21: N | M21: N | N21: Y | O21: N | P21: Y | Q21: N | R21: N | S21: N | T21: Y | U21: N | V21: N | W21: N | X21: N
B22: Powerlink | C22: Qld | D22: Electricity | E22: Transmission | G22: N | I22: N | J22: N | K22: N | L22: N | M22: N | N22: Y | O22: N | P22: Y | Q22: N | R22: N | S22: Y | T22: Y | U22: N | V22: N | W22: N | X22: N
B23: SA Power Networks | C23: SA | D23: Electricity | E23: Distribution | G23: Y | I23: N | J23: N | K23: N | L23: N | M23: N | N23: Y | O23: N | P23: Y | Q23: Y | R23: Y | S23: Y | T23: N | U23: N | V23: N | W23: N | X23: N
B24: TasNetworks (D) | C24: Tas | D24: Electricity | E24: Distribution | G24: Y | I24: N | J24: N | K24: N | L24: N | M24: N | N24: N | O24: N | P24: Y | Q24: Y | R24: N | S24: Y | T24: Y | U24: N | V24: N | W24: N | X24: N
B25: TasNetworks (T) | C25: Tas | D25: Electricity | E25: Transmission | G25: N | I25: N | J25: N | K25: N | L25: N | M25: N | N25: Y | O25: N | P25: Y | Q25: N | R25: N | S25: Y | T25: Y | U25: N | V25: N | W25: N | X25: N
B26: TransGrid | C26: NSW | D26: Electricity | E26: Transmission | G26: N | I26: N | J26: N | K26: N | L26: N | M26: N | N26: Y | O26: N | P26: Y | Q26: N | R26: N | S26: Y | T26: Y | U26: N | V26: N | W26: N | X26: N
B27: United Energy | C27: Vic | D27: Electricity | E27: Distribution | G27: N | I27: N | J27: N | K27: N | L27: N | M27: N | N27: Y | O27: N | P27: Y | Q27: N | R27: N | S27: N | T27: Y | U27: N | V27: N | W27: N | X27: N
B30: Confidential
B31: Amended
B33: Worksheet 6.2 STPIS reliability
B34: Formula | F34: Applied to:
B36: =INDEX(dms_CBD_flag,MATCH(dms_TradingName,dms_TradingName_List))="NO" | F36: $D$11,$D$17,$D$23,$D$33,$D$39,$D$45,$D$55,$D$61,$D$67,$D$77,$D$83,$D$89
B37: =INDEX(dms_Urban_flag,MATCH(dms_TradingName,dms_TradingName_List))="NO" | F37: $D$12,$D$18,$D$24,$D$56,$D$62,$D$78,$D$68,$D$84
B38: =INDEX(dms_ShortRural_flag,MATCH(dms_TradingName,dms_TradingName_List))="NO" | F38: $D$13,$D$19,$D$25,$D$57,$D$63,$D$69,$D$79,$D$85
B39: =INDEX(dms_LongRural_flag,MATCH(dms_TradingName,dms_TradingName_List))="NO" | F39: $D$14,$D$20,$D$26,$D$58,$D$64,$D$65,$D$70,$D$71,$D$80,$D$86
B40: =INDEX(dms_FeederType_5_flag,MATCH(dms_TradingName,dms_TradingName_List))="NO" | F40: $D$87,$D$81,$D$71,$D$65,$D$59,$D$49,$D$43,$D$37,$D$21,$D$15
B41: =dms_MAIFI_Flag="No" | F41: $D$55:$D$72
B44: Business & other details
B45: =(INDEX(dms_Model_Span,MATCH(dms_Model,dms_Model_List))>1)
B46: =(INDEX(dms_Model_Span,MATCH(dms_Model,dms_Model_List))=1)
B49: STYLES IN USE
C50: dms_1
C51: dms_2
C52: dms_3
C53: dms_4
C54: dms_5
C55: dms_NUM
C56: dms_NUM%
C57: dms_Row_Locked
C58: dms_Row1
C59: dms_Row2
C60: dms_T1
C61: dms_T2
C62: dms_BH
C63: dms_BY1
C64: dms_BY2
C65: dms_GH
C66: dms_GY1
C67: dms_GY2
C126: 0
C127: =IFERROR(IF(dms_Model="ARR",(MAX(0,dms_0608_LastRow-dms_0608_OffsetRows)),"not an ARR"),"0") -> not an ARR

Sheet AER NRs (hidden)
B1: AER NAMED RANGES
B3: DROP DOWN SELECTORS USED IN WORKBOOKS
B5: COVER SHEET | C5: dms_DataQuality_List | D5: dms_Confid_status_List
C6: -- select -- | D6: -- select --
C7: Actual | D7: Public
C8: Estimate | D8: Confidential
C9: Consolidated
C12: For all files either AER or business needs to be able to specify the type of submission | D12: For PTRM & RFM templates we must provide a choice in case they change their form of control - otherwise it is drawn from the business specific lookup table above.
C13: dms_SourceList | D13: dms_FormControl_Choices
C14: -- select -- | D14: Revenue cap
C15: After appeal | D15: Revenue yield
C16: Draft decision | D16: Weighted average price cap
C17: Final decision
C18: PTRM update 1
C19: PTRM update 2
C20: PTRM update 3
C21: PTRM update 4
C22: PTRM update 5
C23: PTRM update 6
C24: PTRM update 7
C25: Regulatory proposal
C26: Reporting
C27: Revised regulatory proposal
K30: This is used to create an image to insert on 6.3 STPIS sheet - not for dropdown lists.
B31: CA & RESET RINS DNSP | C31: dms_DNSP_020301_SubstationType | D31: dms_DNSP_020301_ProjectType | E31: dms_DNSP_020301_ProjectTrigger | F31: dms_DNSP_020302_ProjectType | G31: dms_DNSP_020302_ProjectTrigger | H31: dms_STPIS_Exclusion_List | I31: dms_Reason_Interruption | J31: dms_Reason_Interruption_Detailed | K31: Reason for interruption | N31: dms_N0205_AssetType
C32: Subtransmission substation | D32: New substation establishment | E32: Demand growth | F32: New line on new route - single circuit | G32: Demand growth | H32: Weather | I32: Animal | J32: Animal impact | K32: Animal | L32: Animal impact | N32: Cast Iron
C33: Zone substation | D33: Substation upgrade - capacity | E33: Voltage issues | F33: New line on new route - dual circuit | G33: Voltage issues | H33: Equipment failure | I33: Asset failure | J33: Animal nesting/burrowing, etc and other | L33: Animal nesting/burrowing, etc and other | N33: PVC
C34: Switching station | D34: Substation upgrade - voltage | E34: Reactive power issue | F34: New line on new route - other | G34: Reactive power issue | H34: Operational error | I34: Other | J34: Other | L34: Other | N34: Polyamide
C35: Other | D35: Other | E35: Fault level issues | F35: Line rebuild over existing route - single circuit | G35: Fault level issues | H35: Vegetation | I35: Overloads | J35: LV | K35: Asset failure | L35: LV | N35: High density polyethylene (80)
E36: Safety | F36: Line rebuild over existing route - dual circuit | G36: Net market benefit | H36: Animals | I36: Planned | J36: Distribution substation | L36: Distribution substation | N36: High density polyethylene (100)
E37: Environment | F37: Reconductor - Single circuit | G37: Safety | H37: Third party impacts | I37: Network business | J37: HV | L37: HV | N37: High density polyethylene (250)
E38: Other | F38: Reconductor - Dual circuit | G38: Environment | H38: Transmission failure | I38: Third party | J38: Zone substation | L38: Zone substation | N38: High density polyethylene (575)
F39: Reconductor - Other | G39: Other | H39: Load shedding | I39: Unknown | J39: Subtransmission | L39: Subtransmission | N39: Medium density polyethylene
F40: Line upgrade - raising/retensoring | H40: Inter-distributor connection failure | I40: Vegetation | J40: insert description of 'other' | K40: Other | L40: insert description of 'other' | N40: Unprotected steel
F41: Line upgrade - voltage upgrade | H41: Other | I41: Weather | J41: Network error | K41: Overloads | N41: Protected steel
F42: Line upgrade - capacity | I42: 2 - STPIS Exclusion (3.3)(a) | J42: Switching and protection error | K42: Planned | N42: Other
F43: String spare circuit | I43: 3 - STPIS Exclusion (3.3)(a) | J43: Fire | K43: Network business | L43: Network error
F44: Other | I44: 4 - STPIS Exclusion (3.3)(a) | J44: Other | L44: Switching and protection error
I45: 5 - STPIS Exclusion (3.3)(a) | J45: Dig-in | K45: Third party | L45: Fire
I46: 6 - STPIS Exclusion (3.3)(a) | J46: Unauthorised access | L46: Other
I47: 7 - STPIS Exclusion (3.3)(a) | J47: Vehicle impact | L47: Dig-in
J48: Unknown | L48: Unauthorised access
J49: Blow-in/Fall-in - NSP responsibility | L49: Vehicle impact
J50: Grow-in - NSP responsibility | K50: Unknown | L50: Unknown
J51: Blow-in/Fall-in - Other responsible party | K51: Vegetation | L51: Blow-in/Fall-in - NSP responsibility
J52: Grow-in - Other responsible party | L52: Grow-in - NSP responsibility
L53: Blow-in/Fall-in - Other responsible party
L54: Grow-in - Other responsible party
K55: Weather
K56: 2 - STPIS Exclusion (3.3)(a)
K57: 3 - STPIS Exclusion (3.3)(a)
K58: 4 - STPIS Exclusion (3.3)(a)
K59: 5 - STPIS Exclusion (3.3)(a)
K60: 6 - STPIS Exclusion (3.3)(a)
K61: 7 - STPIS Exclusion (3.3)(a)
B64: CA & RESET RINS TNSP | C64: dms_TNSP_0203_SubstationType | D64: dms_TNSP_020301_ProjectType | E64: dms_TNSP_020301_ProjectTrigger | F64: dms_TNSP_020302_ProjectType | G64: dms_TNSP_0203_ProjectTrigger
C65: Terminal station | D65: New substation establishment | E65: Demand growth | F65: New line on new route - single circuit | G65: Demand growth
C66: Switching station | D66: Capacity upgrade | E66: Voltage issues | F66: New line on new route - dual circuit | G66: Voltage issues
C67: Transmission substation | D67: Voltage upgrade | E67: Reactive power issue | F67: New line on new route - other | G67: Reactive power issue
C68: Other | D68: Other | E68: Fault level issues | F68: Line rebuild over existing route - single circuit | G68: Fault level issues
E69: Net market benefit | F69: Line rebuild over existing route - dual circuit | G69: Net market benefit
E70: Safety | F70: Reconductor - Single circuit | G70: Safety
E71: Environment | F71: Reconductor - Dual circuit | G71: Environment
E72: Other | F72: Reconductor - Other | G72: Other
F73: Line upgrade - raising/retensoring
F74: Line upgrade - voltage upgrade
F75: Line upgrade - capacity
F76: String spare circuit
F77: Other
B81: NAMED RANGES USED IN ETL PROCESS
B83: CA & RESET RINS DNSP ONLY | C83: dms_020303_01_UOM | D83: dms_020501_01_UOM | E83: dms_020501_02_UOM | F83: dms_020501_03_UOM | G83: dms_020501_04_UOM | H83: dms_020701_01_UOM | I83: dms_020701_02_UOM | J83: dms_020701_01_Rows | K83: dms_040102_01_UOM | L83: dms_040102_04_UOM | M83: dms_E050201_UOM | N83: dms_E050302_UOM
C84: Circuit line length in km | D84: 0's | E84: 0's | F84: 0's | G84: 0's | H84: km | I84: km | J84: Route line length within zone | K84: 0's | L84: days | M84: per metre per connection | N84: metres per connection
C85: Circuit line length in km | D85: 0's | E85: 0's | F85: 0's | G85: 0's | H85: 0's | I85: 0's | J85: Number of maintenance spans | K85: 0's | L85: 0's | M85: per service per connection | N85: number per connection
C86: Circuit line length in km | D86: MVA added | E86: MVA added | F86: MVA added | G86: MVA added | H86: km | I86: km | J86: Total length of maintenance spans | K86: 0's | L86: $0s | M86: number per connection | N86: number per connection
C87: Circuit line length in km | D87: 0's | E87: 0's | F87: 0's | G87: 0's | H87: km | I87: km | J87: Length of vegetation corridors | K87: $0s | L87: 0's
C88: Number | D88: total spend $0s | E88: total spend $0s | F88: total spend $0s | G88: total spend $0s | H88: 0's | I88: 0's | J88: Average number of trees per maintenance span
C89: Number | D89: net circuit km added | E89: net circuit km added | F89: net circuit km added | G89: net circuit km added | H89: years | I89: years | J89: Average frequency of cutting cycle
C90: Number | D90: total spend $0s | E90: total spend $0s | F90: total spend $0s | G90: total spend $0s
D91: net circuit km added | E91: net circuit km added | F91: net circuit km added | G91: net circuit km added
D92: total spend $0s | E92: total spend $0s | F92: total spend $0s | G92: total spend $0s
D93: 0's | F93: $0s
D94: 0's
D95: 0's
D96: $0s
B99: CA & RESET RINS TNSP ONLY | C99: dms_020701_01_UOM
C100: km
C101: 0's
C102: km
C103: 0's
C104: km
C105: metres
C106: years
B109: CA & RESET RINS DNSP & TNSP | C109: dms_020603_01_UOM
C110: 0's
C111: 0's
C112: 0's
C113: 0's
C114: (per cent)
B117: EB & RESET RINS DNSP ONLY | C117: dms_030601_01_UOM | D117: dms_030601_02_UOM | E117: dms_030701_01_UOM | F117: dms_030702_01_UOM | G117: dms_030703_01_UOM
C118: minutes/customer | D118: minutes/customer | E118: Customer / km | F118: % | G118: km
C119: minutes/customer | D119: minutes/customer | E119: MWh/customer | F119: Number of spans
C120: interruptions/customer | D120: interruptions/customer | E120: kVA / customer | F120: Number of spans
C121: interruptions/customer | D121: interruptions/customer | F121: Number of spans
F122: Number of spans
F123: Years
F124: Years
F125: Trees
F126: Trees
F127: Defects
F128: Defects
F129: Spans
F130: km
F131: Spans
C133: WHEN INSERTING COVER SHEET INTO A TNSP FILE - APPLY THESE NAMED RANGES
B134: EB & RESET RINS TNSP ONLY | C134: dms_030601_01_UOM | E134: dms_030701_01_UOM | F134: dms_030702_01_UOM
C135: % | E135: Number of spans | F135: km
C136: number | E136: Years | F136: %
C137: number | E137: Trees | F137: km
C138: % | E138: Defects | F138: number
C139: number | E139: Number of spans
C140: number | E140: km
C141: % | E141: km
C142: number | E142: Number of spans
C143: number
C144: %
C145: number
C146: %
C147: number
C148: %
C149: number
B151: EB & RESET RINS DNSP & TNSP | C151: dms_EB_RAB_PIT
C152: Beginning of year
C153: End of year
C154: End of year
C155: End of year
C156: End of year
C157: End of year
B159: ARR DNSP ONLY | C159: dms_030605_UOM | D159: dms_03060703_UOM | E159: Spare | F159: Spare
C160: number | D160: number
C161: number | D161: number
C162: number | D162: number
C163: number | D163: number
C164: number | D164: (per cent)
C165: number
C166: number
C167: number
C168: number
C169: number
C170: number
C171: number
C172: (per cent)
C173: (per cent)
B175: RFM | C175: dms_Beg | D175: dms_Mid | E175: dms_End
C176: Beginning of year | D176: Mid year | E176: End of Year
B178: PTRM | C178: dms_PTRM_RAB_PIT | D178: dms_PTRM_TAB_PIT | E178: DMS_Xfactor
C179: Beginning of year | D179: Beginning of year | E179: x factors
C180: End of year | D180: End of year
C181: End of year | D181: End of year
C182: End of year | D182: End of year
C183: End of year
B186: STPIS & MIC NAMED RANGES
B188: These "row descriptions" are the column headings in the various templates but become row descriptions in the ETL process
B190: Table 6.3 sustained interruptions - row descriptions | C190: dms_060301_CustNo_Affected_Row | D190: dms_060301_Avg_Duration_Sustained_Int_Row | E190: dms_060301_Effect_unplanned_SAIDI_Row | F190: dms_060301_Effect_unplanned_SAIFI_Row
C191: Number of customers affected by the interruption | D191: Average duration of sustained customer interruption | E191: Effect on unplanned SAIDI | F191: Effect on unplanned SAIFI
B194: Table 6.1 telephone answering - row descriptions and start date | C194: dms_060101_Rows | D194: dms_060102_Rows | E194: dms_060101_StartDateTxt
C195: Total number of calls (after removing excluded events) | D195: Number of calls answered within 30 seconds (after excluding excluded events) | E195: =dms_060701_StartDateTxt -> 1-Jul-2014
B198: Table 6.8.1 - row descriptions | C198: dms_060801_01_Rows | D198: dms_060801_02_Rows | E198: dms_060801_03_Rows | F198: dms_060801_04_Rows
C199: Number of interruptions | D199: Duration of interruptions | E199: Total unplanned minutes off supply | F199: Effect on unplanned MAIFI
B202: Table 7.9.4 - market impact component - row descriptions | C202: dms_070904_01_Rows | D202: without exclusions | E202: with exclusions
B205: These headings (Lists) are determined from the INDEX/MATCH function on the NSP selected on the Business & other details sheet
B207: Table 6.7.1 - daily performance data - unplanned - MAIFI -- row descriptions and header named range values | C207: dms_060701_Feeder_Header_Lvl4 | D207: =INDEX(dms_FeederName_1,MATCH(dms_TradingName,dms_TradingName_List)) -> CBD | E207: =INDEX(dms_FeederName_1,MATCH(dms_TradingName,dms_TradingName_List)) -> CBD | F207: =INDEX(dms_FeederName_2,MATCH(dms_TradingName,dms_TradingName_List)) -> Urban | G207: =INDEX(dms_FeederName_2,MATCH(dms_TradingName,dms_TradingName_List)) -> Urban | H207: =INDEX(dms_FeederName_3,MATCH(dms_TradingName,dms_TradingName_List)) -> Short rural | I207: =INDEX(dms_FeederName_3,MATCH(dms_TradingName,dms_TradingName_List)) -> Short rural | J207: =INDEX(dms_FeederName_4,MATCH(dms_TradingName,dms_TradingName_List)) -> Long rural | K207: =INDEX(dms_FeederName_4,MATCH(dms_TradingName,dms_TradingName_List)) -> Long rural | L207: =IF((INDEX(dms_FeederName_5,MATCH(dms_TradingName,dms_TradingName_List))=0),"Network",(INDEX(dms_FeederName_5,MATCH(dms_TradingName,dms_TradingName_List)))) -> Network | M207: =IF((INDEX(dms_FeederName_5,MATCH(dms_TradingName,dms_TradingName_List))=0),"Network",(INDEX(dms_FeederName_5,MATCH(dms_TradingName,dms_TradingName_List)))) -> Network | N207: Network | O207: Network
C209: dms_060701_Rows | D209: All events | E209: After removing excluded events | F209: All events | G209: After removing excluded events | H209: All events | I209: After removing excluded events | J209: All events | K209: After removing excluded events | L209: All events | M209: After removing excluded events | N209: All events | O209: After removing excluded events
D210: the number of column headings changes from 10 to 12 depending on the number of feeder categories for the NSP
C212: dms_0603_FeederList | D212: =INDEX(dms_FeederName_1,MATCH(dms_TradingName,dms_TradingName_List)) -> CBD | E212: =INDEX(dms_FeederName_2,MATCH(dms_TradingName,dms_TradingName_List)) -> Urban | F212: =INDEX(dms_FeederName_3,MATCH(dms_TradingName,dms_TradingName_List)) -> Short rural | G212: =INDEX(dms_FeederName_4,MATCH(dms_TradingName,dms_TradingName_List)) -> Long rural
B215: Use these to add to specific worksheets in existing files | C215: Use these to add to specific worksheets in existing files
B218: ARRs 6.7 STPIS daily performance | C218: dms_060101_Values | D218: dms_060102_Values | E218: dms_060701_Values
C219: dms_LeapYear
B222: ARR's 6.8 STPIS exclusions | C222: dms_060801_Event_Date | D222: dms_060801_OutageID | E222: dms_060801_FeederID | F222: dms_060801_FeederClass | G222: dms_060801_CauseID | H222: dms_060801_01_Values | I222: dms_060801_02_Values | J222: dms_060801_03_Values | K222: dms_060801_Excl_Cat | L222: dms_060801_04_Values
C223: dms_060801_StartCell
B226: CA 6.3 sustained interruptions | C226: dms_060301_Event_Date | D226: dms_060301_Event_Time | E226: dms_060301_AssetID | F226: dms_060301_FeederClass | G226: dms_060301_Reason | H226: dms_060301_DetailedReason | I226: dms_060301_CustNo_Affected_Values | J226: dms_060301_Avg_Duration_Sustained_Int_Values | K226: dms_060301_Effect_unplanned_SAIDI_Values | L226: dms_060301_Effect_unplanned_SAIFI_Values | M226: dms_060301_MED

Sheet AER lookups (hidden)
B1: AER LOOKUP TABLES
B3: Data in these columns used for data validation and database purposes.
B4: Date last modified: | C4: 2017-01-16 | D4: added (Albury and Victora) for AGN
C5: 2016-10-17 | D5: updated TransGrid's correct legal name, corrected TasNetworks (T) to June financial year
C6: 2017-02-01 | D6: inserted Power and Water, added NRs (dms_FeederCat_1 and dms_FeederCat_2)
C7: 2017-03-03 | D7: inserted AEMO as a business
C8: 2018-03-28 | D8: major changes to accommodate STPIS
C9: Template Version | D9: 5
Z14: Feeder Types | AD14: TasNetworks (D) | AE14: MAIFI flag | AF14: Feeder Names
B16: dms_TradingName_List | C16: dms_TradingNameFull_List | D16: dms_ABN_List | E16: dms_JurisdictionList | F16: dms_Sector_List | G16: dms_Segment_List | H16: dms_FormControl_List | I16: dms_RPT_List | J16: dms_RPTMonth_List | K16: dms_CRCPlength_List | L16: dms_FRCPlength_List | M16: dms_PRCPlength_List | N16: dms_663_List | O16: dms_DeterminationRef_List | P16: dms_Addr1_List | Q16: dms_Addr2_List | R16: dms_Suburb_List | S16: dms_State_List | T16: dms_PostCode_List | U16: dms_PAddr1_List | V16: dms_PAddr2_List | W16: dms_PSuburb_List | X16: dms_PState_List | Y16: dms_PPostCode_List | Z16: dms_CBD_flag | AA16: dms_Urban_flag | AB16: dms_ShortRural_flag | AC16: dms_LongRural_flag | AD16: dms_FeederType_5_flag | AE16: dms_MAIFI_flag_List | AF16: dms_FeederName_1 | AG16: dms_FeederName_2 | AH16: dms_FeederName_3 | AI16: dms_FeederName_4 | AJ16: dms_FeederName_5 | AK16: dms_Public_Lighting_List | AL16: Name
B17: AGN (Albury and Victoria) | C17: Australian Gas Networks Limited (reporting data for Albury and Victoria) | D17: 19078551685 | E17: Vic | F17: Gas | G17: Distribution | H17: Weighted average price cap | I17: Calendar | J17: December | K17: 5 | L17: 5 | M17: 5 | N17: x | P17: Level 6 | Q17: 400 King William Street | R17: ADELAIDE | S17: SA | T17: 5000 | U17: PO Box 6468 | V17: Halifax Street | W17: ADELAIDE | X17: SA | Y17: 5000 | Z17: NO | AA17: NO | AB17: NO | AC17: NO | AD17: NO | AE17: - | AF17: CBD | AG17: Urban | AH17: Short rural | AI17: Long rural | AK17: NO | AL17: AGN (Albury)
B18: AGN (Albury) | C18: Australian Gas Networks Limited (reporting data for Albury) | D18: 19078551685 | E18: Vic | F18: Gas | G18: Distribution | H18: Weighted average price cap | I18: Calendar | J18: December | K18: 5 | L18: 5 | M18: 5 | N18: x | P18: Level 6 | Q18: 400 King William Street | R18: ADELAIDE | S18: SA | T18: 5000 | U18: PO Box 6468 | V18: Halifax Street | W18: ADELAIDE | X18: SA | Y18: 5000 | Z18: NO | AA18: NO | AB18: NO | AC18: NO | AD18: NO | AE18: - | AF18: CBD | AG18: Urban | AH18: Short rural | AI18: Long rural | AK18: NO
B19: AGN (SA) | C19: Australian Gas Networks Limited (reporting data for SA) | D19: 19078551685 | E19: SA | F19: Gas | G19: Distribution | H19: Weighted average price cap | I19: Financial | J19: June | K19: 5 | L19: 5 | M19: 5 | N19: 5 | O19: distribution determination | P19: Level 6 | Q19: 400 King William Street | R19: ADELAIDE | S19: SA | T19: 5000 | U19: PO Box 6468 | V19: Halifax Street | W19: ADELAIDE | X19: SA | Y19: 5000 | Z19: NO | AA19: NO | AB19: NO | AC19: NO | AD19: NO | AE19: - | AF19: CBD | AG19: Urban | AH19: Short rural | AI19: Long rural | AK19: NO | AL19: AGN (SA)
B20: AGN (Victoria) | C20: Australian Gas Networks Limited (reporting data for Victoria) | D20: 19078551685 | E20: Vic | F20: Gas | G20: Distribution | H20: Weighted average price cap | I20: Calendar | J20: December | K20: 5 | L20: 5 | M20: 5 | N20: x | P20: Level 6 | Q20: 400 King William Street | R20: ADELAIDE | S20: SA | T20: 5000 | U20: PO Box 6468 | V20: Halifax Street | W20: ADELAIDE | X20: SA | Y20: 5000 | Z20: NO | AA20: NO | AB20: NO | AC20: NO | AD20: NO | AE20: - | AF20: CBD | AG20: Urban | AH20: Short rural | AI20: Long rural | AK20: NO | AL20: AGN (Victoria)
B21: Amadeus | C21: APT Pipelines (NT) Pty Ltd | D21: 39009737393 | E21: NT | F21: Gas | G21: Transmission | H21: Weighted average price cap | I21: Financial | J21: June | K21: 5 | L21: 5 | M21: 5 | N21: x | O21: n/a | P21: Level 19, HSBC Building | Q21: 580 George Street | R21: SYDNEY | S21: NSW | T21: 2000 | U21: Level 19, HSBC Building | V21: 580 George Street | W21: SYDNEY | X21: NSW | Y21: 2000 | Z21: NO | AA21: NO | AB21: NO | AC21: NO | AD21: NO | AE21: - | AF21: CBD | AG21: Urban | AH21: Short rural | AI21: Long rural | AK21: NO | AL21: Amadeus
B22: APA GasNet | C22: APA GasNet Australia (Operations) Pty Ltd | D22: 065083009 | E22: Vic | F22: Gas | G22: Transmission | H22: Weighted average price cap | I22: Calendar | J22: December | K22: 5 | L22: 5 | M22: 5 | N22: x | P22: Level 19, HSBC Building | Q22: 580 George Street | R22: SYDNEY | S22: NSW | T22: 2000 | U22: PO Box R41 | W22: ROYAL EXCHANGE | X22: NSW | Y22: 1225 | Z22: NO | AA22: NO | AB22: NO | AC22: NO | AD22: NO | AE22: - | AF22: CBD | AG22: Urban | AH22: Short rural | AI22: Long rural | AK22: NO | AL22: APA GasNet
B23: AusNet (Gas) | C23: AusNet Gas Services | D23: 086015036 | E23: Vic | F23: Gas | G23: Distribution | H23: Weighted average price cap | I23: Calendar | J23: December | K23: 5 | L23: 5 | M23: 5 | N23: X | P23: Level 19, HSBC Building | Q23: 580 George Street | R23: SYDNEY | S23: NSW | T23: 2000 | U23: PO Box R41 | W23: ROYAL EXCHANGE | X23: NSW | Y23: 1225 | Z23: NO | AA23: NO | AB23: NO | AC23: NO | AD23: NO | AE23: - | AF23: CBD | AG23: Urban | AH23: Short rural | AI23: Long rural | AK23: NO | AL23: AusNet (Gas)
B24: Australian Distribution Co. (Gas) | C24: Australian Gas Distribution Co. | D24: 11222333444 | E24: NSW | F24: Gas | G24: Distribution | H24: Weighted average price cap | I24: Financial | J24: June | K24: 5 | L24: 5 | M24: 5 | P24: 123 Straight Street | R24: SYDNEY | S24: NSW | T24: 2000 | U24: PO Box 123 | W24: SYDNEY | X24: NSW | Y24: 2000 | Z24: NO | AA24: NO | AB24: NO | AC24: NO | AD24: NO | AE24: - | AF24: CBD | AG24: Urban | AH24: Short rural | AI24: Long rural | AK24: NO | AL24: Australian Distribution Co. (Vic)
B25: Central Ranges Pipeline (D) | C25: Central Ranges Pipeline Pty Ltd | D25: 108218355 | E25: NSW | F25: Gas | G25: Distribution | H25: Weighted average price cap | I25: Financial | J25: June | K25: 15 | L25: 5 | M25: 5 | N25: 5 | O25: distribution determination | P25: Level 19 | Q25: 580 George Street | R25: SYDNEY | S25: NSW | T25: 2000 | U25: PO Box R41 | W25: ROYAL EXCHANGE | X25: NSW | Y25: 1225 | Z25: NO | AA25: NO | AB25: NO | AC25: NO | AD25: NO | AE25: - | AF25: CBD | AG25: Urban | AH25: Short rural | AI25: Long rural | AK25: NO
B26: Central Ranges Pipeline (T) | C26: Central Ranges Pipeline Pty Ltd | D26: 108218355 | E26: NSW | F26: Gas | G26: Transmission | H26: Weighted average price cap | I26: Financial | J26: June | K26: 14 | L26: 5 | M26: 5 | N26: 5 | O26: transmission determination | P26: Level 19 | Q26: 580 George Street | R26: SYDNEY | S26: NSW | T26: 2000 | U26: PO Box R41 | W26: ROYAL EXCHANGE | X26: NSW | Y26: 1225 | Z26: NO | AA26: NO | AB26: NO | AC26: NO | AD26: NO | AE26: - | AF26: CBD | AG26: Urban | AH26: Short rural | AI26: Long rural | AK26: NO
B27: Evoenergy Gas | C27: Evoenergy Gas | D27: 76670568688 | E27: ACT | F27: Gas | G27: Distribution | H27: Weighted average price cap | I27: Financial | J27: June | K27: 5 | L27: 5 | M27: 5 | N27: x | P27: 40 Bunda Street | R27: CANBERRA | S27: ACT | T27: 2600 | U27: GPO BOX 366 | W27: CANBERRA | X27: ACT | Y27: 2601 | Z27: NO | AA27: NO | AB27: NO | AC27: NO | AD27: NO | AE27: - | AF27: CBD | AG27: Urban | AH27: Short rural | AI27: Long rural | AK27: NO | AL27: ActewAGL Gas
B28: JGN | C28: Jemena Gas Networks (NSW) Ltd | D28: 003 004 322 | E28: NSW | F28: Gas | G28: Distribution | H28: Weighted average price cap | I28: Financial | J28: June | K28: 5 | L28: 5 | M28: 5 | P28: please provide street address | U28: please provide postal address | Z28: NO | AA28: NO | AB28: NO | AC28: NO | AD28: NO | AE28: - | AF28: CBD | AG28: Urban | AH28: Short rural | AI28: Long rural | AK28: NO | AL28: JGN
B29: Multinet Gas | C29: Multinet Gas (DB No.1) Pty Ltd (ACN 086 026 986), Multinet Gas (DB No.2) Pty Ltd (ACN 086 230 122) | D29: 086026986 | E29: Vic | F29: Gas | G29: Distribution | H29: Weighted average price cap | I29: Calendar | J29: December | K29: 5 | L29: 5 | M29: 5 | N29: x | P29: 43-45 Centreway | R29: MT WAVERLEY | S29: Vic | T29: 3149 | Z29: NO | AA29: NO | AB29: NO | AC29: NO | AD29: NO | AE29: - | AF29: CBD | AG29: Urban | AH29: Short rural | AI29: Long rural | AK29: NO | AL29: Multinet Gas
B30: Roma to Brisbane Pipeline | C30: APT Petroleum Pipelines Limited t/a Roma to Brisbane Pipeline | D30: 009 737 393 | E30: Qld | F30: Gas | G30: Transmission | H30: Weighted average price cap | I30: Financial | J30: June | K30: 5 | L30: 5 | M30: 5 | N30: x | O30: n/a | P30: 580 George Street | R30: SYDNEY | S30: NSW | T30: 2000 | U30: PO Box R41 | W30: ROYAL EXCHANGE | X30: NSW | Y30: 1225 | Z30: NO | AA30: NO | AB30: NO | AC30: NO | AD30: NO | AE30: - | AF30: CBD | AG30: Urban | AH30: Short rural | AI30: Long rural | AK30: NO | AL30: Roma to Brisbane Pipeline
B35: The Reg Year Ending (dms_RYE) must be set to the last year of the regulatory period. For forecast data is is usually (FRCP_y5) for actual it is a single year (CRY). For historical actual data the RYE will need to be set manually in the business details sheet by setting the dms_Multiyear_flag to 1 and putting the correct value in 'dms_Specified_FinalYear. See cells C67:C68
B36: dms_Model_List | C36: dms_Model_Name_Format1 | D36: dms_Worksheet_List | E36: dms_Model_Span_List
B37: ARR | C37: Annual Reporting | D37: =IF(dms_MultiYear_ResponseFlag="yes","NEW HISTORICAL ANNUAL REPORTING","ANNUAL REPORTING") -> ANNUAL REPORTING | E37: 1
B38: CA | C38: Category Analysis | D38: =IF(dms_MultiYear_ResponseFlag="yes","NEW HISTORICAL CATEGORY ANALYSIS","CATEGORY ANALYSIS") -> CATEGORY ANALYSIS | E38: 1
B39: CESS | C39: Capitlal Expenditure | D39: CAPITLAL EXPENDITURE SHARING SCHEMING | E39: 5
B40: CPI | C40: CPI | D40: CPI | E40: 5
B41: EB | C41: Economic Benchmarking | D41: =IF(dms_MultiYear_ResponseFlag="yes","NEW HISTORICAL ECONOMIC BENCHMARKING","ECONOMIC BENCHMARKING") -> ECONOMIC BENCHMARKING | E41: 1
B42: Pricing | C42: Pricing Proposal | D42: PRICING PROPOSAL | E42: 5
B43: PTRM | C43: Post Tax Revenue Model | D43: POST TAX REVENUE MODEL | E43: 5
B44: Reset | C44: Regulatory Reporting (Reset) | D44: REGULATORY REPORTING STATEMENT | E44: 5
B45: RFM | C45: Roll Forward Model | D45: ROLL FORWARD MODEL | E45: 5
B46: WACC | C46: Weighted Average Cost of Capital | D46: WEIGHTED AVERAGE COST OF CAPITAL | E46: 1
B50: Financial | C50: Calendar | E50: PREVIOUS | G50: CURRENT | I50: FORTHCOMING
B51: 1987-88 | C51: 1988 | D51: PRCP_y1 | E51: =INDEX(INDIRECT(dms_RPT),dms_PRCP_start_row) -> 2011-12 | F51: CRCP_y1 | G51: =INDEX(INDIRECT(dms_RPT),dms_CRCP_start_row) -> 2016-17 | H51: =FRCP_y1 -> 2021-22 | I51: =INDEX(INDIRECT(dms_RPT),dms_FRCP_start_row) -> 2021-22
B52: 1988-89 | C52: 1989 | D52: PRCP_y2 | E52: =INDEX(INDIRECT(dms_RPT),dms_PRCP_start_row+1) -> 2012-13 | F52: CRCP_y2 | G52: =INDEX(INDIRECT(dms_RPT),dms_CRCP_start_row+1) -> 2017-18 | H52: FRCP_y2 | I52: =INDEX(INDIRECT(dms_RPT),dms_FRCP_start_row+1) -> 2022-23
B53: 1989-90 | C53: 1990 | D53: PRCP_y3 | E53: =INDEX(INDIRECT(dms_RPT),dms_PRCP_start_row+2) -> 2013-14 | F53: CRCP_y3 | G53: =INDEX(INDIRECT(dms_RPT),dms_CRCP_start_row+2) -> 2018-19 | H53: FRCP_y3 | I53: =INDEX(INDIRECT(dms_RPT),dms_FRCP_start_row+2) -> 2023-24
B54: 1990-91 | C54: 1991 | D54: PRCP_y4 | E54: =INDEX(INDIRECT(dms_RPT),dms_PRCP_start_row+3) -> 2014-15 | F54: CRCP_y4 | G54: =INDEX(INDIRECT(dms_RPT),dms_CRCP_start_row+3) -> 2019-20 | H54: FRCP_y4 | I54: =INDEX(INDIRECT(dms_RPT),dms_FRCP_start_row+3) -> 2024-25
B55: 1991-92 | C55: 1992 | D55: PRCP_y5 | E55: =INDEX(INDIRECT(dms_RPT),dms_PRCP_start_row+4) -> 2015-16 | F55: CRCP_y5 | G55: =INDEX(INDIRECT(dms_RPT),dms_CRCP_start_row+4) -> 2020-21 | H55: FRCP_y5 | I55: =INDEX(INDIRECT(dms_RPT),dms_FRCP_start_row+4) -> 2025-26
B56: 1992-93 | C56: 1993 | D56: PRCP_y6 | E56: =INDEX(INDIRECT(dms_RPT),dms_PRCP_start_row+5) -> 2016-17 | F56: CRCP_y6 | G56: =INDEX(INDIRECT(dms_RPT),dms_CRCP_start_row+5) -> 2021-22 | H56: FRCP_y6 | I56: =INDEX(INDIRECT(dms_RPT),dms_FRCP_start_row+5) -> 2026-27
B57: 1993-94 | C57: 1994 | D57: PRCP_y7 | E57: =INDEX(INDIRECT(dms_RPT),dms_PRCP_start_row+6) -> 2017-18 | F57: CRCP_y7 | G57: =INDEX(INDIRECT(dms_RPT),dms_CRCP_start_row+6) -> 2022-23 | H57: FRCP_y7 | I57: =INDEX(INDIRECT(dms_RPT),dms_FRCP_start_row+6) -> 2027-28
B58: 1994-95 | C58: 1995 | D58: PRCP_y8 | E58: =INDEX(INDIRECT(dms_RPT),dms_PRCP_start_row+7) -> 2018-19 | F58: CRCP_y8 | G58: =INDEX(INDIRECT(dms_RPT),dms_CRCP_start_row+7) -> 2023-24 | H58: FRCP_y8 | I58: =INDEX(INDIRECT(dms_RPT),dms_FRCP_start_row+7) -> 2028-29
B59: 1995-96 | C59: 1996 | D59: PRCP_y9 | E59: =INDEX(INDIRECT(dms_RPT),dms_PRCP_start_row+8) -> 2019-20 | F59: CRCP_y9 | G59: =INDEX(INDIRECT(dms_RPT),dms_CRCP_start_row+8) -> 2024-25 | H59: FRCP_y9 | I59: =INDEX(INDIRECT(dms_RPT),dms_FRCP_start_row+8) -> 2029-30
B60: 1996-97 | C60: 1997 | D60: PRCP_y10 | E60: =INDEX(INDIRECT(dms_RPT),dms_PRCP_start_row+9) -> 2020-21 | F60: CRCP_y10 | G60: =INDEX(INDIRECT(dms_RPT),dms_CRCP_start_row+9) -> 2025-26 | H60: FRCP_y10 | I60: =INDEX(INDIRECT(dms_RPT),dms_FRCP_start_row+9) -> 2030-31
B61: 1997-98 | C61: 1998 | D61: PRCP_y11 | E61: =INDEX(INDIRECT(dms_RPT),dms_PRCP_start_row+10) -> 2021-22 | F61: CRCP_y11 | G61: =INDEX(INDIRECT(dms_RPT),dms_CRCP_start_row+10) -> 2026-27 | H61: FRCP_y11 | I61: =INDEX(INDIRECT(dms_RPT),dms_FRCP_start_row+10) -> 2031-32
B62: 1998-99 | C62: 1999 | D62: PRCP_y12 | E62: =INDEX(INDIRECT(dms_RPT),dms_PRCP_start_row+11) -> 2022-23 | F62: CRCP_y12 | G62: =INDEX(INDIRECT(dms_RPT),dms_CRCP_start_row+11) -> 2027-28 | H62: FRCP_y12 | I62: =INDEX(INDIRECT(dms_RPT),dms_FRCP_start_row+11) -> 2032-33
B63: 1999-00 | C63: 2000 | D63: PRCP_y13 | E63: =INDEX(INDIRECT(dms_RPT),dms_PRCP_start_row+12) -> 2023-24 | F63: CRCP_y13 | G63: =INDEX(INDIRECT(dms_RPT),dms_CRCP_start_row+12) -> 2028-29 | H63: FRCP_y13 | I63: =INDEX(INDIRECT(dms_RPT),dms_FRCP_start_row+12) -> 2033-34
B64: 2000-01 | C64: 2001 | D64: PRCP_y14 | E64: =INDEX(INDIRECT(dms_RPT),dms_PRCP_start_row+13) -> 2024-25 | F64: CRCP_y14 | G64: =INDEX(INDIRECT(dms_RPT),dms_CRCP_start_row+13) -> 2029-30 | H64: FRCP_y14 | I64: =INDEX(INDIRECT(dms_RPT),dms_FRCP_start_row+13) -> 2034-35
B65: 2001-02 | C65: 2002 | D65: PRCP_y15 | E65: =INDEX(INDIRECT(dms_RPT),dms_PRCP_start_row+14) -> 2025-26 | F65: CRCP_y15 | G65: =INDEX(INDIRECT(dms_RPT),dms_CRCP_start_row+14) -> 2030-31 | H65: FRCP_y15 | I65: =INDEX(INDIRECT(dms_RPT),dms_FRCP_start_row+14) -> 2035-36
B66: 2002-03 | C66: 2003 | D66: PRCP_y16 | E66: =INDEX(INDIRECT(dms_RPT),dms_PRCP_start_row+15) -> 2026-27 | F66: CRCP_y16 | G66: =INDEX(INDIRECT(dms_RPT),dms_CRCP_start_row+15) -> 2031-32 | H66: FRCP_y16 | I66: =INDEX(INDIRECT(dms_RPT),dms_FRCP_start_row+15) -> 2036-37
B67: 2003-04 | C67: 2004
B68: 2004-05 | C68: 2005
B69: 2005-06 | C69: 2006 | E69: CRY - FRY
B70: 2006-07 | C70: 2007 | D70: dms_y1 | E70: =IFERROR(INDEX(INDIRECT(dms_RPT),dms_CRY_start_row),0) -> 2019-20
B71: 2007-08 | C71: 2008 | D71: dms_y2 | E71: =IFERROR(INDEX(INDIRECT(dms_RPT),dms_CRY_start_row+1),0) -> 2020-21
B72: 2008-09 | C72: 2009 | D72: dms_y3 | E72: =IFERROR(INDEX(INDIRECT(dms_RPT),dms_CRY_start_row+2),0) -> 2021-22
B73: 2009-10 | C73: 2010 | D73: dms_y4 | E73: =IFERROR(INDEX(INDIRECT(dms_RPT),dms_CRY_start_row+3),0) -> 2022-23
B74: 2010-11 | C74: 2011 | D74: dms_y5 | E74: =IFERROR(INDEX(INDIRECT(dms_RPT),dms_CRY_start_row+4),0) -> 2023-24
B75: 2011-12 | C75: 2012 | D75: dms_y6 | E75: =IFERROR(INDEX(INDIRECT(dms_RPT),dms_CRY_start_row+5),0) -> 2024-25
B76: 2012-13 | C76: 2013 | D76: dms_y7 | E76: =IFERROR(INDEX(INDIRECT(dms_RPT),dms_CRY_start_row+6),0) -> 2025-26
B77: 2013-14 | C77: 2014 | D77: dms_y8 | E77: =IFERROR(INDEX(INDIRECT(dms_RPT),dms_CRY_start_row+7),0) -> 2026-27
B78: 2014-15 | C78: 2015 | D78: dms_y9 | E78: =IFERROR(INDEX(INDIRECT(dms_RPT),dms_CRY_start_row+8),0) -> 2027-28
B79: 2015-16 | C79: 2016 | D79: dms_y10 | E79: =IFERROR(INDEX(INDIRECT(dms_RPT),dms_CRY_start_row+9),0) -> 2028-29
B80: 2016-17 | C80: 2017 | D80: dms_y11 | E80: =IFERROR(INDEX(INDIRECT(dms_RPT),dms_CRY_start_row+10),0) -> 2029-30
B81: 2017-18 | C81: 2018 | D81: dms_y12 | E81: =IFERROR(INDEX(INDIRECT(dms_RPT),dms_CRY_start_row+11),0) -> 2030-31
B82: 2018-19 | C82: 2019 | D82: dms_y13 | E82: =IFERROR(INDEX(INDIRECT(dms_RPT),dms_CRY_start_row+12),0) -> 2031-32
B83: 2019-20 | C83: 2020 | D83: dms_y14 | E83: =IFERROR(INDEX(INDIRECT(dms_RPT),dms_CRY_start_row+13),0) -> 2032-33
B84: 2020-21 | C84: 2021 | D84: dms_y15 | E84: =IFERROR(INDEX(INDIRECT(dms_RPT),dms_CRY_start_row+14),0) -> 2033-34
B85: 2021-22 | C85: 2022 | D85: dms_y16 | E85: =IFERROR(INDEX(INDIRECT(dms_RPT),dms_CRY_start_row+15),0) -> 2034-35
B86: 2022-23 | C86: 2023
B87: 2023-24 | C87: 2024
B88: 2024-25 | C88: 2025
B89: 2025-26 | C89: 2026
B90: 2026-27 | C90: 2027
B91: 2027-28 | C91: 2028
B92: 2028-29 | C92: 2029
B93: 2029-30 | C93: 2030
B94: 2030-31 | C94: 2031
B95: 2031-32 | C95: 2032
B96: 2032-33 | C96: 2033
B97: 2033-34 | C97: 2034
B98: 2034-35 | C98: 2035
B99: 2035-36 | C99: 2036
B100: 2036-37 | C100: 2037

Sheet AER ETL (hidden)
A1: FINAL RIN - 20200224 | B1: AER ETL INFORMATION
B3: USES NAMED RANGES FLAG | C3: yes | D3: dms_Defined_Names_Used
B5: IF THIS IS AN ABC RIN - make sure the the named range CRY is applied and the named range dms_dollar_nom_UOM is applied
B6: IF THIS IS A RESET RIN - make sure the named ranges CRY and dms_dollar_nom_UOM are NOT present in the workbook
B7: FOR ABC RINS THAT SPAN MULTIPLE YEARS - make sure MultiYear Flag is set and final year entered as required
B9: Full trading name | C9: =INDEX(dms_TradingNameFull_List,MATCH(dms_TradingName,dms_TradingName_List)) -> Australian Gas Networks Limited (reporting data for SA) | E9: dms_TradingNameFull
B10: Trading name | C10: =dms_TradingName -> AGN (SA)
A11: Selected here | B11: Model / RIN | C11: Reset | D11: dms_Model
A12: Read from Business & other details | B12: Source | C12: =dms_Selected_Source -> Regulatory proposal | D12: dms_Source
B13: Data quality | C13: =dms_Selected_Quality -> Consolidated | D13: dms_DQ_1
B14: Data status | C14: =dms_Selected_Status -> Public | D14: dms_DQ_2
B15: Amendment reason | C15: =dms_Amendment_Text -> . | F15: dms_AmendmentReason
B16: Submission date | C16: =dms_Typed_Submission_Date -> 2020-07-01 | D16: dms_SubmissionDate
A18: Redundant | B18: EBSS - First application of scheme in forthcoming period? | C18: No
A19: Pre-populated from lookup table | B19: Data ingestion data quality | C19: =dms_Selected_Quality -> Consolidated | D19: dms_DataQuality | E19: =IF(dms_DQ_2="Confidential","Consolidated","Public")
B20: Sector | C20: =INDEX(dms_Sector_List,MATCH(dms_TradingName,dms_TradingName_List)) -> Gas | D20: dms_Sector | E20: =INDEX(dms_Sector_List,MATCH(dms_TradingName,dms_TradingName_List))
B21: Segment | C21: =INDEX(dms_Segment_List,MATCH(dms_TradingName,dms_TradingName_List)) -> Distribution | D21: dms_Segment | E21: =INDEX(dms_Segment_List,MATCH(dms_TradingName,dms_TradingName_List))
B22: Regulatory Year Ending | C22: =dms_RYE_result -> 2026 | D22: dms_RYE | E22: =IF(dms_MultiYear_Flag=1,LEFT(dms_Specified_FinalYear,2)&RIGHT(dms_Specified_FinalYear,2),INDEX(dms_RYE_Formula_Result,MATCH(dms_Model,dms_Model_List)))
B23: Reporting Period Type | C23: =INDEX(dms_RPT_List,MATCH(dms_TradingName,dms_TradingName_List)) -> Financial | D23: dms_RPT | E23: =INDEX(dms_RPT_List,MATCH(dms_TradingName,dms_TradingName_List))
B24: EB/CA Unit of Measure for Monetary Values | C24: $0s | D24: dms_dollar_nom_UOM | E24: If the cover sheet is attached to an ABC RIN apply the NAMED RANGE to the cell
B25: Security Classification | C25: Public | D25: dms_Classification | E25: Always Public
B26: Jurisdiction | C26: =INDEX(dms_JurisdictionList,MATCH(dms_TradingName,dms_TradingName_List)) -> SA | D26: dms_Jurisdiction | E26: =INDEX(dms_JurisdictionList,MATCH(dms_TradingName,dms_TradingName_List))
A27: Relevant for PTRM, RFMs and Reset RINS | B27: $ REAL REFERENCES
B28: Does the named range CRY exist in this file? | C28: =IFERROR(CRY,"NO") -> NO
B29: CRY-1 (last full calendar year before CRY) | C29: =IFERROR(IF(dms_RPT="calendar",CRY-1,LEFT(CRY,4)),"CRY not present") -> CRY not present | D29: dms_Cal_Year_B4_CRY | E29: '=IF(dms_RPT="financial",VALUE(LEFT(dms_SingleYear_FinalYear_Result,4)),VALUE(LEFT(dms_SingleYear_FinalYear_Result,4)-1))
B30: Dollar $ real month | C30: =INDEX(dms_RPTMonth_List,MATCH(dms_TradingName,dms_TradingName_List)) -> June | D30: dms_RPTMonth | E30: =INDEX(dms_RPTMonth_List,MATCH(dms_TradingName,dms_TradingName_List))
B31: Dollar $ real (the last month before the FRCP_y1) | C31: =IF(dms_SingleYearModel="yes",CONCATENATE(dms_RPTMonth)&" "&VALUE((LEFT(CRY,2))&RIGHT(CRY,2)),CONCATENATE(dms_RPTMonth)&" "&dms_DollarReal_year) -> June 2021 | D31: dms_DollarReal | E31: =IF(SUM(dms_SingleYear_Model)>0,CONCATENATE(dms_RPTMonth)&" "&VALUE((LEFT(CRY,2))&RIGHT(CRY,2)),CONCATENATE(dms_RPTMonth)&" "&VALUE((LEFT(dms_RYE,2)&RIGHT(dms_RYE,2))))
B32: Dollar $ real previous year (PRCP_y5) | C32: =IF(dms_SingleYearModel="yes",CONCATENATE(dms_RPTMonth)&" "&VALUE((LEFT(CRY,2))&RIGHT(CRY,2)),CONCATENATE(dms_RPTMonth)&" "&dms_Previous_DollarReal_year) -> June 2016 | D32: dms_DollarReal_Prev | E32: =IF(SUM(dms_SingleYear_Model)>0,CONCATENATE(dms_RPTMonth)&" "&VALUE(((LEFT(CRY,2))&RIGHT(CRY,2))-1),CONCATENATE(dms_RPTMonth)&" "&VALUE(((LEFT(dms_CRCP_FirstYear_Result,2)&RIGHT(dms_CRCP_FirstYear_Result,2))))-1)
B33: PTRM/ RFMs
B34: Form of control | C34: =INDEX(dms_FormControl_List,MATCH(dms_TradingName,dms_TradingName_List)) -> Weighted average price cap | D34: dms_FormControl | E34: =INDEX(dms_FormControl_List,MATCH(dms_TradingName,dms_TradingName_List))
A35: All potential values for Regulatory Years or RYEs as calculated | B35: This block works out the various RYE's for ALL RIN types and MODELS
B36: dms_start_year | C36: =FRCP_y1 -> 2021-22 | D36: FRCP_y1 from cover sheet
B37: dms_CRY_start_year | C37: =IFERROR(CRY,CRCP_y4) -> 2019-20
B38: dms_CRY_start_row | C38: =IFERROR(MATCH(dms_CRY_start_year,INDIRECT(dms_RPT),0),0) -> 33
B39: dms_FRCP_start_row | C39: =MATCH(dms_start_year,INDIRECT(dms_RPT),0) -> 35 | D39: Uses FRCP_y1 as a start reference
B40: dms_CRCP_start_row | C40: =dms_FRCP_start_row-dms_CRCPlength_Num -> 30 | D40: Uses the value in dms_CRCPlength_Num
B41: dms_PRCP_start_row | C41: =dms_FRCP_start_row-dms_CRCPlength_Num-dms_PRCPlength_Num -> 25 | D41: Uses the value in dms_CRCPlength_Num and dms_PRCPlength_Num
B42: dms_RYE_start_row | C42: =dms_FRCP_start_row+(dms_FRCPlength_Num-1) -> 39 | D42: Uses the value in dms_FRCPlength_Num-1
B43: FRCP_start_year | C43: =INDEX(INDIRECT(dms_RPT),dms_FRCP_start_row) -> 2021-22 | D43: Converts the FRCP start row to display the year
B44: CRCP_start_year | C44: =INDEX(INDIRECT(dms_RPT),dms_CRCP_start_row) -> 2016-17 | D44: Converts the CRCP start row to display the year
B45: PRCP_start_year | C45: =INDEX(INDIRECT(dms_RPT),dms_PRCP_start_row) -> 2011-12 | D45: Converts the PRCP start row to display the year
B46: FRCP_final_year | C46: =INDEX(INDIRECT(dms_RPT),dms_FRCP_start_row+dms_FRCPlength_Num-1) -> 2025-26 | D46: Finds the FRCP final year
B47: CRCP_final_year | C47: =INDEX(INDIRECT(dms_RPT),dms_CRCP_start_row+dms_CRCPlength_Num-1) -> 2020-21 | D47: Finds the CRCP final year
B48: PRCP_final_year | C48: =INDEX(INDIRECT(dms_RPT),dms_PRCP_start_row+dms_FRCPlength_Num-1) -> 2015-16 | D48: Finds the PRCP final year
B49: dms_Reset_final_year | C49: =INDEX(INDIRECT(dms_RPT),dms_RYE_start_row) -> 2025-26 | D49: For Resets and PTRM/RFMs (same as FRCP_final_year)
B50: dms_SpecifiedYear_final_year | C50: =FRY -> 2025-26 | D50: FRY from cover sheet
B51: dms_DollarReal_year | C51: =LEFT(CRCP_final_year,2)&RIGHT(CRCP_final_year,2) -> 2021 | D51: Uses the value in CRCP_final_year
B52: dms_Previous_DollarReal_year | C52: =LEFT(PRCP_final_year,2)&RIGHT(PRCP_final_year,2) -> 2016 | D52: Uses the value in PRCP_final_year
B53: dms_CRY_RYE | C53: =IFERROR(LEFT(CRY,2)&RIGHT(CRY,2),0) -> 0 | D53: For ABC single year RINS
B54: dms_Reset_RYE | C54: =IF(dms_Model_Span>1,IF(dms_Model="RFM",(LEFT(dms_DollarReal_year,2)&RIGHT(dms_DollarReal_year,2)),(LEFT(dms_Reset_final_year,2)&RIGHT(dms_Reset_final_year,2))),0) -> 2026 | D54: If model span > 1 then uses dms_Reset_RYE otherwise it's a multi year ABC and uses dms_Specified_RYE
B55: dms_Specified_RYE | C55: =IF(dms_MultiYear_ResponseFlag="Yes",(LEFT(dms_Specified_FinalYear,2)&RIGHT(dms_Specified_FinalYear,2)),0) -> 0 | D55: If multi year ABC - uses dms_Specified_FinalYear
B56: dms_Model_Span | C56: =INDEX(dms_Model_Span_List,MATCH(dms_Model,dms_Model_List)) -> 5 | D56: A result of 5 is used to signify that it is more than 1 year span
B57: dms_RYE_result | C57: =IF(dms_MultiYear_ResponseFlag="yes",dms_Specified_RYE,(IF(dms_Model_Span>1,dms_Reset_RYE,dms_CRY_RYE))) -> 2026 | D57: Nested IF - feeds into dms_RYE
B58: dms_Reset_Span | C58: =IF(dms_Reset_RYE>0,CONCATENATE(FRCP_y1," to ",FRCP_final_year),0) -> 2021-22 to 2025-26 | D58: Reset span of years as text
B59: dms_SpecifiedYear_Span | C59: =IF(dms_Specified_RYE>0,CONCATENATE(CRY," to ",dms_Specified_FinalYear),0) -> 0 | D59: Multi year ABC span of years as text
B60: dms_Header_Span | C60: =IF(dms_MultiYear_Flag=1,dms_SpecifiedYear_Span,IF(dms_Model_Span>1,dms_y1&" - "&FRCP_final_year,CRY)) -> 2019-20 - 2025-26 | D60: NESTED IF - for Sheet Headers
B61: ABC RINS THAT SPAN MULTIPLE YEARS
B62: This is a multi year ABC RIN? | C62: No
C63: =IF(dms_MultiYear_ResponseFlag="No",0,1) -> 0 | D63: dms_MultiYear_Flag | E63: This is set from the answer provided above
C64: =IF(dms_MultiYear_Flag=1,FRY,"not a Multiple year submission") -> not a Multiple year submission | D64: dms_Specified_FinalYear | E64: The result here is returned to dms_CRCP_FinalYear_Result if response to Q in C73 is "yes" and dms_MultiYear_Flag is set to 1
B65: Start year for 5.2 in Multi year ABC RINS | C65: =IFERROR(IF(dms_MultiYear_Flag=1,FRY,CRY),"not an ABC") -> not an ABC | D65: dms_0502_Inst_Year | E65: =IF(dms_MultiYear_Flag=1,FRY,CRY) | G65: For single year RINS this is CRY - multi year RINS need to start a the end of the span of years (ie. FRY)
B66: WHAT IS THE RYE?
B67: Reg Period Lengths
B68: PRCP length in years | C68: =INDEX(dms_PRCPlength_List,MATCH(dms_TradingName,dms_TradingName_List)) -> 5 | D68: dms_PRCPlength_Num | E68: =INDEX(dms_PRCPlength_List,MATCH(dms_TradingName,dms_TradingName_List))
B69: CRCP length in years | C69: =INDEX(dms_CRCPlength_List,MATCH(dms_TradingName,dms_TradingName_List)) -> 5 | D69: dms_CRCPlength_Num | E69: =INDEX(dms_CRCPlength_List,MATCH(dms_TradingName,dms_TradingName_List))
B70: FRCP length in years | C70: =INDEX(dms_FRCPlength_List,MATCH(dms_TradingName,dms_TradingName_List)) -> 5 | D70: dms_FRCPlength_Num | E70: =INDEX(dms_FRCPlength_List,MATCH(dms_TradingName,dms_TradingName_List))
B71: Single year RIN?
B72: Single Year ABC RIN ? | C72: =IF(dms_Model="EB",1,0) -> 0 | D72: dms_EB
C73: =IF(dms_Model="CA",1,0) -> 0 | D73: dms_CA | E73: =dms_SingleYear_Model
C74: =IF(dms_Model="ARR",1,0) -> 0 | D74: dms_ARR
B75: Is this a single Year ABC RIN? | C75: =IF(SUM(dms_SingleYear_Model)=1,"yes","no") -> no | D75: dms_SingleYearModel | E75: =IF(SUM(dms_SingleYear_Model)=1,"yes","no")
B76: Single Year Final Year Result | C76: =IF(AND(dms_SingleYearModel="yes",dms_MultiYear_Flag=0),CRY,0) -> 0 | D76: dms_SingleYear_FinalYear_Result | E76: =IFERROR(IF(SUM(dms_SingleYear_Model)<>0,(INDIRECT(dms_SingleYear_FinalYear_Ref)),"not a single year RIN"),"CRY not present")
B77: Multi year RIN?
B79: Multi Year Reset/Model? | C79: =IF(dms_Model_Span>1,"yes","no") -> yes
B80: Final year result for Reset/Model | C80: =IF(dms_Model_Span>1,dms_Reset_final_year,0) -> 2025-26 | D80: dms_MultiYear_FinalYear_Result
B82: Multi Year ABC RIN? | C82: =IF(dms_MultiYear_Flag=1,"yes","no") -> no | D82: dms_MultiYear_ABC_RIN
B83: Final year result for ABC multi year | C83: =IF(dms_MultiYear_Flag=1,C50,0) -> 0
B85: EB RINS
B86: Calendar Year for table 3.6 data | C86: =IFERROR(IF(dms_Segment="Transmission",dms_Cal_Year_B4_CRY,CRY),"CRY not present") -> CRY not present | D86: dms_0306_Year | E86: =IF(dms_Segment="Transmission",dms_Cal_Year_B4_CRY,CRY)
B87: CA RINS
B88: Find how many rows in tables 6.3 sustained interruptions? | E88: dms_060301_MaxRows only returns a valid value when cover sheet is attached to a CA file
C89: =IF(dms_Model<>"CA","not a CA","Is a CA") -> not a CA | E89: =IF(dms_Model<>"CA","not a CA","Is a CA")
B90: dms_060301_Avg_Duration_Sustained_Int_Values present? | C90: =IFERROR(IF(INDEX(dms_060301_Avg_Duration_Sustained_Int_Values,1,1)<>"","yes","no"),"no") -> no | D90: dms_060301_checkvalue | E90: =IFERROR(IF(INDEX(dms_060301_Avg_Duration_Sustained_Int_Values,1,1)<>"","yes","no"),"no")
C91: =IF(AND(dms_Model="CA",(dms_060301_checkvalue="no")),"error - NR not present","no errors") -> no errors | E91: =IF(AND(dms_Model="CA",(dms_060301_checkvalue="no")),"error - NR not present","no errors")
B92: Table 6.3.1 - last row reference | C92: =IFERROR(IF(dms_Model="CA",LOOKUP(2,1/(dms_060301_Avg_Duration_Sustained_Int_Values<>""),(ROW(dms_060301_Avg_Duration_Sustained_Int_Values))),"not a CA"),"6.3 not present") -> not a CA | D92: dms_060301_LastRow | E92: =IFERROR(IF(dms_Model="CA",LOOKUP(2,1/(dms_060301_Avg_Duration_Sustained_Int_Values<>""),(ROW(dms_060301_Avg_Duration_Sustained_Int_Values))),"not a CA"),"6.3 not present")
B93: Table 6.3.1 - max number rows | C93: =IFERROR(IF(dms_Model="CA",(dms_060301_LastRow-15),"not a CA"),"error") -> not a CA | D93: dms_060301_MaxRows | E93: =IFERROR(IF(dms_Model="CA",(dms_060301_LastRow-15),"not a CA"),"error")
B94: Table 6.6.3 - Public lighting repair - no. business days | C94: =INDEX(dms_663_List,MATCH(dms_TradingName,dms_TradingName_List)) -> 5 | D94: dms_663 | E94: =INDEX(dms_663_List,MATCH(dms_TradingName,dms_TradingName_List))
B95: ARR or RESET RINS
B96: How many rows in tables 6.1 or 6.7? (leap year?) | C96: insert dms_LeapYear NR if required | E96: 'dms_LeapYear is used to determine dms_060701_Max_Rows BUT it is only found on worksheet 6.1 or 6.7 and the date value in the cell is used to determine whether it is a leap year
B97: Is dms_LeapYear named range present? | C97: =IFERROR(IF(dms_LeapYear,"yes"),"no") -> no
B98: Table 6.7.1 - includes a leap year? | C98: =IFERROR(IF(MONTH(DATE(YEAR(dms_LeapYear),2,29))=2,"is a leap year","not a leap year"), "dms_LeapYear not present") -> dms_LeapYear not present | D98: dms_LeapYear_Result | E98: =IFERROR(IF(MONTH(DATE(YEAR(dms_LeapYear),2,29))=2,"is a leap year","not a leap year"),"dms_LeapYear not present")
B99: MaxRows if Reset and leap year | C99: =IF(dms_LeapYear_Result="is a leap year",1827,1826) -> 1826 | D99: dms_060701_Reset_MaxRows | E99: =IF(dms_LeapYear_Result="is a leap year",1827,1826) | H99: number of days present in Reset RIN table
B100: MaxRows if ARR and leap year | C100: =IF(dms_LeapYear_Result="is a leap year",366,365) -> 365 | D100: dms_060701_ARR_MaxRows | E100: =IF(dms_LeapYear_Result="is a leap year",366,365) | H100: number of days present in ARR RIN table
B101: Table 6.7.1 - Max Rows (leap year/ non leap year) | C101: =IF(dms_Model="ARR",dms_060701_ARR_MaxRows,IF(dms_Model="Reset",dms_060701_Reset_MaxRows,"not a relevant RIN type")) -> 1826 | D101: dms_060701_MaxRows | E101: =IF(dms_Model="ARR",dms_060701_ARR_MaxRows,IF(dms_Model="Reset",dms_060701_Reset_MaxRows,"not a relevant RIN type"))
B102: How many columns in 6.7? (4 or 5 feeder categories) | C102: =IF(dms_FifthFeeder_flag_NSP="NO","This NSP has only 4 feeder categories","This NSP has 5 feeder categories") -> This NSP has only 4 feeder categories
B103: Table 6.7.1 - Last column (# of feeder categories > 4) | C103: =IF(dms_FifthFeeder_flag_NSP="NO",10,12) -> 10 | D103: dms_060701_MaxCols | E103: =IF(dms_FifthFeeder_flag_NSP="NO",8,10)
B104: Table 6.7.1 - Number of offset rows | C104: =IF(dms_Model="ARR",15,9) -> 9 | D104: dms_060701_OffsetRows | E104: =IF(dms_Model="ARR",15,9)
B105: Start date for telephone answering in 6.1 or 6.7? | E105: Using 060101 as naming standard not 060701 for start dates
B106: Table 6.1.1 and 6.7.1 - Start Date as Text | C106: =IF(dms_SingleYearModel="yes",(CONCATENATE(IF(LEN(CRY)=4,"1-Jan-","1-Jul-"),LEFT(CRY,4))),(CONCATENATE(IF(LEN(PRCP_y4)=4,"1-Jan-","1-Jul-"),LEFT(PRCP_y4,4)))) -> 1-Jul-2014 | D106: dms_060101_StartDateTxt | E106: =IF(SUM(dms_SingleYear_Model)>1,(CONCATENATE(IF(LEN(CRY)=4,"1-Jan-","1-Jul-"),LEFT(CRY,4))),(CONCATENATE(IF(LEN(CRCP_y4)=4,"1-Jan-","1-Jul-"),LEFT(CRCP_y4,4))))
B107: Table 6.1.1 and 6.7.1 - Start Date as Date Value | C107: =DATEVALUE(dms_060701_StartDateTxt) -> 41821 | D107: dms_060101_StartDateVal | E107: =DATEVALUE(dms_060701_StartDateTxt)
B108: ARRs
B109: How many rows in table 6.8? | C109: insert dms_060801_StartCell NR if required | E109: dms_060801_StartCell is only found on worksheet 6.8 and is used to determine the starting date for the date range
B110: Is dms_060801_StartCell named range present? | C110: yes | E110: =IFERROR(IF((ROW(dms_060801_StartCell)-1)=1,"yes","yes"),"no")
B111: Table 6.8 - Number of offset rows | C111: 12 | D111: dms_0608_OffsetRows | E111: =IFERROR(IF(dms_Model="ARR",(ROW(dms_060801_StartCell)-1),"not an ARR"),"6.8 error")
B112: Table 6.8 - Last row | C112: 0 | D112: dms_0608_LastRow | E112: =IFERROR(IF(dms_060801_StartCell<>"",IF(dms_Model="ARR",(LOOKUP(2,1/(dms_060801_01_Values<>""),(ROW(dms_060801_01_Values)))),"not an ARR"),0),"0")
B113: Table 6.8 - MaxRows | C113: =IFERROR(IF(dms_Model="ARR",(MAX(0,dms_0608_LastRow-dms_0608_OffsetRows)),"not an ARR"),"0") -> not an ARR | D113: dms_060801_MaxRows | E113: =IFERROR(IF(dms_Model="ARR",(MAX(0,dms_0608_LastRow-dms_0608_OffsetRows)),"not an ARR"),"0")
B114: TNSP RESET RINS
B115: Table 7.9.4 only appears in TNSPs Reset RIN
B116: Table 7.9.4 - first year | C116: =LEFT(PRCP_y3,4) -> 2013 | D116: dms_070904_Start_Year | E116: =LEFT(PRCP_y3,4)
B118: MISC
B119: Distribution Determination Reference | C119: =INDEX(dms_DeterminationRef_List,MATCH(dms_TradingName,dms_TradingName_List)) -> distribution determination | D119: dms_DeterminationRef
B120: Public lighting NSP? | C120: =INDEX(dms_Public_Lighting_List,MATCH(dms_TradingName,dms_TradingName_List)) -> NO | D120: dms_Public_Lighting | E120: =INDEX(dms_Public_Lighting_List,MATCH(dms_TradingName,dms_TradingName_List))
B121: CBD Feeder for this business | C121: =INDEX(dms_CBD_flag,MATCH(dms_TradingName,dms_TradingName_List)) -> NO | D121: dms_CBD_flag_NSP
B122: Urban Feeder for this business | C122: =INDEX(dms_Urban_flag,MATCH(dms_TradingName,dms_TradingName_List)) -> NO | D122: dms_Urban_flag_NSP
B123: Short rural Feeder for this business | C123: =INDEX(dms_ShortRural_flag,MATCH(dms_TradingName,dms_TradingName_List)) -> NO | D123: dms_ShortRural_flag_NSP
B124: Long rural Feeder for this business | C124: =INDEX(dms_LongRural_flag,MATCH(dms_TradingName,dms_TradingName_List)) -> NO | D124: dms_LongRural_flag_NSP
B125: Fifth Feeder Category (eg. TasNetworks (D)) | C125: =INDEX(dms_FeederType_5_flag,MATCH(dms_TradingName,dms_TradingName_List)) -> NO | D125: dms_FifthFeeder_flag_NSP | E125: =INDEX(dms_FeederType_5_flag,MATCH(dms_TradingName,dms_TradingName_List))
B127: DISCARD FILES
B128: discard this record? | C128: NO | D128: dms_DISCARD | E128: If record is to be discarded from DB set this flag to YES
B130: SUBSET FILES
B131: Is this Submission File a Subset File | C131: NO | D131: dms_Partial
B134: REGULATORY YEARS FOR MULTI RYE SUBMISSIONS
B135: Multiple RYE flag | C135: NO | D135: dms_Multi_RYE_flag
C136: Manually specify RYE | D136: Named ranges to apply
C137: 2013 | D137: dms_RYE_01
C138: 2014 | D138: dms_RYE_02
C139: 2015 | D139: dms_RYE_03
C140: 2016 | D140: dms_RYE_04
C141: 2017 | D141: dms_RYE_05
C142: 2018 | D142: dms_RYE_06
C143: 2019 | D143: dms_RYE_07
C144: 2020 | D144: dms_RYE_08
C145: 2021 | D145: dms_RYE_09

Sheet Instructions
B2: =CONCATENATE(dms_Sector," ",dms_Segment," ", "Pipeline Service Provider") -> Gas Distribution Pipeline Service Provider
B3: =IF(dms_Model="Reset","Regulatory Proposal RIN Template","Annual Reporting RIN") -> Regulatory Proposal RIN Template
B4: =CONCATENATE("This template is to be used by ",dms_TradingNameFull," to fulfil its reporting obligations to the AER.") -> This template is to be used by Australian Gas Networks Limited (reporting data for SA) to fulfil its reporting obligations to the AER.
B5: INSTRUCTIONS
B6: GENERAL | C6: Complete the Business & other details worksheet before entering data or values in any other worksheets. The Business & other details worksheet is linked to other worksheets within the workbook and automatically generates certain column headings and conditional formatting.
B8: CONFIDENTIAL INFORMATION | C8: Please use the macro at the top of each worksheet to identify confidential information in the confidential workbook.
C9: -Do this by selecting the cell or cells that contain confidential information and then run the Mark selection as CONFIDENTIAL macro. This will format the cells a specific colour that is identified by the AER's database which in turn marks that information as confidential. -To reverse this, select the cell or cells and run the Return selection to NON-CONFIDENTIAL macro.
B11: RESPONSES | C11: Please return two (2) files to the AER: 1. A confidential version which must contain a complete set of all responses with confidential information marked using the Mark selection CONFIDENTIAL macro and which has been completed using the locked template file provided by the AER. 2. A public version with confidential information either removed completely or aggregated in some form together with writtten consent to disclose the public version of the response. Use the drop down box on the Business and other details worksheet to identify the file as either confidential ('consolidated') or public.
B13: AMENDMENTS | C13: If an NSP wishes to correct data previously submitted to the AER it should resubmit that data using the original completed submission as the starting point. Please make any necessary changes to the data. Data that is not being amended should be left unchanged. NSPs must identify the reason for the amendments in the Amendment Reason box on the Business and other details worksheet. NSPs may provide further details regarding any amendments in the Amendments worksheet. .
C14: NSP may use Amended Data macro to highlight cells that contain amended data. NB: if data is also CONFIDENTIAL, re-apply the Confidentiality macro after applying the Amended macro
C15: Please resubmit two (2) files - a confidential version and a public version of the amended submission to the AER
B17: UNITS OF MEASURE | C17: All amounts are to be unrounded and reported on a one for one basis: that is 1000 is to be entered as '1000'. Applicable units of measure may be identified in the table column headings or row descriptors.
B19: INPUT / NON-INPUT CELLS
D20: Yellow = Input cell (mandatory)
D21: Darker yellow = input cell (mandatory)
D22: Orange = input cell (if data available)
D23: Grey = Not applicable/No inputs required
D24: PLEASE DO NOT ENTER TEXT into cells that are to contain numeric data.
B27: NAVIGATION | C27: Many tables in the worksheets have been "grouped" to allow for easy navigation. To ungroup or group data use the outline symbols in the left margin (for Row groupings) or above the columns (for column groupings).

Sheet CONTENTS
B1: =INDEX(dms_Worksheet_List,MATCH(dms_Model,dms_Model_List)) -> REGULATORY REPORTING STATEMENT
B2: =INDEX(dms_TradingNameFull_List,MATCH(dms_TradingName,dms_TradingName_List)) -> Australian Gas Networks Limited (reporting data for SA)
B3: =dms_Header_Span -> 2019-20 - 2025-26
C7: CONTENTS
C9: SUBMISSION | D9: Business & other details
C11: EXPENDITURE | D11: E1. Expenditure Summary
D12: E2. Mains Repex
D13: E3. Mains Augex
D14: E4. Meter replacement
D15: E5. New Connections
D16: E6. Non-network
D17: E10. Overheads
D18: E12. ICT
D19: E13. Other capex
D20: E17. Step changes
D21: E20. Opex
D22: E21. ARS
D23: E25. Escalators
C25: NETWORK | D25: N1. Demand
D26: N2. Network characteristcs
C28: SERVICE | D28: S1.1. Customer numbers - by customer type
D29: S1.2. Customer numbers - by tariff
D30: S10. Supply Quality
D31: S11. Network reliability
C33: FINANCIAL | D33: F2. Capex
D34: F3. Revenue
C36: ADMIN | D36: Additional disclosures

Sheet Business & other details
V1: =INDEX(dms_Worksheet_List,MATCH(dms_Model,dms_Model_List)) -> REGULATORY REPORTING STATEMENT
V2: =INDEX(dms_TradingNameFull_List,MATCH(dms_TradingName,dms_TradingName_List)) -> Australian Gas Networks Limited (reporting data for SA)
V3: =dms_Header_Span -> 2019-20 - 2025-26
V4: BUSINESS & OTHER DETAILS
V6: INSTRUCTIONS
V7: Complete the following business details regulatory template before entering data or values in any other regulatory template. This regulatory template is linked to other cells within the spreadsheet and automatically generates column headings and conditional formatting to distinguish business specific input and non-input cells.
Q9: SUBMISSION PARTICULARS INPUT SHEET
V12: ENTITY DETAILS
V14: Business Name
V16: Short name | AL16: AGN (SA)
V17: ACN/ABN | AL17: =INDEX(dms_ABN_List,MATCH(dms_TradingName,dms_TradingName_List)) -> 19078551685
V21: Business Address | BQ21: Postal Address
V23: Address 1 | AL23: =INDEX(dms_Addr1_List,MATCH(dms_TradingName,dms_TradingName_List)) -> Level 6 | BI23: Address 1 | BQ23: =INDEX(dms_PAddr1_List,MATCH(dms_TradingName,dms_TradingName_List)) -> PO Box 6468
V24: Address 2 | AL24: =IF(ISBLANK(INDEX(dms_Addr2_List,MATCH(dms_TradingName,dms_TradingName_List))),"",(INDEX(dms_Addr2_List,MATCH(dms_TradingName,dms_TradingName_List)))) -> 400 King William Street | BI24: Address 2 | BQ24: =IF(ISBLANK(INDEX(dms_PAddr2_List,MATCH(dms_TradingName,dms_TradingName_List))),"",(INDEX(dms_PAddr2_List,MATCH(dms_TradingName,dms_TradingName_List)))) -> Halifax Street
V25: Suburb | AL25: =INDEX(dms_Suburb_List,MATCH(dms_TradingName,dms_TradingName_List)) -> ADELAIDE | BI25: Suburb | BQ25: =INDEX(dms_PSuburb_List,MATCH(dms_TradingName,dms_TradingName_List)) -> ADELAIDE
V26: State | AL26: =INDEX(dms_State_List,MATCH(dms_TradingName,dms_TradingName_List)) -> SA | AV26: Post code | BI26: State | BQ26: =INDEX(dms_PState_List,MATCH(dms_TradingName,dms_TradingName_List)) -> SA | CA26: Post code
BA28: `
V30: Contact Names
V32: Name | AL32: Peter Bucki | BI32: Name | BQ32: -- enter name --
V33: Phone | AL33: 84181112 | BI33: Phone | BQ33: -- enter phone number --
V34: Email | AL34: peter.bucki@agig.com.au | BI34: Email | BQ34: -- enter email address --
Q39: REGULATORY PERIODS
Z42: Forthcoming period | AL42: 2021-22 | AU42: =FRCP_y2 -> 2022-23 | BD42: =FRCP_y3 -> 2023-24 | BM42: =FRCP_y4 -> 2024-25 | BV42: =FRCP_y5 -> 2025-26
AL43: =FRCP_y6 -> 2026-27 | AU43: =FRCP_y7 -> 2027-28 | BD43: =FRCP_y8 -> 2028-29 | BM43: =FRCP_y9 -> 2029-30 | BV43: =FRCP_y10 -> 2030-31
AL44: =FRCP_y11 -> 2031-32 | AU44: =FRCP_y12 -> 2032-33 | BD44: =FRCP_y13 -> 2033-34 | BM44: =FRCP_y14 -> 2034-35 | BV44: =FRCP_y15 -> 2035-36
X46: RESETS | Z46: Current period | AL46: =CRCP_y1 -> 2016-17 | AU46: =CRCP_y2 -> 2017-18 | BD46: =CRCP_y3 -> 2018-19 | BM46: =CRCP_y4 -> 2019-20 | BV46: =CRCP_y5 -> 2020-21
AL47: =CRCP_y6 -> 2021-22 | AU47: =CRCP_y7 -> 2022-23 | BD47: =CRCP_y8 -> 2023-24 | BM47: =CRCP_y9 -> 2024-25 | BV47: =CRCP_y10 -> 2025-26
AL48: =CRCP_y11 -> 2026-27 | AU48: =CRCP_y12 -> 2027-28 | BD48: =CRCP_y13 -> 2028-29 | BM48: =CRCP_y14 -> 2029-30 | BV48: =CRCP_y15 -> 2030-31
Z50: Previous period | AL50: =PRCP_y1 -> 2011-12 | AU50: =PRCP_y2 -> 2012-13 | BD50: =PRCP_y3 -> 2013-14 | BM50: =PRCP_y4 -> 2014-15 | BV50: =PRCP_y5 -> 2015-16
AL51: =PRCP_y6 -> 2016-17 | AU51: =PRCP_y7 -> 2017-18 | BD51: =PRCP_y8 -> 2018-19 | BM51: =PRCP_y9 -> 2019-20 | BV51: =PRCP_y10 -> 2020-21
AL52: =PRCP_y11 -> 2021-22 | AU52: =PRCP_y12 -> 2022-23 | BD52: =PRCP_y13 -> 2023-24 | BM52: =PRCP_y14 -> 2024-25 | BV52: =PRCP_y15 -> 2025-26
Z54: Commencing year | AL54: 2019-20
X55: ANNUAL RINS
Z56: Final year | AL56: 2025-26
Q60: SUBMISSION DETAILS
Z62: RIN type | AL62: =INDIRECT(dms_Model) -> Regulatory Reporting (Reset)
Z64: Source | AL64: Regulatory proposal
X66: THIS FILE | Z66: Data Quality | AL66: Consolidated
Z68: Confidentiality Status | AL68: Public
Z70: Amended RIN Amendment Reason | AL70: .
Z74: Submission Date | AL74: 2020-07-01 | BE74: Please enter date this file submitted to AER

Sheet E1. Expenditure Summary
B1: =INDEX(dms_Worksheet_List,MATCH(dms_Model,dms_Model_List)) -> REGULATORY REPORTING STATEMENT
B2: =INDEX(dms_TradingNameFull_List,MATCH(dms_TradingName,dms_TradingName_List)) -> Australian Gas Networks Limited (reporting data for SA)
B3: =dms_Header_Span -> 2019-20 - 2025-26
B4: E1. EXPENDITURE SUMMARY
B7: E1.1 - CAPEX
B8: E1.1.1 - REFERENCE SERVICES
C9: EXPENDITURE
C10: =CONCATENATE("$0's, real ",dms_DollarReal) -> $0's, real June 2021
C11: =CRCP_y4 -> 2019-20 | D11: =CRCP_y5 -> 2020-21 | E11: =FRCP_y1 -> 2021-22 | F11: =FRCP_y2 -> 2022-23 | G11: =FRCP_y3 -> 2023-24 | H11: =FRCP_y4 -> 2024-25 | I11: =FRCP_y5 -> 2025-26
B12: Connections | C12: 21438611.15 | D12: 49814736.56 | E12: 26763087.61 | F12: 27619776.68 | G12: 27643865.93 | H12: 26729445.71 | I12: 26379129.36
B13: Mains replacement | C13: 59983180.4 | D13: 55510367.57 | E13: 51315195.65 | F13: 51561344.51 | G13: 54359144.02 | H13: 55269024.66 | I13: 48488837.2
B14: Mains augmentation | C14: 2567833.985 | D14: 1527961.151 | E14: 3597618.085 | F14: 1216426.764 | G14: 0 | H14: 0 | I14: 0
B15: Telemetry | C15: 109276.444 | D15: 484439.6552 | E15: 521713.1105 | F15: 358132.6756 | G15: 360251.0809 | H15: 324309.0713 | I15: 268788.2092
B16: Meter replacement | C16: 3563542.97 | D16: 3357679.205 | E16: 3183411.241 | F16: 3105013.923 | G16: 4504920.929 | H16: 3758412.963 | I16: 4430487.255
B17: ICT | C17: 9022536.382 | D17: 23115474.97 | E17: 2167895.255 | F17: 5105052.496 | G17: 10319709.84 | H17: 10364127.89 | I17: 5534545.592
B18: Capitalised network overheads | C18: 9387852.108 | D18: 8323408.612 | E18: 9530382.653 | F18: 9690783.188 | G18: 9758168.633 | H18: 9731237.005 | I18: 9472490.529
B19: Capitalised corporate overheads
B20: Other capex | C20: 7682803.342 | D20: 14489267.72 | E20: 13006441.77 | F20: 20006673.47 | G20: 15320596.65 | H20: 14649924.27 | I20: 12415671.55
B21: Capital contributions included in the above | C21: 3969787.047 | D21: 3353820.893 | E21: 0 | F21: 0 | G21: 680242.7461 | H21: 883826.1363 | I21: 693107.8753
B22: Total (less capital contributions) | C22: =SUM(C12:C20)-C21 -> 109785849.7 | D22: 153269514.5 | E22: 110085745.4 | F22: 118663203.7 | G22: 121586414.3 | H22: 119942655.4 | I22: 106296841.8
B24: E1.1.2 - NON-REFERENCE SERVICES
B50: Capital contributions included in the above
B51: Total | C51: =SUM(C25:C49)-C50 -> 0 | D51: 0 | E51: 0 | F51: 0 | G51: 0 | H51: 0 | I51: 0
B54: E1.2 - OPEX
B55: E1.2.1 - REFERENCE SERVICES
C56: EXPENDITURE
C57: =CONCATENATE("$0's, real ",dms_DollarReal) -> $0's, real June 2021
C58: =CRCP_y4 -> 2019-20 | D58: =CRCP_y5 -> 2020-21 | E58: =FRCP_y1 -> 2021-22 | F58: =FRCP_y2 -> 2022-23 | G58: =FRCP_y3 -> 2023-24 | H58: =FRCP_y4 -> 2024-25 | I58: =FRCP_y5 -> 2025-26
B59: ='E20. Opex'!B44 -> repairs and maintenance | C59: ='E20. Opex'!F44 -> 43357040.1 | D59: ='E20. Opex'!G44 -> 43958938.08 | E59: ='E20. Opex'!H44 -> 44235516.06 | F59: ='E20. Opex'!I44 -> 44647639.1 | G59: ='E20. Opex'!J44 -> 45151308.53 | H59: ='E20. Opex'!K44 -> 45649775.57 | I59: ='E20. Opex'!L44 -> 46106446.23
B60: ='E20. Opex'!B45 -> marketing and retail incentives | C60: ='E20. Opex'!F45 -> 5278996.8 | D60: ='E20. Opex'!G45 -> 5352281.727 | E60: ='E20. Opex'!H45 -> 5385956.864 | F60: ='E20. Opex'!I45 -> 5436135.479 | G60: ='E20. Opex'!J45 -> 5497460.451 | H60: ='E20. Opex'!K45 -> 5558152.001 | I60: ='E20. Opex'!L45 -> 5613754.572
B61: ='E20. Opex'!B46 -> debt raising | C61: ='E20. Opex'!F46 -> 1209087 | D61: ='E20. Opex'!G46 -> 1212370.344 | E61: ='E20. Opex'!H46 -> 859896.9104 | F61: ='E20. Opex'!I46 -> 866952.1746 | G61: ='E20. Opex'!J46 -> 876502.836 | H61: ='E20. Opex'!K46 -> 885806.7746 | I61: ='E20. Opex'!L46 -> 895757.6078
B62: ='E20. Opex'!B47 -> equity raising | C62: ='E20. Opex'!F47 -> 0 | D62: ='E20. Opex'!G47 -> 0 | E62: ='E20. Opex'!H47 -> 0 | F62: ='E20. Opex'!I47 -> 0 | G62: ='E20. Opex'!J47 -> 0 | H62: ='E20. Opex'!K47 -> 0 | I62: ='E20. Opex'!L47 -> 0
B63: ='E20. Opex'!B48 -> unaccounted for gas | C63: ='E20. Opex'!F48 -> 8859178.094 | D63: ='E20. Opex'!G48 -> 8854274.472 | E63: ='E20. Opex'!H48 -> 9443174.4 | F63: ='E20. Opex'!I48 -> 9443174.4 | G63: ='E20. Opex'!J48 -> 9443174.4 | H63: ='E20. Opex'!K48 -> 9443174.4 | I63: ='E20. Opex'!L48 -> 9443174.4
B64: ='E20. Opex'!B49 -> jurisdictional charges | C64: ='E20. Opex'!F49 -> 0 | D64: ='E20. Opex'!G49 -> 0 | E64: ='E20. Opex'!H49 -> 0 | F64: ='E20. Opex'!I49 -> 0 | G64: ='E20. Opex'!J49 -> 0 | H64: ='E20. Opex'!K49 -> 0 | I64: ='E20. Opex'!L49 -> 0
B65: ='E20. Opex'!B50 -> GSL payments | C65: ='E20. Opex'!F50 -> 0 | D65: ='E20. Opex'!G50 -> 0 | E65: ='E20. Opex'!H50 -> 0 | F65: ='E20. Opex'!I50 -> 0 | G65: ='E20. Opex'!J50 -> 0 | H65: ='E20. Opex'!K50 -> 0 | I65: ='E20. Opex'!L50 -> 0
B66: ='E20. Opex'!B51 -> other opex | C66: ='E20. Opex'!F51 -> 9358128.45 | D66: ='E20. Opex'!G51 -> 9488041.345 | E66: ='E20. Opex'!H51 -> 13275669.58 | F66: ='E20. Opex'!I51 -> 13640519.17 | G66: ='E20. Opex'!J51 -> 13919948.21 | H66: ='E20. Opex'!K51 -> 14117409.57 | I66: ='E20. Opex'!L51 -> 14280106.4
B67: Total | C67: =SUM(C59:C66) -> 68062430.44 | D67: 68865905.97 | E67: 73200213.82 | F67: 74034420.32 | G67: 74888394.42 | H67: 75654318.32 | I67: 76339239.2
B69: E1.2.2 - NON-REFERENCE SERVICES
B70: =IF(ISBLANK('E20. Opex'!B58),"",'E20. Opex'!B58) -> Special account investigation
B71: =IF(ISBLANK('E20. Opex'!B59),"",'E20. Opex'!B59) -> No access
B72: =IF(ISBLANK('E20. Opex'!B60),"",'E20. Opex'!B60) -> Same day service premium
B73: =IF(ISBLANK('E20. Opex'!B61),"",'E20. Opex'!B61) -> MFX unable to be completed
B74: =IF(ISBLANK('E20. Opex'!B62),"",'E20. Opex'!B62) -> 
B75: =IF(ISBLANK('E20. Opex'!B63),"",'E20. Opex'!B63) -> 
B76: =IF(ISBLANK('E20. Opex'!B64),"",'E20. Opex'!B64) -> 
B77: =IF(ISBLANK('E20. Opex'!B65),"",'E20. Opex'!B65) -> 
B78: =IF(ISBLANK('E20. Opex'!B66),"",'E20. Opex'!B66) -> 
B79: =IF(ISBLANK('E20. Opex'!B67),"",'E20. Opex'!B67) -> 
B80: =IF(ISBLANK('E20. Opex'!B68),"",'E20. Opex'!B68) -> 
B81: =IF(ISBLANK('E20. Opex'!B69),"",'E20. Opex'!B69) -> 
B82: =IF(ISBLANK('E20. Opex'!B70),"",'E20. Opex'!B70) -> 
B83: =IF(ISBLANK('E20. Opex'!B71),"",'E20. Opex'!B71) -> 
B84: =IF(ISBLANK('E20. Opex'!B72),"",'E20. Opex'!B72) -> 
B85: =IF(ISBLANK('E20. Opex'!B73),"",'E20. Opex'!B73) -> 
B86: =IF(ISBLANK('E20. Opex'!B74),"",'E20. Opex'!B74) -> 
B87: =IF(ISBLANK('E20. Opex'!B75),"",'E20. Opex'!B75) -> 
B88: =IF(ISBLANK('E20. Opex'!B76),"",'E20. Opex'!B76) -> 
B89: =IF(ISBLANK('E20. Opex'!B77),"",'E20. Opex'!B77) -> 
B90: =IF(ISBLANK('E20. Opex'!B78),"",'E20. Opex'!B78) -> 
B91: =IF(ISBLANK('E20. Opex'!B79),"",'E20. Opex'!B79) -> 
B92: =IF(ISBLANK('E20. Opex'!B80),"",'E20. Opex'!B80) -> 
B93: =IF(ISBLANK('E20. Opex'!B81),"",'E20. Opex'!B81) -> 
B94: =IF(ISBLANK('E20. Opex'!B82),"",'E20. Opex'!B82) -> 
B95: Total | C95: =SUM(C70:C94) -> 0 | D95: =SUM(D70:D94) -> 0 | E95: 0 | F95: 0 | G95: 0 | H95: 0 | I95: 0
B98: E1.3 - CAPCONS
B99: E1.3.1 - REFERENCE SERVICES
C100: EXPENDITURE
C101: =CONCATENATE("$0's, real ",dms_DollarReal) -> $0's, real June 2021
C102: =CRCP_y4 -> 2019-20 | D102: =CRCP_y5 -> 2020-21 | E102: =FRCP_y1 -> 2021-22 | F102: =FRCP_y2 -> 2022-23 | G102: =FRCP_y3 -> 2023-24 | H102: =FRCP_y4 -> 2024-25 | I102: =FRCP_y5 -> 2025-26
B103: Connections
B104: Mains replacement
B105: Mains augmentation
B106: Telemetry
B107: Meter replacement
B108: ICT
B109: Capitalised network overheads
B110: Capitalised corporate overheads
B111: Other capex | C111: 3969787.047 | D111: 3353820.893 | E111: 0 | F111: 0 | G111: 680242.7461 | H111: 883826.1363 | I111: 693107.8753
B112: Total | C112: =SUM(C103:C111) -> 3969787.047 | D112: 3353820.893 | E112: 0 | F112: 0 | G112: 680242.7461 | H112: 883826.1363 | I112: 693107.8753
B114: E1.3.2 - NON-REFERENCE SERVICES
C115: EXPENDITURE
C116: =CONCATENATE("$0's, real ",dms_DollarReal) -> $0's, real June 2021
C117: =CRCP_y4 -> 2019-20 | D117: =CRCP_y5 -> 2020-21 | E117: =FRCP_y1 -> 2021-22 | F117: =FRCP_y2 -> 2022-23 | G117: =FRCP_y3 -> 2023-24 | H117: =FRCP_y4 -> 2024-25 | I117: =FRCP_y5 -> 2025-26
B142: Total | C142: =SUM(C118:C141) -> 0 | D142: 0 | E142: 0 | F142: 0 | G142: 0 | H142: 0 | I142: 0
B145: E1.4 - CAPITALISED OVERHEADS
B146: E1.4.1 - REFERENCE SERVICES
C147: EXPENDITURE
C148: =CONCATENATE("$0's, real ",dms_DollarReal) -> $0's, real June 2021
C149: =CRCP_y4 -> 2019-20 | D149: =CRCP_y5 -> 2020-21 | E149: =FRCP_y1 -> 2021-22 | F149: =FRCP_y2 -> 2022-23 | G149: =FRCP_y3 -> 2023-24 | H149: =FRCP_y4 -> 2024-25 | I149: =FRCP_y5 -> 2025-26
B150: Connections | C150: 2110881.397 | D150: 3312139.816 | E150: 2536537.674 | F150: 2456192.734 | G150: 2397628.029 | H150: 2341329.48 | I150: 2562372.473
B151: Mains replacement | C151: 5906043.947 | D151: 3690837.517 | E151: 4863524.304 | F151: 4585286.884 | G151: 4714717.098 | H151: 4841215.121 | I151: 4710028.902
B152: Mains augmentation | C152: 252833.2153 | D152: 101592.8481 | E152: 219271.551 | F152: 108175.3344 | G152: 0 | H152: 0 | I152: 0
B153: Telemetry | C153: 10759.54086 | D153: 32209.98406 | E153: 49446.64753 | F153: 31848.2979 | G153: 31245.56064 | H153: 28407.41247 | I153: 26109.1069
B154: Meter replacement | C154: 350872.382 | D154: 223249.2582 | E154: 301715.6564 | F154: 276125.0652 | G154: 390724.1019 | H154: 329213.077 | I154: 430361.3826
B155: ICT | C155: 0 | D155: 0 | E155: 205467.6228 | F155: 453986.033 | G155: 895056.6328 | H155: 907831.7013 | I155: 537605.5852
B156: Other capex | C156: 756461.626 | D156: 963379.1889 | E156: 1354419.197 | F156: 1779168.839 | G156: 1328797.211 | H156: 1283240.212 | I156: 1206013.079
B157: Capital contributions included in the above
B158: Total (less capital contributions) | C158: =SUM(C150:C156)-C157 -> 9387852.108 | D158: 8323408.612 | E158: 9530382.653 | F158: 9690783.188 | G158: 9758168.633 | H158: 9731237.005 | I158: 9472490.529
B162: E1.4.2 - NON-REFERENCE SERVICES
C163: EXPENDITURE
C164: =CONCATENATE("$0's, real ",dms_DollarReal) -> $0's, real June 2021
C165: =CRCP_y4 -> 2019-20 | D165: =CRCP_y5 -> 2020-21 | E165: =FRCP_y1 -> 2021-22 | F165: =FRCP_y2 -> 2022-23 | G165: =FRCP_y3 -> 2023-24 | H165: =FRCP_y4 -> 2024-25 | I165: =FRCP_y5 -> 2025-26
B188: Capital contributions included in the above
B189: Total (less capital contributions) | C189: =SUM(C166:C187)-C188 -> 0 | D189: 0 | E189: 0 | F189: 0 | G189: 0 | H189: 0 | I189: 0

Sheet E2. Mains Repex
B1: =INDEX(dms_Worksheet_List,MATCH(dms_Model,dms_Model_List)) -> REGULATORY REPORTING STATEMENT
B2: =INDEX(dms_TradingNameFull_List,MATCH(dms_TradingName,dms_TradingName_List)) -> Australian Gas Distribution Co.
B3: =dms_Header_Span -> 2019-20 - 2025-26
B4: E2. MAINS REPLACEMENT
B8: Please list all projects here:
B61: E2.1 - CAPEX
B62: E2.1.1 - PROACTIVE - BY PROJECT
D63: EXPENDITURE
D64: =CONCATENATE("$0's, real ",dms_DollarReal) -> $0's, real June 2021
D65: =CRCP_y4 -> 2019-20 | E65: =CRCP_y5 -> 2020-21 | F65: =FRCP_y1 -> 2021-22 | G65: =FRCP_y2 -> 2022-23 | H65: =FRCP_y3 -> 2023-24 | I65: =FRCP_y4 -> 2024-25 | J65: =FRCP_y5 -> 2025-26
B66: A. DIRECT INTERNAL LABOUR EXPENDITURE
B72: =IF(ISBLANK(dms_E2_Projects_35),"",dms_E2_Projects_35) -> 
B73: =IF(ISBLANK(dms_E2_Projects_49),"",dms_E2_Projects_49) -> 
B74: =IF(ISBLANK(dms_E2_Projects_50),"",dms_E2_Projects_50) -> 
B75: Other projects with expenditure of less than $500,000
C76: Total | D76: =SUM(D67:D75) -> 0 | E76: 0 | F76: 0 | G76: 0 | H76: 0 | I76: 0 | J76: 0
B78: B. DIRECT CONTRACTOR EXPENDITURE
D79: EXPENDITURE
D80: =CONCATENATE("$0's, real ",dms_DollarReal) -> $0's, real June 2021
D81: =CRCP_y4 -> 2019-20 | E81: =CRCP_y5 -> 2020-21 | F81: =FRCP_y1 -> 2021-22 | G81: =FRCP_y2 -> 2022-23 | H81: =FRCP_y3 -> 2023-24 | I81: =FRCP_y4 -> 2024-25 | J81: =FRCP_y5 -> 2025-26
B82: Bower Road-Trunk SIB
B83: Churchill Road Trunk-Trunk SIB
B84: Kelly Rd-Trunk SIB
B85: Angle Park-HDPE Class 250
B86: Ascot Park-HDPE Class 250
B87: Black Forest-HDPE Class 250
B88: Croydon Park-HDPE Class 250
B89: Davaren Park-HDPE Class 250
B90: Evandale-HDPE Class 250
B91: Ferryden Park-HDPE Class 250
B92: Hendon-HDPE Class 250
B93: Highbury-HDPE Class 250
B94: Hilton Mile End B-HDPE Class 250
B95: Ingle Farm-HDPE Class 250
B96: Mitcham-HDPE Class 250
B97: Newton PE-HDPE Class 250
B98: North Haven-HDPE Class 250
B99: Park Holme-HDPE Class 250
B100: Plympton Park-HDPE Class 250
B101: Port Adelaide-HDPE Class 250
B102: Redwood Park-HDPE Class 250
B103: Rostrevor Magill-HDPE Class 250
B104: Surrey Downs-HDPE Class 250
B105: West Croydon-HDPE Class 250
B106: West Lakes Delfin Island-HDPE Class 250
B107: West Lakes-HDPE Class 250
B108: HDPE_Reallocation-HDPE Class 250
B109: HDPE_Reallocation-HDPE Class 575
B110: Aberfoyle Park-HDPE Class 575
B111: Allenby Gardens-HDPE Class 575
B112: Andrews Farm-HDPE Class 575
B113: Angle Vale-HDPE Class 575
B114: Belair-HDPE Class 575
B115: Blakeview-HDPE Class 575
B116: Coromandel Valley-HDPE Class 575
B117: Eastwood-HDPE Class 575
B118: Edwardstown-HDPE Class 575
B119: Elizabeth North-HDPE Class 575
B120: Elizabeth Park A-HDPE Class 575
B121: Elizabeth Vale-HDPE Class 575
B122: Evanston Park-HDPE Class 575
B123: Flagstaff Hill-HDPE Class 575
B124: Fullarton-HDPE Class 575
B125: Gawler East-HDPE Class 575
B126: Glenunga-HDPE Class 575
B127: Gulfview Heights-HDPE Class 575
B128: Hawthorndene-HDPE Class 575
B129: Kings Park-HDPE Class 575
B130: Kurralta Park A-HDPE Class 575
B131: Malvern-HDPE Class 575
B132: Melrose Park-HDPE Class 575
B133: Morphett Vale A-HDPE Class 575
B134: Norwood A-HDPE Class 575
B135: Pennington-HDPE Class 575
B136: Salisbury Heights A-HDPE Class 575
B137: Torrens Park A-HDPE Class 575
B138: Torrensville B-HDPE Class 575
B139: Unley-HDPE Class 575
B140: Westbourne Park-HDPE Class 575
B141: Woodcroft-HDPE Class 575
B142: Cheltenham Parade-CI - Block PI
B143: Fulham-CI - Block PI
B144: Fulham Gardens-CI - Block PI
B145: Hilton Mile End A-CI - Block PI
B146: Brooklyn Park-CI - Block PI
B147: Kilburn-CI - Block PI
B148: Medindie-CI - Block PI
B149: Newton CI-CI - Block PI
B150: Torrensville A-CI - Block PI
B151: Tranmere-CI - Block PI
B152: Vale Park-CI - Block PI
B153: Churchill Road Trunk-CI - Block PI
B154: CBD Block
B155: Mains Replacement - General Block Replacement
B156: Mains Replacement - North Adelaide Block Replacement
B157: Mains Replacement - HDPE Replacement Class 250
B158: HDPE 575 DN40 MP
B159: HDPE 575 DN40 HP
B160: =IF(ISBLANK(dms_E2_Projects_43),"",dms_E2_Projects_43) -> 
B161: =IF(ISBLANK(dms_E2_Projects_44),"",dms_E2_Projects_44) -> 
B162: =IF(ISBLANK(dms_E2_Projects_45),"",dms_E2_Projects_45) -> 
B163: =IF(ISBLANK(dms_E2_Projects_46),"",dms_E2_Projects_46) -> 
B164: =IF(ISBLANK(dms_E2_Projects_47),"",dms_E2_Projects_47) -> 
B165: =IF(ISBLANK(dms_E2_Projects_48),"",dms_E2_Projects_48) -> 
B166: =IF(ISBLANK(dms_E2_Projects_49),"",dms_E2_Projects_49) -> 
B167: =IF(ISBLANK(dms_E2_Projects_50),"",dms_E2_Projects_50) -> 
B168: Other projects with expenditure of less than $500,000
C169: Total | D169: =SUM(D82:D168) -> 0 | E169: =SUM(E82:E168) -> 0 | F169: 0 | G169: 0 | H169: 0 | I169: 0 | J169: 0
B171: C. OTHER INTERNAL DIRECT EXPENDITURE
D172: EXPENDITURE
D173: =CONCATENATE("$0's, real ",dms_DollarReal) -> $0's, real June 2021
D174: =CRCP_y4 -> 2019-20 | E174: =CRCP_y5 -> 2020-21 | F174: =FRCP_y1 -> 2021-22 | G174: =FRCP_y2 -> 2022-23 | H174: =FRCP_y3 -> 2023-24 | I174: =FRCP_y4 -> 2024-25 | J174: =FRCP_y5 -> 2025-26
B175: =IF(ISBLANK(dms_E2_Projects_01),"",dms_E2_Projects_01) -> 
B176: =IF(ISBLANK(dms_E2_Projects_02),"",dms_E2_Projects_02) -> 
B177: =IF(ISBLANK(dms_E2_Projects_03),"",dms_E2_Projects_03) -> 
B178: =IF(ISBLANK(dms_E2_Projects_04),"",dms_E2_Projects_04) -> 
B179: =IF(ISBLANK(dms_E2_Projects_05),"",dms_E2_Projects_05) -> 
B180: =IF(ISBLANK(dms_E2_Projects_06),"",dms_E2_Projects_06) -> 
B181: =IF(ISBLANK(dms_E2_Projects_07),"",dms_E2_Projects_07) -> 
B182: =IF(ISBLANK(dms_E2_Projects_08),"",dms_E2_Projects_08) -> 
B183: =IF(ISBLANK(dms_E2_Projects_09),"",dms_E2_Projects_09) -> 
B184: =IF(ISBLANK(dms_E2_Projects_10),"",dms_E2_Projects_10) -> 
B185: =IF(ISBLANK(dms_E2_Projects_11),"",dms_E2_Projects_11) -> 
B186: =IF(ISBLANK(dms_E2_Projects_12),"",dms_E2_Projects_12) -> 
B187: =IF(ISBLANK(dms_E2_Projects_13),"",dms_E2_Projects_13) -> 
B188: =IF(ISBLANK(dms_E2_Projects_14),"",dms_E2_Projects_14) -> 
B189: =IF(ISBLANK(dms_E2_Projects_15),"",dms_E2_Projects_15) -> 
B190: =IF(ISBLANK(dms_E2_Projects_16),"",dms_E2_Projects_16) -> 
B191: =IF(ISBLANK(dms_E2_Projects_17),"",dms_E2_Projects_17) -> 
B192: =IF(ISBLANK(dms_E2_Projects_18),"",dms_E2_Projects_18) -> 
B193: =IF(ISBLANK(dms_E2_Projects_18),"",dms_E2_Projects_18) -> 
B194: =IF(ISBLANK(dms_E2_Projects_19),"",dms_E2_Projects_19) -> 
B195: =IF(ISBLANK(dms_E2_Projects_20),"",dms_E2_Projects_20) -> 
B196: =IF(ISBLANK(dms_E2_Projects_21),"",dms_E2_Projects_21) -> 
B197: =IF(ISBLANK(dms_E2_Projects_22),"",dms_E2_Projects_22) -> 
B198: =IF(ISBLANK(dms_E2_Projects_23),"",dms_E2_Projects_23) -> 
B199: =IF(ISBLANK(dms_E2_Projects_24),"",dms_E2_Projects_24) -> 
B200: =IF(ISBLANK(dms_E2_Projects_25),"",dms_E2_Projects_26) -> 
B201: =IF(ISBLANK(dms_E2_Projects_27),"",dms_E2_Projects_27) -> 
B202: =IF(ISBLANK(dms_E2_Projects_28),"",dms_E2_Projects_28) -> 
B203: =IF(ISBLANK(dms_E2_Projects_29),"",dms_E2_Projects_29) -> 
B204: =IF(ISBLANK(dms_E2_Projects_30),"",dms_E2_Projects_30) -> 
B205: =IF(ISBLANK(dms_E2_Projects_31),"",dms_E2_Projects_31) -> 
B206: =IF(ISBLANK(dms_E2_Projects_32),"",dms_E2_Projects_32) -> 
B207: =IF(ISBLANK(dms_E2_Projects_33),"",dms_E2_Projects_33) -> 
B208: =IF(ISBLANK(dms_E2_Projects_34),"",dms_E2_Projects_34) -> 
B209: =IF(ISBLANK(dms_E2_Projects_35),"",dms_E2_Projects_35) -> 
B210: =IF(ISBLANK(dms_E2_Projects_36),"",dms_E2_Projects_36) -> 
B211: =IF(ISBLANK(dms_E2_Projects_37),"",dms_E2_Projects_37) -> 
B212: =IF(ISBLANK(dms_E2_Projects_38),"",dms_E2_Projects_38) -> 
B213: =IF(ISBLANK(dms_E2_Projects_39),"",dms_E2_Projects_39) -> 
B214: =IF(ISBLANK(dms_E2_Projects_40),"",dms_E2_Projects_40) -> 
B215: =IF(ISBLANK(dms_E2_Projects_41),"",dms_E2_Projects_41) -> 
B216: =IF(ISBLANK(dms_E2_Projects_42),"",dms_E2_Projects_42) -> 
B217: =IF(ISBLANK(dms_E2_Projects_43),"",dms_E2_Projects_43) -> 
B218: =IF(ISBLANK(dms_E2_Projects_44),"",dms_E2_Projects_44) -> 
B219: =IF(ISBLANK(dms_E2_Projects_45),"",dms_E2_Projects_45) -> 
B220: =IF(ISBLANK(dms_E2_Projects_46),"",dms_E2_Projects_46) -> 
B221: =IF(ISBLANK(dms_E2_Projects_47),"",dms_E2_Projects_47) -> 
B222: =IF(ISBLANK(dms_E2_Projects_48),"",dms_E2_Projects_48) -> 
B223: =IF(ISBLANK(dms_E2_Projects_49),"",dms_E2_Projects_49) -> 
B224: =IF(ISBLANK(dms_E2_Projects_50),"",dms_E2_Projects_50) -> 
B225: Other projects with expenditure of less than $500,000
C226: Total | D226: =SUM(D175:D225) -> 0 | E226: =SUM(E175:E225) -> 0 | F226: 0 | G226: 0 | H226: 0 | I226: 0 | J226: 0
B228: D. TOTAL OVERHEAD EXPENDITURE
D229: EXPENDITURE
D230: =CONCATENATE("$0's, real ",dms_DollarReal) -> $0's, real June 2021
D231: =CRCP_y4 -> 2019-20 | E231: =CRCP_y5 -> 2020-21 | F231: =FRCP_y1 -> 2021-22 | G231: =FRCP_y2 -> 2022-23 | H231: =FRCP_y3 -> 2023-24 | I231: =FRCP_y4 -> 2024-25 | J231: =FRCP_y5 -> 2025-26
B232: =B88 -> Croydon Park-HDPE Class 250 | D232: 45912.74829 | E232: 0
B233: Davaren Park-HDPE Class 250 | D233: 212211.4586 | E233: 0
B234: Evandale-HDPE Class 250 | D234: 102944.8778 | E234: 0
B235: Ferryden Park-HDPE Class 250 | D235: 0 | E235: 2215.59592
B236: Hendon-HDPE Class 250 | D236: 878.0154758 | E236: 0
B237: Highbury-HDPE Class 250 | D237: 0 | E237: 88545.82288
B238: Hilton Mile End B-HDPE Class 250 | D238: 56516.46984 | E238: 0
B239: Ingle Farm-HDPE Class 250 | D239: 0 | E239: 25510.55866
B240: Mitcham-HDPE Class 250 | D240: 76086.97268 | E240: 0
B241: Newton PE-HDPE Class 250 | D241: 0 | E241: 83864.98642
B242: North Haven-HDPE Class 250 | D242: 0 | E242: 26758.78172
B243: Park Holme-HDPE Class 250 | D243: 114211.3289 | E243: 0
B244: Plympton Park-HDPE Class 250 | D244: 48521.90787 | E244: 10921.95172
B245: Port Adelaide-HDPE Class 250 | D245: 303793.3546 | E245: 29208.41946
B246: Redwood Park-HDPE Class 250 | D246: 0 | E246: 16086.47461
B247: Rostrevor Magill-HDPE Class 250 | D247: 43161.39234 | E247: 0
B248: Surrey Downs-HDPE Class 250 | D248: 256715.5511 | E248: 0
B249: West Croydon-HDPE Class 250 | D249: 0 | E249: 34201.31167
B250: West Lakes Delfin Island-HDPE Class 250 | D250: 0 | E250: 60928.88781
B251: West Lakes-HDPE Class 250 | D251: 121304.7697 | E251: 1357.442571
B252: HDPE_Reallocation-HDPE Class 250 | D252: 0 | E252: 42814.05074
B253: HDPE_Reallocation-HDPE Class 575 | D253: 0 | E253: 82554.35222
B254: Aberfoyle Park-HDPE Class 575 | D254: 57764.17604 | E254: 0
B255: Allenby Gardens-HDPE Class 575 | D255: 122298.3135 | E255: 0
B256: Andrews Farm-HDPE Class 575 | D256: 200591.8777 | E256: 1053.188202
B257: Angle Vale-HDPE Class 575 | D257: 8572.203724 | E257: 0
B258: Belair-HDPE Class 575 | D258: -27726.8045 | E258: -10063.79837
B259: Blakeview-HDPE Class 575 | D259: 29058.65974 | E259: 10547.21227
B260: Coromandel Valley-HDPE Class 575 | D260: 53104.70067 | E260: 0
B261: Eastwood-HDPE Class 575 | D261: 44326.56387 | E261: 0
B262: Edwardstown-HDPE Class 575 | D262: 45815.82018 | E262: 0
B263: Elizabeth North-HDPE Class 575 | D263: 0 | E263: 96527.43257
... 538 more rows

Sheet E3. Mains Augex
B1: =INDEX(dms_Worksheet_List,MATCH(dms_Model,dms_Model_List)) -> REGULATORY REPORTING STATEMENT
B2: =INDEX(dms_TradingNameFull_List,MATCH(dms_TradingName,dms_TradingName_List)) -> Australian Gas Distribution Co.
B3: =dms_Header_Span -> 2019-20 - 2025-26
B4: E3. MAINS AUGMENTATION
B7: Please list all projects here:
B8: 2160 NEW MAIN - IMPROVED SUPPLY
B9: 3065 MAJOR PROJECTS - ADELAIDE CBD HP MAINS EXT EAST
B10: SA115 Northern Metro HP and Gawler Gate Station (mains only)
B11: SA116 Southern Metro HP Duplication (McLaren Vale to Aldinga)
B12: Northern Metro HP and Gawler Gate Station (mains only)
B13: Southern Metro HP Duplication (McLaren Vale to Aldinga)
B60: E3.1 - CAPEX BY PROJECT
B61: A. DIRECT INTERNAL LABOUR EXPENDITURE
C62: EXPENDITURE
C63: =CONCATENATE("$0's, real ",dms_DollarReal) -> $0's, real June 2021
C64: =CRCP_y4 -> 2019-20 | D64: =CRCP_y5 -> 2020-21 | E64: =FRCP_y1 -> 2021-22 | F64: =FRCP_y2 -> 2022-23 | G64: =FRCP_y3 -> 2023-24 | H64: =FRCP_y4 -> 2024-25 | I64: =FRCP_y5 -> 2025-26
B115: Aggregate of other projects with total expenditure of less than $500,000
B116: Total | C116: =SUM(C65:C115) -> 0 | D116: =SUM(D65:D115) -> 0 | E116: 0 | F116: 0 | G116: 0 | H116: 0 | I116: 0
B118: B. DIRECT CONTRACTOR EXPENDITURE
C119: EXPENDITURE
C120: =CONCATENATE("$0's, real ",dms_DollarReal) -> $0's, real June 2021
C121: =CRCP_y4 -> 2019-20 | D121: =CRCP_y5 -> 2020-21 | E121: =FRCP_y1 -> 2021-22 | F121: =FRCP_y2 -> 2022-23 | G121: =FRCP_y3 -> 2023-24 | H121: =FRCP_y4 -> 2024-25 | I121: =FRCP_y5 -> 2025-26
B122: 2160 NEW MAIN - IMPROVED SUPPLY
B123: 3065 MAJOR PROJECTS - ADELAIDE CBD HP MAINS EXT EAST
B124: SA115 Northern Metro HP and Gawler Gate Station (mains only)
B125: SA116 Southern Metro HP Duplication (McLaren Vale to Aldinga)
B172: Aggregate of other projects with total expenditure of less than $500,000
B173: Total | C173: =SUM(C122:C172) -> 0 | D173: =SUM(D122:D172) -> 0 | E173: 0 | F173: 0 | G173: 0 | H173: 0 | I173: 0
B175: C. OTHER INTERNAL DIRECT EXPENDITURE
C176: EXPENDITURE
C177: =CONCATENATE("$0's, real ",dms_DollarReal) -> $0's, real June 2021
C178: =CRCP_y4 -> 2019-20 | D178: =CRCP_y5 -> 2020-21 | E178: =FRCP_y1 -> 2021-22 | F178: =FRCP_y2 -> 2022-23 | G178: =FRCP_y3 -> 2023-24 | H178: =FRCP_y4 -> 2024-25 | I178: =FRCP_y5 -> 2025-26
B229: Aggregate of other projects with total expenditure of less than $500,000
B230: Total | C230: =SUM(C179:C229) -> 0 | D230: 0 | E230: 0 | F230: 0 | G230: 0 | H230: 0 | I230: 0
B232: D. TOTAL OVERHEAD EXPENDITURE
C233: EXPENDITURE
C234: =CONCATENATE("$0's, real ",dms_DollarReal) -> $0's, real June 2021
C235: =CRCP_y4 -> 2019-20 | D235: =CRCP_y5 -> 2020-21 | E235: =FRCP_y1 -> 2021-22 | F235: =FRCP_y2 -> 2022-23 | G235: =FRCP_y3 -> 2023-24 | H235: =FRCP_y4 -> 2024-25 | I235: =FRCP_y5 -> 2025-26
B236: 2160 NEW MAIN - IMPROVED SUPPLY | C236: 230409.2903 | D236: 101592.8481 | E236: 0 | F236: 0 | G236: 0 | H236: 0 | I236: 0
B237: 3065 MAJOR PROJECTS - ADELAIDE CBD HP MAINS EXT EAST | C237: 22423.925 | D237: 0 | E237: 0 | F237: 0 | G237: 0 | H237: 0 | I237: 0
B238: Augmentation Overhead (ex Gate Station) | C238: 0 | D238: 0 | E238: 219271.551 | F238: 108175.3344 | G238: 0 | H238: 0 | I238: 0
B286: Aggregate of other projects with total expenditure of less than $500,000
B287: Total | C287: =SUM(C236:C286) -> 252833.2153 | D287: =SUM(D236:D286) -> 101592.8481 | E287: 219271.551 | F287: 108175.3344 | G287: 0 | H287: 0 | I287: 0
B289: E. RELATED PARTY MARGIN EXPENDITURE
C290: EXPENDITURE
C291: =CONCATENATE("$0's, real ",dms_DollarReal) -> $0's, real June 2021
C292: =CRCP_y4 -> 2019-20 | D292: =CRCP_y5 -> 2020-21 | E292: =FRCP_y1 -> 2021-22 | F292: =FRCP_y2 -> 2022-23 | G292: =FRCP_y3 -> 2023-24 | H292: =FRCP_y4 -> 2024-25 | I292: =FRCP_y5 -> 2025-26
B293: =IF(ISBLANK(dms_E3_Projects_01),"",dms_E3_Projects_01) -> 
B294: =IF(ISBLANK(dms_E3_Projects_02),"",dms_E3_Projects_02) -> 
B295: =IF(ISBLANK(dms_E3_Projects_03),"",dms_E3_Projects_03) -> 
B296: =IF(ISBLANK(dms_E3_Projects_04),"",dms_E3_Projects_04) -> 
B297: =IF(ISBLANK(dms_E3_Projects_05),"",dms_E3_Projects_05) -> 
B298: =IF(ISBLANK(dms_E3_Projects_06),"",dms_E3_Projects_06) -> 
B299: =IF(ISBLANK(dms_E3_Projects_07),"",dms_E3_Projects_07) -> 
B300: =IF(ISBLANK(dms_E3_Projects_08),"",dms_E3_Projects_08) -> 
B301: =IF(ISBLANK(dms_E3_Projects_09),"",dms_E3_Projects_09) -> 
B302: =IF(ISBLANK(dms_E3_Projects_10),"",dms_E3_Projects_10) -> 
B303: =IF(ISBLANK(dms_E3_Projects_11),"",dms_E3_Projects_11) -> 
B304: =IF(ISBLANK(dms_E3_Projects_12),"",dms_E3_Projects_12) -> 
B305: =IF(ISBLANK(dms_E3_Projects_13),"",dms_E3_Projects_13) -> 
B306: =IF(ISBLANK(dms_E3_Projects_14),"",dms_E3_Projects_14) -> 
B307: =IF(ISBLANK(dms_E3_Projects_15),"",dms_E3_Projects_15) -> 
B308: =IF(ISBLANK(dms_E3_Projects_16),"",dms_E3_Projects_16) -> 
B309: =IF(ISBLANK(dms_E3_Projects_17),"",dms_E3_Projects_17) -> 
B310: =IF(ISBLANK(dms_E3_Projects_18),"",dms_E3_Projects_18) -> 
B311: =IF(ISBLANK(dms_E3_Projects_18),"",dms_E3_Projects_18) -> 
B312: =IF(ISBLANK(dms_E3_Projects_19),"",dms_E3_Projects_19) -> 
B313: =IF(ISBLANK(dms_E3_Projects_20),"",dms_E3_Projects_20) -> 
B314: =IF(ISBLANK(dms_E3_Projects_21),"",dms_E3_Projects_21) -> 
B315: =IF(ISBLANK(dms_E3_Projects_22),"",dms_E3_Projects_22) -> 
B316: =IF(ISBLANK(dms_E3_Projects_23),"",dms_E3_Projects_23) -> 
B317: =IF(ISBLANK(dms_E3_Projects_24),"",dms_E3_Projects_24) -> 
B318: =IF(ISBLANK(dms_E3_Projects_25),"",dms_E3_Projects_26) -> 
B319: =IF(ISBLANK(dms_E3_Projects_27),"",dms_E3_Projects_27) -> 
B320: =IF(ISBLANK(dms_E3_Projects_28),"",dms_E3_Projects_28) -> 
B321: =IF(ISBLANK(dms_E3_Projects_29),"",dms_E3_Projects_29) -> 
B322: =IF(ISBLANK(dms_E3_Projects_30),"",dms_E3_Projects_30) -> 
B323: =IF(ISBLANK(dms_E3_Projects_31),"",dms_E3_Projects_31) -> 
B324: =IF(ISBLANK(dms_E3_Projects_32),"",dms_E3_Projects_32) -> 
B325: =IF(ISBLANK(dms_E3_Projects_33),"",dms_E3_Projects_33) -> 
B326: =IF(ISBLANK(dms_E3_Projects_34),"",dms_E3_Projects_34) -> 
B327: =IF(ISBLANK(dms_E3_Projects_35),"",dms_E3_Projects_35) -> 
B328: =IF(ISBLANK(dms_E3_Projects_36),"",dms_E3_Projects_36) -> 
B329: =IF(ISBLANK(dms_E3_Projects_37),"",dms_E3_Projects_37) -> 
B330: =IF(ISBLANK(dms_E3_Projects_38),"",dms_E3_Projects_38) -> 
B331: =IF(ISBLANK(dms_E3_Projects_39),"",dms_E3_Projects_39) -> 
B332: =IF(ISBLANK(dms_E3_Projects_40),"",dms_E3_Projects_40) -> 
B333: =IF(ISBLANK(dms_E3_Projects_41),"",dms_E3_Projects_41) -> 
B334: =IF(ISBLANK(dms_E3_Projects_42),"",dms_E3_Projects_42) -> 
B335: =IF(ISBLANK(dms_E3_Projects_43),"",dms_E3_Projects_43) -> 
B336: =IF(ISBLANK(dms_E3_Projects_44),"",dms_E3_Projects_44) -> 
B337: =IF(ISBLANK(dms_E3_Projects_45),"",dms_E3_Projects_45) -> 
B338: =IF(ISBLANK(dms_E3_Projects_46),"",dms_E3_Projects_46) -> 
B339: =IF(ISBLANK(dms_E3_Projects_47),"",dms_E3_Projects_47) -> 
B340: =IF(ISBLANK(dms_E3_Projects_48),"",dms_E3_Projects_48) -> 
B341: =IF(ISBLANK(dms_E3_Projects_49),"",dms_E3_Projects_49) -> 
B342: =IF(ISBLANK(dms_E3_Projects_50),"",dms_E3_Projects_50) -> 
B343: Aggregate of other projects with total expenditure of less than $500,000
B344: Total | C344: =SUM(C293:C343) -> 0 | D344: =SUM(D293:D343) -> 0 | E344: 0 | F344: 0 | G344: 0 | H344: 0 | I344: 0
B346: F. CAPITAL CONTRIBUTIONS included in the above
C347: EXPENDITURE
C348: =CONCATENATE("$0's, real ",dms_DollarReal) -> $0's, real June 2021
C349: =CRCP_y4 -> 2019-20 | D349: =CRCP_y5 -> 2020-21 | E349: =FRCP_y1 -> 2021-22 | F349: =FRCP_y2 -> 2022-23 | G349: =FRCP_y3 -> 2023-24 | H349: =FRCP_y4 -> 2024-25 | I349: =FRCP_y5 -> 2025-26
B350: =IF(ISBLANK(dms_E3_Projects_01),"",dms_E3_Projects_01) -> 
B351: =IF(ISBLANK(dms_E3_Projects_02),"",dms_E3_Projects_02) -> 
B352: =IF(ISBLANK(dms_E3_Projects_03),"",dms_E3_Projects_03) -> 
B353: =IF(ISBLANK(dms_E3_Projects_04),"",dms_E3_Projects_04) -> 
B354: =IF(ISBLANK(dms_E3_Projects_05),"",dms_E3_Projects_05) -> 
B355: =IF(ISBLANK(dms_E3_Projects_06),"",dms_E3_Projects_06) -> 
B356: =IF(ISBLANK(dms_E3_Projects_07),"",dms_E3_Projects_07) -> 
B357: =IF(ISBLANK(dms_E3_Projects_08),"",dms_E3_Projects_08) -> 
B358: =IF(ISBLANK(dms_E3_Projects_09),"",dms_E3_Projects_09) -> 
B359: =IF(ISBLANK(dms_E3_Projects_10),"",dms_E3_Projects_10) -> 
B360: =IF(ISBLANK(dms_E3_Projects_11),"",dms_E3_Projects_11) -> 
B361: =IF(ISBLANK(dms_E3_Projects_12),"",dms_E3_Projects_12) -> 
B362: =IF(ISBLANK(dms_E3_Projects_13),"",dms_E3_Projects_13) -> 
B363: =IF(ISBLANK(dms_E3_Projects_14),"",dms_E3_Projects_14) -> 
B364: =IF(ISBLANK(dms_E3_Projects_15),"",dms_E3_Projects_15) -> 
B365: =IF(ISBLANK(dms_E3_Projects_16),"",dms_E3_Projects_16) -> 
B366: =IF(ISBLANK(dms_E3_Projects_17),"",dms_E3_Projects_17) -> 
B367: =IF(ISBLANK(dms_E3_Projects_18),"",dms_E3_Projects_18) -> 
B368: =IF(ISBLANK(dms_E3_Projects_18),"",dms_E3_Projects_18) -> 
B369: =IF(ISBLANK(dms_E3_Projects_19),"",dms_E3_Projects_19) -> 
B370: =IF(ISBLANK(dms_E3_Projects_20),"",dms_E3_Projects_20) -> 
B371: =IF(ISBLANK(dms_E3_Projects_21),"",dms_E3_Projects_21) -> 
B372: =IF(ISBLANK(dms_E3_Projects_22),"",dms_E3_Projects_22) -> 
B373: =IF(ISBLANK(dms_E3_Projects_23),"",dms_E3_Projects_23) -> 
B374: =IF(ISBLANK(dms_E3_Projects_24),"",dms_E3_Projects_24) -> 
B375: =IF(ISBLANK(dms_E3_Projects_25),"",dms_E3_Projects_26) -> 
B376: =IF(ISBLANK(dms_E3_Projects_27),"",dms_E3_Projects_27) -> 
B377: =IF(ISBLANK(dms_E3_Projects_28),"",dms_E3_Projects_28) -> 
B378: =IF(ISBLANK(dms_E3_Projects_29),"",dms_E3_Projects_29) -> 
B379: =IF(ISBLANK(dms_E3_Projects_30),"",dms_E3_Projects_30) -> 
B380: =IF(ISBLANK(dms_E3_Projects_31),"",dms_E3_Projects_31) -> 
B381: =IF(ISBLANK(dms_E3_Projects_32),"",dms_E3_Projects_32) -> 
B382: =IF(ISBLANK(dms_E3_Projects_33),"",dms_E3_Projects_33) -> 
B383: =IF(ISBLANK(dms_E3_Projects_34),"",dms_E3_Projects_34) -> 
B384: =IF(ISBLANK(dms_E3_Projects_35),"",dms_E3_Projects_35) -> 
B385: =IF(ISBLANK(dms_E3_Projects_36),"",dms_E3_Projects_36) -> 
B386: =IF(ISBLANK(dms_E3_Projects_37),"",dms_E3_Projects_37) -> 
B387: =IF(ISBLANK(dms_E3_Projects_38),"",dms_E3_Projects_38) -> 
B388: =IF(ISBLANK(dms_E3_Projects_39),"",dms_E3_Projects_39) -> 
B389: =IF(ISBLANK(dms_E3_Projects_40),"",dms_E3_Projects_40) -> 
B390: =IF(ISBLANK(dms_E3_Projects_41),"",dms_E3_Projects_41) -> 
B391: =IF(ISBLANK(dms_E3_Projects_42),"",dms_E3_Projects_42) -> 
B392: =IF(ISBLANK(dms_E3_Projects_43),"",dms_E3_Projects_43) -> 
B393: =IF(ISBLANK(dms_E3_Projects_44),"",dms_E3_Projects_44) -> 
B394: =IF(ISBLANK(dms_E3_Projects_45),"",dms_E3_Projects_45) -> 
B395: =IF(ISBLANK(dms_E3_Projects_46),"",dms_E3_Projects_46) -> 
B396: =IF(ISBLANK(dms_E3_Projects_47),"",dms_E3_Projects_47) -> 
B397: =IF(ISBLANK(dms_E3_Projects_48),"",dms_E3_Projects_48) -> 
B398: =IF(ISBLANK(dms_E3_Projects_49),"",dms_E3_Projects_49) -> 
B399: =IF(ISBLANK(dms_E3_Projects_50),"",dms_E3_Projects_50) -> 
B400: Aggregate of other projects with total expenditure of less than $500,000
B401: Total | C401: =SUM(C350:C400) -> 0 | D401: =SUM(D350:D400) -> 0 | E401: 0 | F401: 0 | G401: 0 | H401: 0 | I401: 0
B405: E3.2 - VOLUMES - BY PRESSURE TYPE - BY PROJECT
B406: A. LOW PRESSURE TO LOW PRESSURE
C407: LENGTH
C408: 0s, metres
C409: =CRCP_y4 -> 2019-20 | D409: =CRCP_y5 -> 2020-21 | E409: =FRCP_y1 -> 2021-22 | F409: =FRCP_y2 -> 2022-23 | G409: =FRCP_y3 -> 2023-24 | H409: =FRCP_y4 -> 2024-25 | I409: =FRCP_y5 -> 2025-26
B460: Aggregate of other projects with total expenditure of less than $500,000
B461: Total | C461: =SUM(C410:C460) -> 0 | D461: =SUM(D410:D460) -> 0 | E461: 0 | F461: 0 | G461: 0 | H461: 0 | I461: 0
B463: B. LOW PRESSURE TO MEDIUM PRESSURE
C464: LENGTH
C465: 0s, metres
C466: =CRCP_y4 -> 2019-20 | D466: =CRCP_y5 -> 2020-21 | E466: =FRCP_y1 -> 2021-22 | F466: =FRCP_y2 -> 2022-23 | G466: =FRCP_y3 -> 2023-24 | H466: =FRCP_y4 -> 2024-25 | I466: =FRCP_y5 -> 2025-26
B517: Aggregate of other projects with total expenditure of less than $500,000
B518: Total | C518: =SUM(C467:C517) -> 0 | D518: =SUM(D467:D517) -> 0 | E518: 0 | F518: 0 | G518: 0 | H518: 0 | I518: 0
B520: C. LOW PRESSURE TO HIGH PRESSURE
C521: LENGTH
C522: 0s, metres
C523: =CRCP_y4 -> 2019-20 | D523: =CRCP_y5 -> 2020-21 | E523: =FRCP_y1 -> 2021-22 | F523: =FRCP_y2 -> 2022-23 | G523: =FRCP_y3 -> 2023-24 | H523: =FRCP_y4 -> 2024-25 | I523: =FRCP_y5 -> 2025-26
B574: Aggregate of other projects with total expenditure of less than $500,000
B575: Total | C575: =SUM(C524:C574) -> 0 | D575: =SUM(D524:D574) -> 0 | E575: 0 | F575: 0 | G575: 0 | H575: 0 | I575: 0
B577: D. MEDIUM PRESSURE TO MEDIUM PRESSURE
C578: LENGTH
C579: 0s, metres
C580: =CRCP_y4 -> 2019-20 | D580: =CRCP_y5 -> 2020-21 | E580: =FRCP_y1 -> 2021-22 | F580: =FRCP_y2 -> 2022-23 | G580: =FRCP_y3 -> 2023-24 | H580: =FRCP_y4 -> 2024-25 | I580: =FRCP_y5 -> 2025-26
B631: Aggregate of other projects with total expenditure of less than $500,000
B632: Total | C632: =SUM(C581:C631) -> 0 | D632: =SUM(D581:D631) -> 0 | E632: 0 | F632: 0 | G632: 0 | H632: 0 | I632: 0
B634: E. MEDIUM PRESSURE TO HIGH PRESSURE
C635: LENGTH
C636: 0s, metres
C637: =CRCP_y4 -> 2019-20 | D637: =CRCP_y5 -> 2020-21 | E637: =FRCP_y1 -> 2021-22 | F637: =FRCP_y2 -> 2022-23 | G637: =FRCP_y3 -> 2023-24 | H637: =FRCP_y4 -> 2024-25 | I637: =FRCP_y5 -> 2025-26
B638: =IF(ISBLANK(dms_E3_Projects_01),"",dms_E3_Projects_01) -> 
B639: =IF(ISBLANK(dms_E3_Projects_02),"",dms_E3_Projects_02) -> 
B640: =IF(ISBLANK(dms_E3_Projects_03),"",dms_E3_Projects_03) -> 
B641: =IF(ISBLANK(dms_E3_Projects_04),"",dms_E3_Projects_04) -> 
B642: =IF(ISBLANK(dms_E3_Projects_05),"",dms_E3_Projects_05) -> 
B643: =IF(ISBLANK(dms_E3_Projects_06),"",dms_E3_Projects_06) -> 
B644: =IF(ISBLANK(dms_E3_Projects_07),"",dms_E3_Projects_07) -> 
B645: =IF(ISBLANK(dms_E3_Projects_08),"",dms_E3_Projects_08) -> 
B646: =IF(ISBLANK(dms_E3_Projects_09),"",dms_E3_Projects_09) -> 
B647: =IF(ISBLANK(dms_E3_Projects_10),"",dms_E3_Projects_10) -> 
B648: =IF(ISBLANK(dms_E3_Projects_11),"",dms_E3_Projects_11) -> 
B649: =IF(ISBLANK(dms_E3_Projects_12),"",dms_E3_Projects_12) -> 
B650: =IF(ISBLANK(dms_E3_Projects_13),"",dms_E3_Projects_13) -> 
B651: =IF(ISBLANK(dms_E3_Projects_14),"",dms_E3_Projects_14) -> 
B652: =IF(ISBLANK(dms_E3_Projects_15),"",dms_E3_Projects_15) -> 
B653: =IF(ISBLANK(dms_E3_Projects_16),"",dms_E3_Projects_16) -> 
... 45 more rows

Sheet E4. Meter replacement
B1: =INDEX(dms_Worksheet_List,MATCH(dms_Model,dms_Model_List)) -> REGULATORY REPORTING STATEMENT
B2: =INDEX(dms_TradingNameFull_List,MATCH(dms_TradingName,dms_TradingName_List)) -> Australian Gas Distribution Co.
B3: =dms_Header_Span -> 2019-20 - 2025-26
B4: E4. METER REPLACEMENT
B6: E4.1 - CAPEX
B7: E4.1.1 - NEW METERS ACQUIRED
C8: EXPENDITURE
C9: =CONCATENATE("$0's, real ",dms_DollarReal) -> $0's, real June 2021
C10: =CRCP_y4 -> 2019-20 | D10: =CRCP_y5 -> 2020-21 | E10: =FRCP_y1 -> 2021-22 | F10: =FRCP_y2 -> 2022-23 | G10: =FRCP_y3 -> 2023-24 | H10: =FRCP_y4 -> 2024-25 | I10: =FRCP_y5 -> 2025-26
B11: A. DIRECT INTERNAL LABOUR EXPENDITURE
B12: Residential
B13: Industrial and Commercial
B14: Other
B15: Total | C15: =SUM(C12:C14) -> 0 | D15: =SUM(D12:D14) -> 0 | E15: 0 | F15: 0 | G15: 0 | H15: 0 | I15: 0
B16: B. DIRECT CONTRACTOR EXPENDITURE
B17: Residential
B18: Industrial and Commercial
B19: Other
B20: Total | C20: =SUM(C17:C19) -> 0 | D20: =SUM(D17:D19) -> 0 | E20: 0 | F20: 0 | G20: 0 | H20: 0 | I20: 0
B21: C. OTHER INTERNAL DIRECT EXPENDITURE
B22: Residential
B23: Industrial and Commercial
B24: Other
B25: Total | C25: =SUM(C22:C24) -> 0 | D25: =SUM(D22:D24) -> 0 | E25: 0 | F25: 0 | G25: 0 | H25: 0 | I25: 0
B26: D. TOTAL OVERHEAD EXPENDITURE
B27: Residential | C27: 179139.0699 | D27: 119728.6423 | E27: 167138.4813 | F27: 149546.5517 | G27: 221201.4015 | H27: 178230.2702 | I27: 240223.3642
B28: Industrial and Commercial | C28: 31384.35928 | D28: 14220.91259 | E28: 13890.91257 | F28: 16128.48737 | G28: 13233.05967 | H28: 19297.57602 | I28: 17993.46532
B29: Other
B30: Total | C30: =SUM(C27:C29) -> 210523.4292 | D30: =SUM(D27:D29) -> 133949.5549 | E30: 181029.3938 | F30: 165675.0391 | G30: 234434.4611 | H30: 197527.8462 | I30: 258216.8296
B31: E. RELATED PARTY MARGIN EXPENDITURE
B32: Residential
B33: Industrial and Commercial
B34: Other
B35: Total | C35: =SUM(C32:C34) -> 0 | D35: =SUM(D32:D34) -> 0 | E35: 0 | F35: 0 | G35: 0 | H35: 0 | I35: 0
B36: F. CAPITAL CONTRIBUTIONS included in the above
B37: Residential
B38: Industrial and Commercial
B39: Other
B40: Total | C40: =SUM(C37:C39) -> 0 | D40: =SUM(D37:D39) -> 0 | E40: 0 | F40: 0 | G40: 0 | H40: 0 | I40: 0
B41: TOTAL | C41: =SUM(C15,C20,C25,C30,C35,C40) -> 210523.4292 | D41: =SUM(D15,D20,D25,D30,D35,D40) -> 133949.5549 | E41: 181029.3938 | F41: 165675.0391 | G41: 234434.4611 | H41: 197527.8462 | I41: 258216.8296
B43: E4.1.2 - METER REFURBISHMENT
C44: EXPENDITURE
C45: =CONCATENATE("$0's, real ",dms_DollarReal) -> $0's, real June 2021
C46: =CRCP_y4 -> 2019-20 | D46: =CRCP_y5 -> 2020-21 | E46: =FRCP_y1 -> 2021-22 | F46: =FRCP_y2 -> 2022-23 | G46: =FRCP_y3 -> 2023-24 | H46: =FRCP_y4 -> 2024-25 | I46: =FRCP_y5 -> 2025-26
B47: A. DIRECT INTERNAL LABOUR EXPENDITURE
B48: Residential
B49: Industrial and Commercial
B50: Other
B51: Total | C51: =SUM(C48:C50) -> 0 | D51: =SUM(D48:D50) -> 0 | E51: 0 | F51: 0 | G51: 0 | H51: 0 | I51: 0
B52: B. DIRECT CONTRACTOR EXPENDITURE
B53: Residential
B54: Industrial and Commercial
B55: Other
B56: Total | C56: =SUM(C53:C55) -> 0 | D56: =SUM(D53:D55) -> 0 | E56: 0 | F56: 0 | G56: 0 | H56: 0 | I56: 0
B57: C. OTHER INTERNAL DIRECT EXPENDITURE
B58: Residential
B59: Industrial and Commercial
B60: Other
B61: Total | C61: =SUM(C58:C60) -> 0 | D61: =SUM(D58:D60) -> 0 | E61: 0 | F61: 0 | G61: 0 | H61: 0 | I61: 0
B62: D. TOTAL OVERHEAD EXPENDITURE
B63: Residential | C63: 119426.0466 | D63: 79819.09488 | E63: 111425.6542 | F63: 99697.70116 | G63: 147467.601 | H63: 118820.1801 | I63: 160148.9095
B64: Industrial and Commercial | C64: 20922.90618 | D64: 9480.608392 | E64: 9260.608378 | F64: 10752.32491 | G64: 8822.03978 | H64: 12865.05068 | I64: 11995.64355
B65: Other
B66: Total | C66: =SUM(C63:C65) -> 140348.9528 | D66: =SUM(D63:D65) -> 89299.70327 | E66: 120686.2626 | F66: 110450.0261 | G66: 156289.6408 | H66: 131685.2308 | I66: 172144.553
B67: E. RELATED PARTY MARGIN EXPENDITURE
B68: Residential
B69: Industrial and Commercial
B70: Other
B71: Total | C71: =SUM(C68:C70) -> 0 | D71: =SUM(D68:D70) -> 0 | E71: 0 | F71: 0 | G71: 0 | H71: 0 | I71: 0
B72: F. CAPITAL CONTRIBUTIONS included in the above
B73: Residential
B74: Industrial and Commercial
B75: Other
B76: Total | C76: =SUM(C73:C75) -> 0 | D76: =SUM(D73:D75) -> 0 | E76: 0 | F76: 0 | G76: 0 | H76: 0 | I76: 0
B77: TOTAL | C77: =SUM(C51,C56,C61,C66,C71,C76) -> 140348.9528 | D77: =SUM(D51,D56,D61,D66,D71,D76) -> 89299.70327 | E77: 120686.2626 | F77: 110450.0261 | G77: 156289.6408 | H77: 131685.2308 | I77: 172144.553
B79: E4.1.3 - METER INSTALLATION
C80: EXPENDITURE
C81: =CONCATENATE("$0's, real ",dms_DollarReal) -> $0's, real June 2021
C82: =CRCP_y4 -> 2019-20 | D82: =CRCP_y5 -> 2020-21 | E82: =FRCP_y1 -> 2021-22 | F82: =FRCP_y2 -> 2022-23 | G82: =FRCP_y3 -> 2023-24 | H82: =FRCP_y4 -> 2024-25 | I82: =FRCP_y5 -> 2025-26
B83: A. DIRECT INTERNAL LABOUR EXPENDITURE
B84: Residential
B85: Industrial and Commercial
B86: Other
B87: Total | C87: =SUM(C84:C86) -> 0 | D87: =SUM(D84:D86) -> 0 | E87: 0 | F87: 0 | G87: 0 | H87: 0 | I87: 0
B88: B. DIRECT CONTRACTOR EXPENDITURE
B89: Residential
B90: Industrial and Commercial
B91: Other
B92: Total | C92: =SUM(C89:C91) -> 0 | D92: =SUM(D89:D91) -> 0 | E92: 0 | F92: 0 | G92: 0 | H92: 0 | I92: 0
B93: C. OTHER INTERNAL DIRECT EXPENDITURE
B94: Residential
B95: Industrial and Commercial
B96: Other
B97: Total | C97: =SUM(C94:C96) -> 0 | D97: =SUM(D94:D96) -> 0 | E97: 0 | F97: 0 | G97: 0 | H97: 0 | I97: 0
B98: D. TOTAL OVERHEAD EXPENDITURE
B99: Residential
B100: Industrial and Commercial
B101: Other
B102: Total | C102: =SUM(C99:C101) -> 0 | D102: =SUM(D99:D101) -> 0 | E102: 0 | F102: 0 | G102: 0 | H102: 0 | I102: 0
B103: E. RELATED PARTY MARGIN EXPENDITURE
B104: Residential
B105: Industrial and Commercial
B106: Other
B107: Total | C107: =SUM(C104:C106) -> 0 | D107: =SUM(D104:D106) -> 0 | E107: 0 | F107: 0 | G107: 0 | H107: 0 | I107: 0
B108: F. CAPITAL CONTRIBUTIONS included in the above
B109: Residential
B110: Industrial and Commercial
B111: Other
B112: Total | C112: =SUM(C109:C111) -> 0 | D112: =SUM(D109:D111) -> 0 | E112: 0 | F112: 0 | G112: 0 | H112: 0 | I112: 0
B113: TOTAL | C113: =SUM(C87,C92,C97,C102,C107,C112) -> 0 | D113: =SUM(D87,D92,D97,D102,D107,D112) -> 0 | E113: 0 | F113: 0 | G113: 0 | H113: 0 | I113: 0
B115: E4.1.4 - OTHER METER REPLACEMENT CAPEX
C116: EXPENDITURE
C117: =CONCATENATE("$0's, real ",dms_DollarReal) -> $0's, real June 2021
C118: =CRCP_y4 -> 2019-20 | D118: =CRCP_y5 -> 2020-21 | E118: =FRCP_y1 -> 2021-22 | F118: =FRCP_y2 -> 2022-23 | G118: =FRCP_y3 -> 2023-24 | H118: =FRCP_y4 -> 2024-25 | I118: =FRCP_y5 -> 2025-26
B119: A. DIRECT INTERNAL LABOUR EXPENDITURE
B120: Residential
B121: Industrial and Commercial
B122: Other
B123: Total | C123: =SUM(C120:C122) -> 0 | D123: =SUM(D120:D122) -> 0 | E123: 0 | F123: 0 | G123: 0 | H123: 0 | I123: 0
B124: B. DIRECT CONTRACTOR EXPENDITURE
B125: Residential
B126: Industrial and Commercial
B127: Other
B128: Total | C128: =SUM(C125:C127) -> 0 | D128: =SUM(D125:D127) -> 0 | E128: 0 | F128: 0 | G128: 0 | H128: 0 | I128: 0
B129: C. OTHER INTERNAL DIRECT EXPENDITURE
B130: Residential
B131: Industrial and Commercial
B132: Other
B133: Total | C133: =SUM(C130:C132) -> 0 | D133: =SUM(D130:D132) -> 0 | E133: 0 | F133: 0 | G133: 0 | H133: 0 | I133: 0
B134: D. TOTAL OVERHEAD EXPENDITURE
B135: Residential
B136: Industrial and Commercial
B137: Other
B138: Total | C138: =SUM(C135:C137) -> 0 | D138: =SUM(D135:D137) -> 0 | E138: 0 | F138: 0 | G138: 0 | H138: 0 | I138: 0
B139: E. RELATED PARTY MARGIN EXPENDITURE
B140: Residential
B141: Industrial and Commercial
B142: Other
B143: Total | C143: =SUM(C140:C142) -> 0 | D143: =SUM(D140:D142) -> 0 | E143: 0 | F143: 0 | G143: 0 | H143: 0 | I143: 0
B144: F. CAPITAL CONTRIBUTIONS included in the above
B145: Residential
B146: Industrial and Commercial
B147: Other
B148: Total | C148: =SUM(C145:C147) -> 0 | D148: =SUM(D145:D147) -> 0 | E148: 0 | F148: 0 | G148: 0 | H148: 0 | I148: 0
B149: TOTAL | C149: =SUM(C123,C128,C133,C138,C143,C148) -> 0 | D149: =SUM(D123,D128,D133,D138,D143,D148) -> 0 | E149: 0 | F149: 0 | G149: 0 | H149: 0 | I149: 0
B152: E4.2 - VOLUMES
B153: E4.2.1 - NUMBER OF NEW METERS ACQUIRED
C154: VOLUMES
C155: 0s
C156: =CRCP_y4 -> 2019-20 | D156: =CRCP_y5 -> 2020-21 | E156: =FRCP_y1 -> 2021-22 | F156: =FRCP_y2 -> 2022-23 | G156: =FRCP_y3 -> 2023-24 | H156: =FRCP_y4 -> 2024-25 | I156: =FRCP_y5 -> 2025-26
B157: Residential
B158: Industrial and commercial
B159: Other meters
B160: Total | C160: =SUM(C157:C159) -> 0 | D160: =SUM(D157:D159) -> 0 | E160: 0 | F160: 0 | G160: 0 | H160: 0 | I160: 0
B163: E4.2.2 - NUMBER OF METERS REFURBISHED
C164: VOLUMES
C165: 0s
C166: =CRCP_y4 -> 2019-20 | D166: =CRCP_y5 -> 2020-21 | E166: =FRCP_y1 -> 2021-22 | F166: =FRCP_y2 -> 2022-23 | G166: =FRCP_y3 -> 2023-24 | H166: =FRCP_y4 -> 2024-25 | I166: =FRCP_y5 -> 2025-26
B167: A. REFURBISHABLE METERS REMOVED
B168: Residential
B169: Industrial and commercial
B170: Other meters
B171: Total | C171: =SUM(C168:C170) -> 0 | D171: 0 | E171: 0 | F171: 0 | G171: 0 | H171: 0 | I171: 0
B172: B. METERS DECOMMISSIONED
B173: Residential
B174: Industrial and commercial
B175: Other meters
B176: Total | C176: =SUM(C173:C175) -> 0 | D176: 0 | E176: 0 | F176: 0 | G176: 0 | H176: 0 | I176: 0
B177: TOTAL | C177: =SUM(C171,C176) -> 0 | D177: =SUM(D171,D176) -> 0 | E177: 0 | F177: 0 | G177: 0 | H177: 0 | I177: 0
B180: E4.2.3 - NUMBER OF METERS INSTALLED
C181: VOLUMES
C182: 0s
C183: =CRCP_y4 -> 2019-20 | D183: =CRCP_y5 -> 2020-21 | E183: =FRCP_y1 -> 2021-22 | F183: =FRCP_y2 -> 2022-23 | G183: =FRCP_y3 -> 2023-24 | H183: =FRCP_y4 -> 2024-25 | I183: =FRCP_y5 -> 2025-26
B184: Residential
B185: Industrial and commercial
B186: Other meters
B187: Total | C187: =SUM(C184:C186) -> 0 | D187: =SUM(D184:D186) -> 0 | E187: 0 | F187: 0 | G187: 0 | H187: 0 | I187: 0
B190: E4.2.4 - NUMBER OF METERS REMOVED / DECOMMISSIONED
C191: VOLUMES
C192: 0s
C193: =CRCP_y4 -> 2019-20 | D193: =CRCP_y5 -> 2020-21 | E193: =FRCP_y1 -> 2021-22 | F193: =FRCP_y2 -> 2022-23 | G193: =FRCP_y3 -> 2023-24 | H193: =FRCP_y4 -> 2024-25 | I193: =FRCP_y5 -> 2025-26
B194: Residential | C194: 9597 | D194: 9498.6 | E194: 9219 | F194: 8749.2 | G194: 13191 | H194: 10466.4 | I194: 12658.8
B195: Industrial and commercial | C195: 651 | D195: 442.2 | E195: 300.6 | F195: 370.2 | G195: 309.6 | H195: 444.6 | I195: 372
B196: Other meters
B197: Total | C197: =SUM(C194:C196) -> 10248 | D197: =SUM(D194:D196) -> 9940.8 | E197: 9519.6 | F197: 9119.4 | G197: 13500.6 | H197: 10911 | I197: 13030.8
B200: E4.2.5 - OTHER METER REPLACEMENT VOLUMES
C201: VOLUMES
C202: 0s
C203: =CRCP_y4 -> 2019-20 | D203: =CRCP_y5 -> 2020-21 | E203: =FRCP_y1 -> 2021-22 | F203: =FRCP_y2 -> 2022-23 | G203: =FRCP_y3 -> 2023-24 | H203: =FRCP_y4 -> 2024-25 | I203: =FRCP_y5 -> 2025-26
B204: Residential
B205: Industrial and commercial
B206: Other meters
B207: Total | C207: =SUM(C204:C206) -> 0 | D207: =SUM(D204:D206) -> 0 | E207: 0 | F207: 0 | G207: 0 | H207: 0 | I207: 0

Sheet E5. New Connections
B1: =INDEX(dms_Worksheet_List,MATCH(dms_Model,dms_Model_List)) -> REGULATORY REPORTING STATEMENT
B2: =INDEX(dms_TradingNameFull_List,MATCH(dms_TradingName,dms_TradingName_List)) -> Australian Gas Distribution Co.
B3: =dms_Header_Span -> 2019-20 - 2025-26
B4: E5. NEW CONNECTIONS
B6: E5.1 - EXPENDITURE
B7: E5.1.1 - CAPEX - BY CONNECTION TYPE
B8: A. DIRECT INTERNAL LABOUR EXPENDITURE
D9: EXPENDITURE
D10: =CONCATENATE("$0's, real ",dms_DollarReal) -> $0's, real June 2021
D11: =CRCP_y4 -> 2019-20 | E11: =CRCP_y5 -> 2020-21 | F11: =FRCP_y1 -> 2021-22 | G11: =FRCP_y2 -> 2022-23 | H11: =FRCP_y3 -> 2023-24 | I11: =FRCP_y4 -> 2024-25 | J11: =FRCP_y5 -> 2025-26
B12: (i) ELECTRICITY TO GAS
B13: Distribution Mains
B14: Inlet service pipes
B15: Meters
C16: Total | D16: =SUM(D13:D15) -> 0 | E16: =SUM(E13:E15) -> 0 | F16: 0 | G16: 0 | H16: 0 | I16: 0 | J16: 0
B17: (ii) NEW HOMES
B18: Distribution Mains
B19: Inlet service pipes
B20: Meters
C21: Total | D21: =SUM(D18:D20) -> 0 | E21: =SUM(E18:E20) -> 0 | F21: 0 | G21: 0 | H21: 0 | I21: 0 | J21: 0
B22: (iii) NEW MEDIUM DENSITY / HIGH RISE
B23: Distribution Mains
B24: Inlet service pipes
B25: Meters
C26: Total | D26: =SUM(D23:D25) -> 0 | E26: =SUM(E23:E25) -> 0 | F26: 0 | G26: 0 | H26: 0 | I26: 0 | J26: 0
B27: (iv) INDUSTRIAL & COMMERCIAL TARIFF
B28: Distribution Mains
B29: Inlet service pipes
B30: Meters
C31: Total | D31: =SUM(D28:D30) -> 0 | E31: =SUM(E28:E30) -> 0 | F31: 0 | G31: 0 | H31: 0 | I31: 0 | J31: 0
B32: (v) INDUSTRIAL & COMMERCIAL CONTRACT
B33: Distribution Mains
B34: Inlet service pipes
B35: Meters
C36: Total | D36: =SUM(D33:D35) -> 0 | E36: =SUM(E33:E35) -> 0 | F36: 0 | G36: 0 | H36: 0 | I36: 0 | J36: 0
C37: TOTAL | D37: =SUM(D36,D31,D26,D21,D16) -> 0 | E37: =SUM(E36,E31,E26,E21,E16) -> 0 | F37: 0 | G37: 0 | H37: 0 | I37: 0 | J37: 0
B39: B. DIRECT CONTRACTOR EXPENDITURE
D40: EXPENDITURE
D41: =CONCATENATE("$0's, real ",dms_DollarReal) -> $0's, real June 2021
D42: =CRCP_y4 -> 2019-20 | E42: =CRCP_y5 -> 2020-21 | F42: =FRCP_y1 -> 2021-22 | G42: =FRCP_y2 -> 2022-23 | H42: =FRCP_y3 -> 2023-24 | I42: =FRCP_y4 -> 2024-25 | J42: =FRCP_y5 -> 2025-26
B43: (i) ELECTRICITY TO GAS
B44: Distribution Mains
B45: Inlet service pipes
B46: Meters
C47: Total | D47: =SUM(D44:D46) -> 0 | E47: =SUM(E44:E46) -> 0 | F47: 0 | G47: 0 | H47: 0 | I47: 0 | J47: 0
B48: (ii) NEW HOMES
B49: Distribution Mains
B50: Inlet service pipes
B51: Meters
C52: Total | D52: =SUM(D49:D51) -> 0 | E52: =SUM(E49:E51) -> 0 | F52: 0 | G52: 0 | H52: 0 | I52: 0 | J52: 0
B53: (iii) NEW MEDIUM DENSITY / HIGH RISE
B54: Distribution Mains
B55: Inlet service pipes
B56: Meters
C57: Total | D57: =SUM(D54:D56) -> 0 | E57: =SUM(E54:E56) -> 0 | F57: 0 | G57: 0 | H57: 0 | I57: 0 | J57: 0
B58: (iv) INDUSTRIAL & COMMERCIAL TARIFF
B59: Distribution Mains
B60: Inlet service pipes
B61: Meters
C62: Total | D62: =SUM(D59:D61) -> 0 | E62: =SUM(E59:E61) -> 0 | F62: 0 | G62: 0 | H62: 0 | I62: 0 | J62: 0
B63: (v) INDUSTRIAL & COMMERCIAL CONTRACT
B64: Distribution Mains
B65: Inlet service pipes
B66: Meters
C67: Total | D67: =SUM(D64:D66) -> 0 | E67: =SUM(E64:E66) -> 0 | F67: 0 | G67: 0 | H67: 0 | I67: 0 | J67: 0
C68: TOTAL | D68: =SUM(D67,D62,D57,D52,D47) -> 0 | E68: =SUM(E67,E62,E57,E52,E47) -> 0 | F68: 0 | G68: 0 | H68: 0 | I68: 0 | J68: 0
B70: C. OTHER INTERNAL DIRECT EXPENDITURE
D71: EXPENDITURE
D72: =CONCATENATE("$0's, real ",dms_DollarReal) -> $0's, real June 2021
D73: =CRCP_y4 -> 2019-20 | E73: =CRCP_y5 -> 2020-21 | F73: =FRCP_y1 -> 2021-22 | G73: =FRCP_y2 -> 2022-23 | H73: =FRCP_y3 -> 2023-24 | I73: =FRCP_y4 -> 2024-25 | J73: =FRCP_y5 -> 2025-26
B74: (i) ELECTRICITY TO GAS
B75: Distribution Mains
B76: Inlet service pipes
B77: Meters
C78: Total | D78: =SUM(D75:D77) -> 0 | E78: =SUM(E75:E77) -> 0 | F78: 0 | G78: 0 | H78: 0 | I78: 0 | J78: 0
B79: (ii) NEW HOMES
B80: Distribution Mains
B81: Inlet service pipes
B82: Meters
C83: Total | D83: =SUM(D80:D82) -> 0 | E83: =SUM(E80:E82) -> 0 | F83: 0 | G83: 0 | H83: 0 | I83: 0 | J83: 0
B84: (iii) NEW MEDIUM DENSITY / HIGH RISE
B85: Distribution Mains
B86: Inlet service pipes
B87: Meters
C88: Total | D88: =SUM(D85:D87) -> 0 | E88: =SUM(E85:E87) -> 0 | F88: 0 | G88: 0 | H88: 0 | I88: 0 | J88: 0
B89: (iv) INDUSTRIAL & COMMERCIAL TARIFF
B90: Distribution Mains
B91: Inlet service pipes
B92: Meters
C93: Total | D93: =SUM(D90:D92) -> 0 | E93: =SUM(E90:E92) -> 0 | F93: 0 | G93: 0 | H93: 0 | I93: 0 | J93: 0
B94: (v) INDUSTRIAL & COMMERCIAL CONTRACT
B95: Distribution Mains
B96: Inlet service pipes
B97: Meters
C98: Total | D98: =SUM(D95:D97) -> 0 | E98: =SUM(E95:E97) -> 0 | F98: 0 | G98: 0 | H98: 0 | I98: 0 | J98: 0
C99: TOTAL | D99: =SUM(D98,D93,D88,D83,D78) -> 0 | E99: =SUM(E98,E93,E88,E83,E78) -> 0 | F99: 0 | G99: 0 | H99: 0 | I99: 0 | J99: 0
B101: D. TOTAL OVERHEAD EXPENDITURE
D102: EXPENDITURE
D103: =CONCATENATE("$0's, real ",dms_DollarReal) -> $0's, real June 2021
D104: =CRCP_y4 -> 2019-20 | E104: =CRCP_y5 -> 2020-21 | F104: =FRCP_y1 -> 2021-22 | G104: =FRCP_y2 -> 2022-23 | H104: =FRCP_y3 -> 2023-24 | I104: =FRCP_y4 -> 2024-25 | J104: =FRCP_y5 -> 2025-26
B105: (i) ELECTRICITY TO GAS
B106: Distribution Mains | D106: 160131.4509 | E106: 103565.3771 | F106: 163066.0065 | G106: 673534.2587 | H106: 426678.1168 | I106: 447444.0503 | J106: 495643.2775
B107: Inlet service pipes | D107: 259217.839 | E107: 167649.722 | F107: 215876.2488 | G107: 222244.8071 | H107: 236450.8473 | I107: 258856.1993 | J107: 284515.3364
B108: Meters | D108: 22858.55274 | E108: 14783.82054 | F108: 19053.23077 | G108: 19615.31951 | H108: 28045.03794 | I108: 30133.66019 | J108: 33231.92256
C109: Total | D109: =SUM(D106:D108) -> 442207.8426 | E109: =SUM(E106:E108) -> 285998.9197 | F109: 397995.4861 | G109: 915394.3853 | H109: 691174.002 | I109: 736433.9098 | J109: 813390.5364
B110: (ii) NEW HOMES
B111: Distribution Mains | D111: 275459.3945 | E111: 2071103.828 | F111: 851893.6704 | G111: 305294.4167 | H111: 182711.1447 | I111: 214117.8176 | J111: 216485.1702
B112: Inlet service pipes | D112: 735858.5713 | E112: 523814.9596 | F112: 520766.7702 | G112: 536129.8938 | H112: 570399.6836 | I112: 624448.9959 | J112: 686347.5421
B113: Meters | D113: 142666.4577 | E113: 101555.9615 | F113: 105833.144 | G113: 111055.3794 | H113: 118344.2979 | I113: 128953.2615 | J113: 141854.0913
C114: Total | D114: =SUM(D111:D113) -> 1153984.424 | E114: =SUM(E111:E113) -> 2696474.749 | F114: 1478493.585 | G114: 952479.6898 | H114: 871455.1263 | I114: 967520.075 | J114: 1044686.804
B115: (iii) NEW MEDIUM DENSITY / HIGH RISE
B116: Distribution Mains | D116: 0 | E116: 0
B117: Inlet service pipes | D117: 141073.6009 | E117: 100533.1842 | F117: 261706.6027 | G117: 269427.2007 | H117: 286649.1718 | I117: 313811.162 | J117: 344917.7132
B118: Meters | D118: 14969.82944 | E118: 10400.71058 | F118: 27100.64174 | G118: 27900.1369 | H118: 29683.53275 | I118: 32496.25263 | J118: 35717.44573
C119: Total | D119: =SUM(D116:D118) -> 156043.4303 | E119: =SUM(E116:E118) -> 110933.8948 | F119: 288807.2444 | G119: 297327.3376 | H119: 316332.7046 | I119: 346307.4146 | J119: 380635.159
B120: (iv) INDUSTRIAL & COMMERCIAL TARIFF
B121: Distribution Mains | D121: 114051.014 | E121: 72693.96109 | F121: 291192.6248 | G121: 80566.7843 | H121: 309801.1708 | I121: 79925.92478 | J121: 88790.31096
B122: Inlet service pipes | D122: 153162.3413 | E122: 97622.78206 | F122: 52568.24068 | G122: 139272.6244 | H122: 136513.8532 | I122: 138164.7958 | J122: 153488.3108
B123: Meters | D123: 91432.34503 | E123: 48415.50917 | F123: 27480.49378 | G123: 71151.91271 | H123: 72351.17209 | I123: 72977.36031 | J123: 81381.3524
C124: Total | D124: =SUM(D121:D123) -> 358645.7003 | E124: =SUM(E121:E123) -> 218732.2523 | F124: 371241.3592 | G124: 290991.3214 | H124: 518666.1961 | I124: 291068.0809 | J124: 323659.9742
B125: (v) INDUSTRIAL & COMMERCIAL CONTRACT
B126: Distribution Mains
B127: Inlet service pipes
B128: Meters
C129: Total | D129: =SUM(D126:D128) -> 0 | E129: =SUM(E126:E128) -> 0 | F129: 0 | G129: 0 | H129: 0 | I129: 0 | J129: 0
C130: TOTAL | D130: =SUM(D129,D124,D119,D114,D109) -> 2110881.397 | E130: =SUM(E129,E124,E119,E114,E109) -> 3312139.816 | F130: 2536537.674 | G130: 2456192.734 | H130: 2397628.029 | I130: 2341329.48 | J130: 2562372.473
B132: E. RELATED PARTY MARGIN EXPENDITURE
D133: EXPENDITURE
D134: =CONCATENATE("$0's, real ",dms_DollarReal) -> $0's, real June 2021
D135: =CRCP_y4 -> 2019-20 | E135: =CRCP_y5 -> 2020-21 | F135: =FRCP_y1 -> 2021-22 | G135: =FRCP_y2 -> 2022-23 | H135: =FRCP_y3 -> 2023-24 | I135: =FRCP_y4 -> 2024-25 | J135: =FRCP_y5 -> 2025-26
B136: (i) ELECTRICITY TO GAS
B137: Distribution Mains
B138: Inlet service pipes
B139: Meters
C140: Total | D140: =SUM(D137:D139) -> 0 | E140: =SUM(E137:E139) -> 0 | F140: 0 | G140: 0 | H140: 0 | I140: 0 | J140: 0
B141: (ii) NEW HOMES
B142: Distribution Mains
B143: Inlet service pipes
B144: Meters
C145: Total | D145: =SUM(D142:D144) -> 0 | E145: =SUM(E142:E144) -> 0 | F145: 0 | G145: 0 | H145: 0 | I145: 0 | J145: 0
B146: (iii) NEW MEDIUM DENSITY / HIGH RISE
B147: Distribution Mains
B148: Inlet service pipes
B149: Meters
C150: Total | D150: =SUM(D147:D149) -> 0 | E150: =SUM(E147:E149) -> 0 | F150: 0 | G150: 0 | H150: 0 | I150: 0 | J150: 0
B151: (iv) INDUSTRIAL & COMMERCIAL TARIFF
B152: Distribution Mains
B153: Inlet service pipes
B154: Meters
C155: Total | D155: =SUM(D152:D154) -> 0 | E155: =SUM(E152:E154) -> 0 | F155: 0 | G155: 0 | H155: 0 | I155: 0 | J155: 0
B156: (v) INDUSTRIAL & COMMERCIAL CONTRACT
B157: Distribution Mains
B158: Inlet service pipes
B159: Meters
C160: Total | D160: =SUM(D157:D159) -> 0 | E160: =SUM(E157:E159) -> 0 | F160: 0 | G160: 0 | H160: 0 | I160: 0 | J160: 0
C161: TOTAL | D161: =SUM(D160,D155,D150,D145,D140) -> 0 | E161: =SUM(E160,E155,E150,E145,E140) -> 0 | F161: 0 | G161: 0 | H161: 0 | I161: 0 | J161: 0
B163: F. CAPITAL CONTRIBUTIONS included in the above
D164: EXPENDITURE
D165: =CONCATENATE("$0's, real ",dms_DollarReal) -> $0's, real June 2021
D166: =CRCP_y4 -> 2019-20 | E166: =CRCP_y5 -> 2020-21 | F166: =FRCP_y1 -> 2021-22 | G166: =FRCP_y2 -> 2022-23 | H166: =FRCP_y3 -> 2023-24 | I166: =FRCP_y4 -> 2024-25 | J166: =FRCP_y5 -> 2025-26
B167: (i) ELECTRICITY TO GAS
B168: Distribution Mains
B169: Inlet service pipes
B170: Meters
C171: Total | D171: =SUM(D168:D170) -> 0 | E171: =SUM(E168:E170) -> 0 | F171: 0 | G171: 0 | H171: 0 | I171: 0 | J171: 0
B172: (ii) NEW HOMES
B173: Distribution Mains
B174: Inlet service pipes
B175: Meters
C176: Total | D176: =SUM(D173:D175) -> 0 | E176: =SUM(E173:E175) -> 0 | F176: 0 | G176: 0 | H176: 0 | I176: 0 | J176: 0
B177: (iii) NEW MEDIUM DENSITY / HIGH RISE
B178: Distribution Mains
B179: Inlet service pipes
B180: Meters
C181: Total | D181: =SUM(D178:D180) -> 0 | E181: =SUM(E178:E180) -> 0 | F181: 0 | G181: 0 | H181: 0 | I181: 0 | J181: 0
B182: (iv) INDUSTRIAL & COMMERCIAL TARIFF
B183: Distribution Mains
B184: Inlet service pipes
B185: Meters
C186: Total | D186: =SUM(D183:D185) -> 0 | E186: =SUM(E183:E185) -> 0 | F186: 0 | G186: 0 | H186: 0 | I186: 0 | J186: 0
B187: (v) INDUSTRIAL & COMMERCIAL CONTRACT
B188: Distribution Mains
B189: Inlet service pipes
B190: Meters
C191: Total | D191: =SUM(D188:D190) -> 0 | E191: =SUM(E188:E190) -> 0 | F191: 0 | G191: 0 | H191: 0 | I191: 0 | J191: 0
C192: TOTAL | D192: =SUM(D191,D186,D181,D176,D171) -> 0 | E192: =SUM(E191,E186,E181,E176,E171) -> 0 | F192: 0 | G192: 0 | H192: 0 | I192: 0 | J192: 0
B195: E5.2 - UNIT RATES
B196: E5.2.1 - UNIT RATES - PER CONNECTION - BY CONNECTION TYPE
D197: RATES PER CONNECTION
D198: =CONCATENATE("$0's, real ",dms_DollarReal) -> $0's, real June 2021
C199: Units | D199: =CRCP_y4 -> 2019-20 | E199: =CRCP_y5 -> 2020-21 | F199: =FRCP_y1 -> 2021-22 | G199: =FRCP_y2 -> 2022-23 | H199: =FRCP_y3 -> 2023-24 | I199: =FRCP_y4 -> 2024-25 | J199: =FRCP_y5 -> 2025-26
B200: A. ELECTRICITY TO GAS
B201: Distribution mains | C201: per metre per connection
B202: Inlet service pipes | C202: per service per connection
B203: Meters | C203: number per connection
B204: B. NEW HOMES
B205: Distribution mains | C205: per metre per connection
B206: Inlet service pipes | C206: per service per connection
B207: Meters | C207: number per connection
B208: C. NEW MEDIUM DENSITY / HIGH RISE
... 67 more rows

Sheet E6. Non-network
B1: =INDEX(dms_Worksheet_List,MATCH(dms_Model,dms_Model_List)) -> REGULATORY REPORTING STATEMENT
B2: =INDEX(dms_TradingNameFull_List,MATCH(dms_TradingName,dms_TradingName_List)) -> Australian Gas Distribution Co.
B3: =dms_Header_Span -> 2019-20 - 2025-26
B4: E6. NON-NETWORK EXPENDITURE
B6: E6.5 - TELEMETRY
B8: Please list all projects here:
B26: E6.5.1 - CAPEX - BY PROJECT
B27: A. DIRECT INTERNAL LABOUR EXPENDITURE
C28: EXPENDITURE
C29: =CONCATENATE("$0's, real ",dms_DollarReal) -> $0's, real June 2021
C30: =CRCP_y4 -> 2019-20 | D30: =CRCP_y5 -> 2020-21 | E30: =FRCP_y1 -> 2021-22 | F30: =FRCP_y2 -> 2022-23 | G30: =FRCP_y3 -> 2023-24 | H30: =FRCP_y4 -> 2024-25 | I30: =FRCP_y5 -> 2025-26
B32: =IF(ISBLANK(dms_E65_Projects_02),"",dms_E65_Projects_02) -> 
B33: =IF(ISBLANK(dms_E65_Projects_03),"",dms_E65_Projects_03) -> 
B34: =IF(ISBLANK(dms_E65_Projects_04),"",dms_E65_Projects_04) -> 
B35: =IF(ISBLANK(dms_E65_Projects_05),"",dms_E65_Projects_05) -> 
B36: =IF(ISBLANK(dms_E65_Projects_06),"",dms_E65_Projects_06) -> 
B37: =IF(ISBLANK(dms_E65_Projects_07),"",dms_E65_Projects_07) -> 
B38: =IF(ISBLANK(dms_E65_Projects_08),"",dms_E65_Projects_08) -> 
B39: =IF(ISBLANK(dms_E65_Projects_09),"",dms_E65_Projects_09) -> 
B40: =IF(ISBLANK(dms_E65_Projects_10),"",dms_E65_Projects_10) -> 
B41: =IF(ISBLANK(dms_E65_Projects_11),"",dms_E65_Projects_11) -> 
B42: =IF(ISBLANK(dms_E65_Projects_12),"",dms_E65_Projects_12) -> 
B43: =IF(ISBLANK(dms_E65_Projects_13),"",dms_E65_Projects_13) -> 
B44: =IF(ISBLANK(dms_E65_Projects_14),"",dms_E65_Projects_14) -> 
B45: =IF(ISBLANK(dms_E65_Projects_15),"",dms_E65_Projects_15) -> 
B46: Aggregate of other projects with total expenditure of less than $500,000
B47: Total | C47: =SUM(C31:C46) -> 0 | D47: =SUM(D31:D46) -> 0 | E47: 0 | F47: 0 | G47: 0 | H47: 0 | I47: 0
B49: B. DIRECT CONTRACTOR EXPENDITURE
B50: 2175 TELEMETRY - SYSTEM - CAPITAL WORKS | C50: 109276.444 | D50: 484439.6552 | E50: 0 | F50: 0 | G50: 0 | H50: 0 | I50: 0
B51: SA110 SCADA Equipment Replacement | C51: 0 | D51: 0 | E51: 349187.0195 | F51: 264444.8353 | G51: 266009.0638 | H51: 267473.5651 | I51: 268788.2092
B52: SA111 Additional Network Pressure Monitoring | C52: 0 | D52: 0 | E52: 172526.091 | F52: 93687.84032 | G52: 94242.01711 | H52: 56835.50618 | I52: 0
B53: =IF(ISBLANK(dms_E65_Projects_04),"",dms_E65_Projects_04) -> 
B54: =IF(ISBLANK(dms_E65_Projects_05),"",dms_E65_Projects_05) -> 
B55: =IF(ISBLANK(dms_E65_Projects_06),"",dms_E65_Projects_06) -> 
B56: =IF(ISBLANK(dms_E65_Projects_07),"",dms_E65_Projects_07) -> 
B57: =IF(ISBLANK(dms_E65_Projects_08),"",dms_E65_Projects_08) -> 
B58: =IF(ISBLANK(dms_E65_Projects_09),"",dms_E65_Projects_09) -> 
B59: =IF(ISBLANK(dms_E65_Projects_10),"",dms_E65_Projects_10) -> 
B60: =IF(ISBLANK(dms_E65_Projects_11),"",dms_E65_Projects_11) -> 
B61: =IF(ISBLANK(dms_E65_Projects_12),"",dms_E65_Projects_12) -> 
B62: =IF(ISBLANK(dms_E65_Projects_13),"",dms_E65_Projects_13) -> 
B63: =IF(ISBLANK(dms_E65_Projects_14),"",dms_E65_Projects_14) -> 
B64: =IF(ISBLANK(dms_E65_Projects_15),"",dms_E65_Projects_15) -> 
B65: Aggregate of other projects with total expenditure of less than $500,000
B66: Total | C66: =SUM(C50:C65) -> 109276.444 | D66: =SUM(D50:D65) -> 484439.6552 | E66: 521713.1105 | F66: 358132.6756 | G66: 360251.0809 | H66: 324309.0713 | I66: 268788.2092
B68: C. OTHER INTERNAL DIRECT EXPENDITURE
B70: =IF(ISBLANK(dms_E65_Projects_02),"",dms_E65_Projects_02) -> 
B71: =IF(ISBLANK(dms_E65_Projects_03),"",dms_E65_Projects_03) -> 
B72: =IF(ISBLANK(dms_E65_Projects_04),"",dms_E65_Projects_04) -> 
B73: =IF(ISBLANK(dms_E65_Projects_05),"",dms_E65_Projects_05) -> 
B74: =IF(ISBLANK(dms_E65_Projects_06),"",dms_E65_Projects_06) -> 
B75: =IF(ISBLANK(dms_E65_Projects_07),"",dms_E65_Projects_07) -> 
B76: =IF(ISBLANK(dms_E65_Projects_08),"",dms_E65_Projects_08) -> 
B77: =IF(ISBLANK(dms_E65_Projects_09),"",dms_E65_Projects_09) -> 
B78: =IF(ISBLANK(dms_E65_Projects_10),"",dms_E65_Projects_10) -> 
B79: =IF(ISBLANK(dms_E65_Projects_11),"",dms_E65_Projects_11) -> 
B80: =IF(ISBLANK(dms_E65_Projects_12),"",dms_E65_Projects_12) -> 
B81: =IF(ISBLANK(dms_E65_Projects_13),"",dms_E65_Projects_13) -> 
B82: =IF(ISBLANK(dms_E65_Projects_14),"",dms_E65_Projects_14) -> 
B83: =IF(ISBLANK(dms_E65_Projects_15),"",dms_E65_Projects_15) -> 
B84: Aggregate of other projects with total expenditure of less than $500,000
B85: Total | C85: =SUM(C69:C84) -> 0 | D85: =SUM(D69:D84) -> 0 | E85: 0 | F85: 0 | G85: 0 | H85: 0 | I85: 0
B87: D. TOTAL OVERHEAD EXPENDITURE
B88: 2175 TELEMETRY - SYSTEM - CAPITAL WORKS | C88: 10759.54086 | D88: 32209.98406 | E88: 0 | F88: 0 | G88: 0 | H88: 0 | I88: 0
B89: Telemetry overheads | C89: 0 | D89: 0 | E89: 49446.64753 | F89: 31848.2979 | G89: 31245.56064 | H89: 28407.41247 | I89: 26109.1069
B90: =IF(ISBLANK(dms_E65_Projects_03),"",dms_E65_Projects_03) -> 
B91: =IF(ISBLANK(dms_E65_Projects_04),"",dms_E65_Projects_04) -> 
B92: =IF(ISBLANK(dms_E65_Projects_05),"",dms_E65_Projects_05) -> 
B93: =IF(ISBLANK(dms_E65_Projects_06),"",dms_E65_Projects_06) -> 
B94: =IF(ISBLANK(dms_E65_Projects_07),"",dms_E65_Projects_07) -> 
B95: =IF(ISBLANK(dms_E65_Projects_08),"",dms_E65_Projects_08) -> 
B96: =IF(ISBLANK(dms_E65_Projects_09),"",dms_E65_Projects_09) -> 
B97: =IF(ISBLANK(dms_E65_Projects_10),"",dms_E65_Projects_10) -> 
B98: =IF(ISBLANK(dms_E65_Projects_11),"",dms_E65_Projects_11) -> 
B99: =IF(ISBLANK(dms_E65_Projects_12),"",dms_E65_Projects_12) -> 
B100: =IF(ISBLANK(dms_E65_Projects_13),"",dms_E65_Projects_13) -> 
B101: =IF(ISBLANK(dms_E65_Projects_14),"",dms_E65_Projects_14) -> 
B102: =IF(ISBLANK(dms_E65_Projects_15),"",dms_E65_Projects_15) -> 
B103: Aggregate of other projects with total expenditure of less than $500,000
B104: Total | C104: =SUM(C88:C103) -> 10759.54086 | D104: =SUM(D88:D103) -> 32209.98406 | E104: 49446.64753 | F104: 31848.2979 | G104: 31245.56064 | H104: 28407.41247 | I104: 26109.1069
B106: E. RELATED PARTY MARGIN EXPENDITURE
B108: =IF(ISBLANK(dms_E65_Projects_02),"",dms_E65_Projects_02) -> 
B109: =IF(ISBLANK(dms_E65_Projects_03),"",dms_E65_Projects_03) -> 
B110: =IF(ISBLANK(dms_E65_Projects_04),"",dms_E65_Projects_04) -> 
B111: =IF(ISBLANK(dms_E65_Projects_05),"",dms_E65_Projects_05) -> 
B112: =IF(ISBLANK(dms_E65_Projects_06),"",dms_E65_Projects_06) -> 
B113: =IF(ISBLANK(dms_E65_Projects_07),"",dms_E65_Projects_07) -> 
B114: =IF(ISBLANK(dms_E65_Projects_08),"",dms_E65_Projects_08) -> 
B115: =IF(ISBLANK(dms_E65_Projects_09),"",dms_E65_Projects_09) -> 
B116: =IF(ISBLANK(dms_E65_Projects_10),"",dms_E65_Projects_10) -> 
B117: =IF(ISBLANK(dms_E65_Projects_11),"",dms_E65_Projects_11) -> 
B118: =IF(ISBLANK(dms_E65_Projects_12),"",dms_E65_Projects_12) -> 
B119: =IF(ISBLANK(dms_E65_Projects_13),"",dms_E65_Projects_13) -> 
B120: =IF(ISBLANK(dms_E65_Projects_14),"",dms_E65_Projects_14) -> 
B121: =IF(ISBLANK(dms_E65_Projects_15),"",dms_E65_Projects_15) -> 
B122: Aggregate of other projects with total expenditure of less than $500,000
B123: Total | C123: =SUM(C107:C122) -> 0 | D123: =SUM(D107:D122) -> 0 | E123: 0 | F123: 0 | G123: 0 | H123: 0 | I123: 0
B125: F. CAPITAL CONTRIBUTIONS included in the above
B127: =IF(ISBLANK(dms_E65_Projects_02),"",dms_E65_Projects_02) -> 
B128: =IF(ISBLANK(dms_E65_Projects_03),"",dms_E65_Projects_03) -> 
B129: =IF(ISBLANK(dms_E65_Projects_04),"",dms_E65_Projects_04) -> 
B130: =IF(ISBLANK(dms_E65_Projects_05),"",dms_E65_Projects_05) -> 
B131: =IF(ISBLANK(dms_E65_Projects_06),"",dms_E65_Projects_06) -> 
B132: =IF(ISBLANK(dms_E65_Projects_07),"",dms_E65_Projects_07) -> 
B133: =IF(ISBLANK(dms_E65_Projects_08),"",dms_E65_Projects_08) -> 
B134: =IF(ISBLANK(dms_E65_Projects_09),"",dms_E65_Projects_09) -> 
B135: =IF(ISBLANK(dms_E65_Projects_10),"",dms_E65_Projects_10) -> 
B136: =IF(ISBLANK(dms_E65_Projects_11),"",dms_E65_Projects_11) -> 
B137: =IF(ISBLANK(dms_E65_Projects_12),"",dms_E65_Projects_12) -> 
B138: =IF(ISBLANK(dms_E65_Projects_13),"",dms_E65_Projects_13) -> 
B139: =IF(ISBLANK(dms_E65_Projects_14),"",dms_E65_Projects_14) -> 
B140: =IF(ISBLANK(dms_E65_Projects_15),"",dms_E65_Projects_15) -> 
B141: Aggregate of other projects with total expenditure of less than $500,000
B142: Total | C142: =SUM(C126:C141) -> 0 | D142: =SUM(D126:D141) -> 0 | E142: 0 | F142: 0 | G142: 0 | H142: 0 | I142: 0

Sheet E10. Overheads
B1: =INDEX(dms_Worksheet_List,MATCH(dms_Model,dms_Model_List)) -> REGULATORY REPORTING STATEMENT
B2: =INDEX(dms_TradingNameFull_List,MATCH(dms_TradingName,dms_TradingName_List)) -> Australian Gas Networks Limited (reporting data for SA)
B3: =dms_Header_Span -> 2019-20 - 2025-26
B4: E10. OVERHEADS EXPENDITURE
B6: E10.1 - NETWORK
C7: EXPENDITURE
C8: =CONCATENATE("$0's, real ",dms_DollarReal) -> $0's, real June 2021
C9: =CRCP_y4 -> 2019-20 | D9: =CRCP_y5 -> 2020-21 | E9: =FRCP_y1 -> 2021-22 | F9: =FRCP_y2 -> 2022-23 | G9: =FRCP_y3 -> 2023-24 | H9: =FRCP_y4 -> 2024-25 | I9: =FRCP_y5 -> 2025-26
B10: E10.1.1 - OPEX
B11: Reference services
B12: Non-reference services
B13: Total | C13: =SUM(C11:C12) -> 0 | D13: =SUM(D11:D12) -> 0 | E13: 0 | F13: 0 | G13: 0 | H13: 0 | I13: 0
B14: E10.1.2 - CAPEX
B15: Reference services | C15: 9387852.108 | D15: 8323408.612 | E15: 9530382.653 | F15: 9690783.188 | G15: 9758168.633 | H15: 9731237.005 | I15: 9472490.529
B16: Non-reference services
B17: Total | C17: =SUM(C15:C16) -> 9387852.108 | D17: =SUM(D15:D16) -> 8323408.612 | E17: 9530382.653 | F17: 9690783.188 | G17: 9758168.633 | H17: 9731237.005 | I17: 9472490.529
B21: E10.2 - CORPORATE
C22: EXPENDITURE
C23: =CONCATENATE("$0's, real ",dms_DollarReal) -> $0's, real June 2021
C24: =CRCP_y4 -> 2019-20 | D24: =CRCP_y5 -> 2020-21 | E24: =FRCP_y1 -> 2021-22 | F24: =FRCP_y2 -> 2022-23 | G24: =FRCP_y3 -> 2023-24 | H24: =FRCP_y4 -> 2024-25 | I24: =FRCP_y5 -> 2025-26
B25: E10.2.1 - OPEX
B26: Reference services
B27: Non-reference services
B28: Total | C28: =SUM(C26:C27) -> 0 | D28: 0 | E28: 0 | F28: 0 | G28: 0 | H28: 0 | I28: 0
B29: E10.2.2 - CAPEX
B30: Reference services
B31: Non-reference services
B32: Total | C32: =SUM(C30:C31) -> 0 | D32: 0 | E32: 0 | F32: 0 | G32: 0 | H32: 0 | I32: 0

Sheet E12. ICT
B1: =INDEX(dms_Worksheet_List,MATCH(dms_Model,dms_Model_List)) -> REGULATORY REPORTING STATEMENT
B2: =INDEX(dms_TradingNameFull_List,MATCH(dms_TradingName,dms_TradingName_List)) -> Australian Gas Distribution Co.
B3: =dms_Header_Span -> 2019-20 - 2025-26
B4: E12. INFORMATION AND COMMUNICATION TECHNOLOGY
B6: Please list all projects here:
B7: Geospatial Information System
B8: Metering & Billing System
B9: Enterprise Asset Management
B10: FRC Market Gateway
B11: Middleware - BizTalk
B12: Licence Growth
B13: Infrastructure Renewal (AGN)
B14: Business Intelligence
B15: Mobility Integration
B16: Develop Digital Capability
B17: AGIG Strategy & Roadmap
B18: Life support data solution
B23: E12.1 - CAPEX - BY PROJECT
B24: A. DIRECT INTERNAL LABOUR EXPENDITURE
C25: EXPENDITURE
C26: =CONCATENATE("$0's, real ",dms_DollarReal) -> $0's, real June 2021
C27: =CRCP_y4 -> 2019-20 | D27: =CRCP_y5 -> 2020-21 | E27: =FRCP_y1 -> 2021-22 | F27: =FRCP_y2 -> 2022-23 | G27: =FRCP_y3 -> 2023-24 | H27: =FRCP_y4 -> 2024-25 | I27: =FRCP_y5 -> 2025-26
B29: =IF(ISBLANK(dms_E12_Projects_02),"",dms_E12_Projects_02) -> 
B30: =IF(ISBLANK(dms_E12_Projects_03),"",dms_E12_Projects_03) -> 
B31: =IF(ISBLANK(dms_E12_Projects_04),"",dms_E12_Projects_04) -> 
B32: =IF(ISBLANK(dms_E12_Projects_05),"",dms_E12_Projects_05) -> 
B33: =IF(ISBLANK(dms_E12_Projects_06),"",dms_E12_Projects_06) -> 
B34: =IF(ISBLANK(dms_E12_Projects_07),"",dms_E12_Projects_07) -> 
B35: =IF(ISBLANK(dms_E12_Projects_08),"",dms_E12_Projects_08) -> 
B36: =IF(ISBLANK(dms_E12_Projects_09),"",dms_E12_Projects_09) -> 
B37: =IF(ISBLANK(dms_E12_Projects_10),"",dms_E12_Projects_10) -> 
B38: =IF(ISBLANK(dms_E12_Projects_11),"",dms_E12_Projects_11) -> 
B39: =IF(ISBLANK(dms_E12_Projects_12),"",dms_E12_Projects_12) -> 
B40: =IF(ISBLANK(dms_E12_Projects_13),"",dms_E12_Projects_13) -> 
B41: =IF(ISBLANK(dms_E12_Projects_14),"",dms_E12_Projects_14) -> 
B42: =IF(ISBLANK(dms_E12_Projects_15),"",dms_E12_Projects_15) -> 
B43: Aggregate of other projects with total expenditure of less than $500,000
B44: Total | C44: =SUM(C28:C43) -> 0 | D44: =SUM(D28:D43) -> 0 | E44: 0 | F44: 0 | G44: 0 | H44: 0 | I44: 0
B46: B. DIRECT CONTRACTOR EXPENDITURE
B47: Geospatial Information System | C47: 4053063.286 | D47: 8319453.848
B48: Metering & Billing System | C48: 2594406.31 | D48: 0
B49: Enterprise Asset Management | C49: 327971.7612 | D49: 270172.9134
B50: FRC Market Gateway | C50: 192600.8665 | D50: 189121.0394
B51: Middleware - BizTalk | C51: 0 | D51: 162103.748
B52: Licence Growth | C52: 110057.638 | D52: 108069.1654
B53: Infrastructure Renewal (AGN) | C53: 39324.49583 | D53: 105535.9497 | E53: 24912.39541 | F53: 11633.07995 | G53: 36254.96667 | H53: 25318.58963 | I53: 56586.99141
B54: Business Intelligence | C54: 201772.3363 | D54: 2343511.044
B55: Mobility Integration | C55: 929568.822 | D55: 9027319.311
B56: Develop Digital Capability | C56: 288597.2918 | D56: 51734.78701
B57: AGIG Strategy & Roadmap | C57: 285173.5751 | D57: 2111989.271 | E57: 754917.9406 | F57: 1015090.092 | G57: 4496974.123 | H57: 5780307.552 | I57: 2104275.957
B58: Life support data solution | C58: 0 | D58: 426463.8948
B59: Digital Customer Experience (SA137) | E59: 376373.5755 | F59: 1195506.699 | G59: 362967.5914 | H59: 309180.9514 | I59: 0
B60: Apps Renewal (SA117) | E60: 1011691.344 | F60: 2882822.625 | G60: 2956399.242 | H60: 4249320.802 | I60: 3373682.644
B61: AIPM (SA121) | E61: 0 | F61: 0 | G61: 2467113.914 | H61: 0 | I61: 0
B62: Aggregate of other projects with total expenditure of less than $500,000
B63: Total | C63: =SUM(C47:C62) -> 9022536.382 | D63: =SUM(D47:D62) -> 23115474.97 | E63: 2167895.255 | F63: 5105052.496 | G63: 10319709.84 | H63: 10364127.89 | I63: 5534545.592
B65: C. OTHER INTERNAL DIRECT EXPENDITURE
B67: =IF(ISBLANK(dms_E12_Projects_02),"",dms_E12_Projects_02) -> 
B68: =IF(ISBLANK(dms_E12_Projects_03),"",dms_E12_Projects_03) -> 
B69: =IF(ISBLANK(dms_E12_Projects_04),"",dms_E12_Projects_04) -> 
B70: =IF(ISBLANK(dms_E12_Projects_05),"",dms_E12_Projects_05) -> 
B71: =IF(ISBLANK(dms_E12_Projects_06),"",dms_E12_Projects_06) -> 
B72: =IF(ISBLANK(dms_E12_Projects_07),"",dms_E12_Projects_07) -> 
B73: =IF(ISBLANK(dms_E12_Projects_08),"",dms_E12_Projects_08) -> 
B74: =IF(ISBLANK(dms_E12_Projects_09),"",dms_E12_Projects_09) -> 
B75: =IF(ISBLANK(dms_E12_Projects_10),"",dms_E12_Projects_10) -> 
B76: =IF(ISBLANK(dms_E12_Projects_11),"",dms_E12_Projects_11) -> 
B77: =IF(ISBLANK(dms_E12_Projects_12),"",dms_E12_Projects_12) -> 
B78: =IF(ISBLANK(dms_E12_Projects_13),"",dms_E12_Projects_13) -> 
B79: =IF(ISBLANK(dms_E12_Projects_14),"",dms_E12_Projects_14) -> 
B80: =IF(ISBLANK(dms_E12_Projects_15),"",dms_E12_Projects_15) -> 
B81: Aggregate of other projects with total expenditure of less than $500,000
B82: Total | C82: =SUM(C66:C81) -> 0 | D82: =SUM(D66:D81) -> 0 | E82: 0 | F82: 0 | G82: 0 | H82: 0 | I82: 0
B84: D. TOTAL OVERHEAD EXPENDITURE
B85: IT Overheads | E85: 205467.6228 | F85: 453986.033 | G85: 895056.6328 | H85: 907831.7013 | I85: 537605.5852
B86: =IF(ISBLANK(dms_E12_Projects_02),"",dms_E12_Projects_02) -> 
B87: =IF(ISBLANK(dms_E12_Projects_03),"",dms_E12_Projects_03) -> 
B88: =IF(ISBLANK(dms_E12_Projects_04),"",dms_E12_Projects_04) -> 
B89: =IF(ISBLANK(dms_E12_Projects_05),"",dms_E12_Projects_05) -> 
B90: =IF(ISBLANK(dms_E12_Projects_06),"",dms_E12_Projects_06) -> 
B91: =IF(ISBLANK(dms_E12_Projects_07),"",dms_E12_Projects_07) -> 
B92: =IF(ISBLANK(dms_E12_Projects_08),"",dms_E12_Projects_08) -> 
B93: =IF(ISBLANK(dms_E12_Projects_09),"",dms_E12_Projects_09) -> 
B94: =IF(ISBLANK(dms_E12_Projects_10),"",dms_E12_Projects_10) -> 
B95: =IF(ISBLANK(dms_E12_Projects_11),"",dms_E12_Projects_11) -> 
B96: =IF(ISBLANK(dms_E12_Projects_12),"",dms_E12_Projects_12) -> 
B97: =IF(ISBLANK(dms_E12_Projects_13),"",dms_E12_Projects_13) -> 
B98: =IF(ISBLANK(dms_E12_Projects_14),"",dms_E12_Projects_14) -> 
B99: =IF(ISBLANK(dms_E12_Projects_15),"",dms_E12_Projects_15) -> 
B100: Aggregate of other projects with total expenditure of less than $500,000
B101: Total | C101: =SUM(C85:C100) -> 0 | D101: =SUM(D85:D100) -> 0 | E101: 205467.6228 | F101: 453986.033 | G101: 895056.6328 | H101: 907831.7013 | I101: 537605.5852
B103: E. RELATED PARTY MARGIN EXPENDITURE
B104: =IF(ISBLANK(dms_E12_Projects_01),"",dms_E12_Projects_01) -> Project 1
B105: =IF(ISBLANK(dms_E12_Projects_02),"",dms_E12_Projects_02) -> 
B106: =IF(ISBLANK(dms_E12_Projects_03),"",dms_E12_Projects_03) -> 
B107: =IF(ISBLANK(dms_E12_Projects_04),"",dms_E12_Projects_04) -> 
B108: =IF(ISBLANK(dms_E12_Projects_05),"",dms_E12_Projects_05) -> 
B109: =IF(ISBLANK(dms_E12_Projects_06),"",dms_E12_Projects_06) -> 
B110: =IF(ISBLANK(dms_E12_Projects_07),"",dms_E12_Projects_07) -> 
B111: =IF(ISBLANK(dms_E12_Projects_08),"",dms_E12_Projects_08) -> 
B112: =IF(ISBLANK(dms_E12_Projects_09),"",dms_E12_Projects_09) -> 
B113: =IF(ISBLANK(dms_E12_Projects_10),"",dms_E12_Projects_10) -> 
B114: =IF(ISBLANK(dms_E12_Projects_11),"",dms_E12_Projects_11) -> 
B115: =IF(ISBLANK(dms_E12_Projects_12),"",dms_E12_Projects_12) -> 
B116: =IF(ISBLANK(dms_E12_Projects_13),"",dms_E12_Projects_13) -> 
B117: =IF(ISBLANK(dms_E12_Projects_14),"",dms_E12_Projects_14) -> 
B118: =IF(ISBLANK(dms_E12_Projects_15),"",dms_E12_Projects_15) -> 
B119: Aggregate of other projects with total expenditure of less than $500,000
B120: Total | C120: =SUM(C104:C119) -> 0 | D120: =SUM(D104:D119) -> 0 | E120: 0 | F120: 0 | G120: 0 | H120: 0 | I120: 0
B122: F. CAPITAL CONTRIBUTIONS included in the above
B123: =IF(ISBLANK(dms_E12_Projects_01),"",dms_E12_Projects_01) -> Project 1
B124: =IF(ISBLANK(dms_E12_Projects_02),"",dms_E12_Projects_02) -> 
B125: =IF(ISBLANK(dms_E12_Projects_03),"",dms_E12_Projects_03) -> 
B126: =IF(ISBLANK(dms_E12_Projects_04),"",dms_E12_Projects_04) -> 
B127: =IF(ISBLANK(dms_E12_Projects_05),"",dms_E12_Projects_05) -> 
B128: =IF(ISBLANK(dms_E12_Projects_06),"",dms_E12_Projects_06) -> 
B129: =IF(ISBLANK(dms_E12_Projects_07),"",dms_E12_Projects_07) -> 
B130: =IF(ISBLANK(dms_E12_Projects_08),"",dms_E12_Projects_08) -> 
B131: =IF(ISBLANK(dms_E12_Projects_09),"",dms_E12_Projects_09) -> 
B132: =IF(ISBLANK(dms_E12_Projects_10),"",dms_E12_Projects_10) -> 
B133: =IF(ISBLANK(dms_E12_Projects_11),"",dms_E12_Projects_11) -> 
B134: =IF(ISBLANK(dms_E12_Projects_12),"",dms_E12_Projects_12) -> 
B135: =IF(ISBLANK(dms_E12_Projects_13),"",dms_E12_Projects_13) -> 
B136: =IF(ISBLANK(dms_E12_Projects_14),"",dms_E12_Projects_14) -> 
B137: =IF(ISBLANK(dms_E12_Projects_15),"",dms_E12_Projects_15) -> 
B138: Aggregate of other projects with total expenditure of less than $500,000
B139: Total | C139: =SUM(C123:C138) -> 0 | D139: =SUM(D123:D138) -> 0 | E139: 0 | F139: 0 | G139: 0 | H139: 0 | I139: 0

Sheet E13. Other capex
B1: =INDEX(dms_Worksheet_List,MATCH(dms_Model,dms_Model_List)) -> REGULATORY REPORTING STATEMENT
B2: =INDEX(dms_TradingNameFull_List,MATCH(dms_TradingName,dms_TradingName_List)) -> Australian Gas Distribution Co.
B3: =dms_Header_Span -> 2019-20 - 2025-26
B4: E13. OTHER CAPITAL EXPENDITURE
B6: Please list all projects here:
B23: E13.1 - CAPEX - BY PROJECT
C24: EXPENDITURE
C25: =CONCATENATE("$0's, real ",dms_DollarReal) -> $0's, real June 2021
C26: =CRCP_y4 -> 2019-20 | D26: =CRCP_y5 -> 2020-21 | E26: =FRCP_y1 -> 2021-22 | F26: =FRCP_y2 -> 2022-23 | G26: =FRCP_y3 -> 2023-24 | H26: =FRCP_y4 -> 2024-25 | I26: =FRCP_y5 -> 2025-26
B27: A. DIRECT INTERNAL LABOUR EXPENDITURE
B29: =IF(ISBLANK(dms_E13_Projects_02),"",dms_E13_Projects_02) -> 
B30: =IF(ISBLANK(dms_E13_Projects_03),"",dms_E13_Projects_03) -> 
B31: =IF(ISBLANK(dms_E13_Projects_04),"",dms_E13_Projects_04) -> 
B32: =IF(ISBLANK(dms_E13_Projects_05),"",dms_E13_Projects_05) -> 
B33: =IF(ISBLANK(dms_E13_Projects_06),"",dms_E13_Projects_06) -> 
B34: =IF(ISBLANK(dms_E13_Projects_07),"",dms_E13_Projects_07) -> 
B35: =IF(ISBLANK(dms_E13_Projects_08),"",dms_E13_Projects_08) -> 
B36: =IF(ISBLANK(dms_E13_Projects_09),"",dms_E13_Projects_09) -> 
B37: =IF(ISBLANK(dms_E13_Projects_10),"",dms_E13_Projects_10) -> 
B38: =IF(ISBLANK(dms_E13_Projects_11),"",dms_E13_Projects_11) -> 
B39: =IF(ISBLANK(dms_E13_Projects_12),"",dms_E13_Projects_12) -> 
B40: =IF(ISBLANK(dms_E13_Projects_13),"",dms_E13_Projects_13) -> 
B41: =IF(ISBLANK(dms_E13_Projects_14),"",dms_E13_Projects_14) -> 
B42: =IF(ISBLANK(dms_E13_Projects_15),"",dms_E13_Projects_15) -> 
B43: Aggregate of other projects with total expenditure of less than $500,000
B44: Total | C44: =SUM(C28:C43) -> 0 | D44: =SUM(D28:D43) -> 0 | E44: 0 | F44: 0 | G44: 0 | H44: 0 | I44: 0
B46: B. DIRECT CONTRACTOR EXPENDITURE
B47: 2142 NETWORK - REGULATOR CAPEX
B48: 2139 NETWORK - REGULATOR STAY IN BUSINESS
B49: 2152 NETWORK - STOPPLE EQUIPMENT
B50: 2190 OTHER - NON RETIC CAPITAL
B51: 2106 C P - CORROSION PROTECTION - CAPEX
B52: 2130 MAINS ALTERATION - CHARGEABLE - CAPEX
B53: 2131 MAINS ALTERATION - NON CHARGEABLE - CAPEX
B54: HDPE Camera Inspections
B55: Northern Metro HP Main and Gawler Gate Station (SA115)
B56: DCVG Dig Up and Repair TP (SA101)
B57: Replacement of Valves (SA103)
B58: TP M53 Replacement (SA104)
B59: TP Modifications for ILI (SA105)
B60: Additional emergency isolation valves (SA107)
B61: I and C Meter Set Refurbishment (SA108)
B62: CP Assets Replacement (SA112)
B63: CP Remote Monitoring (SA126)
B64: Isolated Steel Sections from CP (SA127)
B65: I&C Overpressure risk reduction (SA129)
B66: Slab Sensitive TP Areas (SA131)
B67: Small Plant and Equipment (SA113)
B68: DRS Overpressure risk reduction (SA106)
B69: DRS Operability Risk Reduction (SA109)
B70: =IF(ISBLANK(dms_E13_Projects_13),"",dms_E13_Projects_13) -> 
B71: =IF(ISBLANK(dms_E13_Projects_14),"",dms_E13_Projects_14) -> 
B72: =IF(ISBLANK(dms_E13_Projects_15),"",dms_E13_Projects_15) -> 
B73: Aggregate of other projects with total expenditure of less than $500,000
B74: Total | C74: =SUM(C47:C73) -> 0 | D74: =SUM(D47:D73) -> 0 | E74: 0 | F74: 0 | G74: 0 | H74: 0 | I74: 0
B76: C. OTHER INTERNAL DIRECT EXPENDITURE
B77: =IF(ISBLANK(dms_E13_Projects_01),"",dms_E13_Projects_01) -> Project 1
B78: =IF(ISBLANK(dms_E13_Projects_02),"",dms_E13_Projects_02) -> 
B79: =IF(ISBLANK(dms_E13_Projects_03),"",dms_E13_Projects_03) -> 
B80: =IF(ISBLANK(dms_E13_Projects_04),"",dms_E13_Projects_04) -> 
B81: =IF(ISBLANK(dms_E13_Projects_05),"",dms_E13_Projects_05) -> 
B82: =IF(ISBLANK(dms_E13_Projects_06),"",dms_E13_Projects_06) -> 
B83: =IF(ISBLANK(dms_E13_Projects_07),"",dms_E13_Projects_07) -> 
B84: =IF(ISBLANK(dms_E13_Projects_08),"",dms_E13_Projects_08) -> 
B85: =IF(ISBLANK(dms_E13_Projects_09),"",dms_E13_Projects_09) -> 
B86: =IF(ISBLANK(dms_E13_Projects_10),"",dms_E13_Projects_10) -> 
B87: =IF(ISBLANK(dms_E13_Projects_11),"",dms_E13_Projects_11) -> 
B88: =IF(ISBLANK(dms_E13_Projects_12),"",dms_E13_Projects_12) -> 
B89: =IF(ISBLANK(dms_E13_Projects_13),"",dms_E13_Projects_13) -> 
B90: =IF(ISBLANK(dms_E13_Projects_14),"",dms_E13_Projects_14) -> 
B91: =IF(ISBLANK(dms_E13_Projects_15),"",dms_E13_Projects_15) -> 
B92: Aggregate of other projects with total expenditure of less than $500,000
B93: Total | C93: =SUM(C77:C92) -> 0 | D93: =SUM(D77:D92) -> 0 | E93: 0 | F93: 0 | G93: 0 | H93: 0 | I93: 0
B95: D. TOTAL OVERHEAD EXPENDITURE
B96: 2142 NETWORK - REGULATOR CAPEX | C96: 136969.2684 | D96: 188427.2473
B97: 2139 NETWORK - REGULATOR STAY IN BUSINESS | C97: 22957.9596 | D97: 3044.105755
B98: 2152 NETWORK - STOPPLE EQUIPMENT | C98: 229261.6327 | D98: 516143.6091
B99: 2190 OTHER - NON RETIC CAPITAL | C99: 82735.25702 | D99: 54757.70883
B100: 2106 C P - CORROSION PROTECTION - CAPEX | C100: 27635.82769 | D100: 19636.1547
B101: 2130 MAINS ALTERATION - CHARGEABLE - CAPEX | C101: 246787.9453 | D101: 181370.3632
B102: 2131 MAINS ALTERATION - NON CHARGEABLE - CAPEX | C102: 10113.73535 | D102: 0
B103: HDPE Camera Inspections | E103: 202371.6963 | F103: 190794.2116 | G103: 187183.3818 | H103: 180578.0163 | I103: 0
B104: Other Distribution overheads | E104: 715286.3661 | F104: 1034570.898 | G104: 966256.276 | H104: 924589.0379 | I104: 995263.5673
B105: Other Non-distribution overheads | E105: 105575.0097 | F105: 99535.16769 | G105: 67747.04505 | H105: 68796.18257 | I105: 88971.9605
B106: Regulators Overheads | E106: 69393.819 | F106: 73376.70491 | G106: 107610.5083 | H106: 109276.9754 | I106: 121777.5508
B107: Northern Metro HP Main and Gawler Gate Station (SA115) overheads | E107: 261792.3061 | F107: 380891.8574 | G107: 0 | H107: 0 | I107: 0
B109: =IF(ISBLANK(dms_E13_Projects_02),"",dms_E13_Projects_02) -> 
B110: =IF(ISBLANK(dms_E13_Projects_12),"",dms_E13_Projects_12) -> 
B111: =IF(ISBLANK(dms_E13_Projects_13),"",dms_E13_Projects_13) -> 
B112: =IF(ISBLANK(dms_E13_Projects_14),"",dms_E13_Projects_14) -> 
B113: =IF(ISBLANK(dms_E13_Projects_15),"",dms_E13_Projects_15) -> 
B114: Aggregate of other projects with total expenditure of less than $500,000
B115: Total | C115: =SUM(C96:C114) -> 756461.626 | D115: 963379.1889 | E115: 1354419.197 | F115: 1779168.839 | G115: 1328797.211 | H115: 1283240.212 | I115: 1206013.079
B117: E. RELATED PARTY MARGIN EXPENDITURE
B119: =IF(ISBLANK(dms_E13_Projects_02),"",dms_E13_Projects_02) -> 
B120: =IF(ISBLANK(dms_E13_Projects_03),"",dms_E13_Projects_03) -> 
B121: =IF(ISBLANK(dms_E13_Projects_04),"",dms_E13_Projects_04) -> 
B122: =IF(ISBLANK(dms_E13_Projects_05),"",dms_E13_Projects_05) -> 
B123: =IF(ISBLANK(dms_E13_Projects_06),"",dms_E13_Projects_06) -> 
B124: =IF(ISBLANK(dms_E13_Projects_07),"",dms_E13_Projects_07) -> 
B125: =IF(ISBLANK(dms_E13_Projects_08),"",dms_E13_Projects_08) -> 
B126: =IF(ISBLANK(dms_E13_Projects_09),"",dms_E13_Projects_09) -> 
B127: =IF(ISBLANK(dms_E13_Projects_10),"",dms_E13_Projects_10) -> 
B128: =IF(ISBLANK(dms_E13_Projects_11),"",dms_E13_Projects_11) -> 
B129: =IF(ISBLANK(dms_E13_Projects_12),"",dms_E13_Projects_12) -> 
B130: =IF(ISBLANK(dms_E13_Projects_13),"",dms_E13_Projects_13) -> 
B131: =IF(ISBLANK(dms_E13_Projects_14),"",dms_E13_Projects_14) -> 
B132: =IF(ISBLANK(dms_E13_Projects_15),"",dms_E13_Projects_15) -> 
B133: Aggregate of other projects with total expenditure of less than $500,000
B134: Total | C134: =SUM(C118:C133) -> 0 | D134: =SUM(D118:D133) -> 0 | E134: 0 | F134: 0 | G134: 0 | H134: 0 | I134: 0
B136: F. CAPITAL CONTRIBUTIONS included in the above
C137: 3969787.047 | D137: 3353820.893 | E137: 0 | F137: 0 | G137: 680242.7461 | H137: 883826.1363 | I137: 693107.8753
B138: =IF(ISBLANK(dms_E13_Projects_02),"",dms_E13_Projects_02) -> 
B139: =IF(ISBLANK(dms_E13_Projects_03),"",dms_E13_Projects_03) -> 
B140: =IF(ISBLANK(dms_E13_Projects_04),"",dms_E13_Projects_04) -> 
B141: =IF(ISBLANK(dms_E13_Projects_05),"",dms_E13_Projects_05) -> 
B142: =IF(ISBLANK(dms_E13_Projects_06),"",dms_E13_Projects_06) -> 
B143: =IF(ISBLANK(dms_E13_Projects_07),"",dms_E13_Projects_07) -> 
B144: =IF(ISBLANK(dms_E13_Projects_08),"",dms_E13_Projects_08) -> 
B145: =IF(ISBLANK(dms_E13_Projects_09),"",dms_E13_Projects_09) -> 
B146: =IF(ISBLANK(dms_E13_Projects_10),"",dms_E13_Projects_10) -> 
B147: =IF(ISBLANK(dms_E13_Projects_11),"",dms_E13_Projects_11) -> 
B148: =IF(ISBLANK(dms_E13_Projects_12),"",dms_E13_Projects_12) -> 
B149: =IF(ISBLANK(dms_E13_Projects_13),"",dms_E13_Projects_13) -> 
B150: =IF(ISBLANK(dms_E13_Projects_14),"",dms_E13_Projects_14) -> 
B151: =IF(ISBLANK(dms_E13_Projects_15),"",dms_E13_Projects_15) -> 
B152: Aggregate of other projects with total expenditure of less than $500,000
B153: Total | C153: =SUM(C137:C152) -> 3969787.047 | D153: =SUM(D137:D152) -> 3353820.893 | E153: 0 | F153: 0 | G153: 680242.7461 | H153: 883826.1363 | I153: 693107.8753

Sheet E17. Step changes
B1: =INDEX(dms_Worksheet_List,MATCH(dms_Model,dms_Model_List)) -> REGULATORY REPORTING STATEMENT
B2: =INDEX(dms_TradingNameFull_List,MATCH(dms_TradingName,dms_TradingName_List)) -> Australian Gas Networks Limited (reporting data for SA)
B3: =dms_Header_Span -> 2019-20 - 2025-26
B4: E17. STEP CHANGES
B6: E17.1 - STEP CHANGES FOR REFERENCE SERVICES
B7: E17.1.1 - FORECAST OPEX
D8: EXPENDITURE
D9: =CONCATENATE("$0's, real ",dms_DollarReal) -> $0's, real June 2021
B10: Step change | C10: Description | D10: =CRCP_y4 -> 2019-20 | E10: =CRCP_y5 -> 2020-21 | F10: =FRCP_y1 -> 2021-22 | G10: =FRCP_y2 -> 2022-23 | H10: =FRCP_y3 -> 2023-24 | I10: =FRCP_y4 -> 2024-25 | J10: =FRCP_y5 -> 2025-26
B11: Customer Relationship Management System | C11: Customer database to manage customer information | D11: N/A | E11: N/A | F11: ='[4]Input - Non-Base Year Costs'!F7*[4]Assumptions!$E$14*1000000 -> 6865.155 | G11: ='[4]Input - Non-Base Year Costs'!G7*[4]Assumptions!$E$14*1000000 -> 300324.915 | H11: ='[4]Input - Non-Base Year Costs'!H7*[4]Assumptions!$E$14*1000000 -> 342642.96 | I11: ='[4]Input - Non-Base Year Costs'!I7*[4]Assumptions!$E$14*1000000 -> 355451.085 | J11: ='[4]Input - Non-Base Year Costs'!J7*[4]Assumptions!$E$14*1000000 -> 355451.085
B12: Vulnerable Customer Initiative | C12: An initiative to help our vulnerable customers | D12: N/A | E12: N/A | F12: ='[4]Input - Non-Base Year Costs'!F8*[4]Assumptions!$E$14*1000000 -> 911938.5 | G12: ='[4]Input - Non-Base Year Costs'!G8*[4]Assumptions!$E$14*1000000 -> 732624.75 | H12: ='[4]Input - Non-Base Year Costs'!H8*[4]Assumptions!$E$14*1000000 -> 732624.75 | I12: ='[4]Input - Non-Base Year Costs'!I8*[4]Assumptions!$E$14*1000000 -> 732624.75 | J12: ='[4]Input - Non-Base Year Costs'!J8*[4]Assumptions!$E$14*1000000 -> 732624.75
B13: Insurance | C13: Additional forecast insurance expenditure driven by rise in premia | D13: N/A | E13: N/A | F13: ='[4]Input - Non-Base Year Costs'!F9*[4]Assumptions!$E$14*1000000 -> 391251.3109 | G13: ='[4]Input - Non-Base Year Costs'!G9*[4]Assumptions!$E$14*1000000 -> 528172.8722 | H13: ='[4]Input - Non-Base Year Costs'!H9*[4]Assumptions!$E$14*1000000 -> 628872.3183 | I13: ='[4]Input - Non-Base Year Costs'!I9*[4]Assumptions!$E$14*1000000 -> 675371.5091 | J13: ='[4]Input - Non-Base Year Costs'!J9*[4]Assumptions!$E$14*1000000 -> 709631.0712
B21: Total | D21: =SUM(D11:D20) -> 0 | E21: 0 | F21: 1310054.966 | G21: 1561122.537 | H21: 1704140.028 | I21: 1763447.344 | J21: 1797706.906
B23: E17.1.2 - FORECAST CAPEX
D24: EXPENDITURE
D25: =CONCATENATE("$0's, real ", dms_DollarReal) -> $0's, real June 2021
B26: Step change | C26: Description | D26: =CRCP_y4 -> 2019-20 | E26: =CRCP_y5 -> 2020-21 | F26: =FRCP_y1 -> 2021-22 | G26: =FRCP_y2 -> 2022-23 | H26: =FRCP_y3 -> 2023-24 | I26: =FRCP_y4 -> 2024-25 | J26: =FRCP_y5 -> 2025-26
D27: N/A | E27: N/A | F27: N/A | G27: N/A | H27: N/A | I27: N/A | J27: N/A
B37: Total | D37: =SUM(D27:D36) -> 0 | E37: 0 | F37: 0 | G37: 0 | H37: 0 | I37: 0 | J37: 0
B41: E17.2 - CATEGORY SPECIFIC FORECASTS
D42: EXPENDITURE
D43: =CONCATENATE("$0's, real ",dms_DollarReal) -> $0's, real June 2021
B44: Category desription | D44: =CRCP_y4 -> 2019-20 | E44: =CRCP_y5 -> 2020-21 | F44: =FRCP_y1 -> 2021-22 | G44: =FRCP_y2 -> 2022-23 | H44: =FRCP_y3 -> 2023-24 | I44: =FRCP_y4 -> 2024-25 | J44: =FRCP_y5 -> 2025-26
B45: Unaccounted For Gas | D45: 8859178.094 | E45: 8854274.472 | F45: 9443174.4 | G45: 9443174.4 | H45: 9443174.4 | I45: 9443174.4 | J45: 9443174.4
B46: Debt Raising Costs | D46: 1209087 | E46: 1212370.344 | F46: 859896.9104 | G46: 866952.1746 | H46: 876502.836 | I46: 885806.7746 | J46: 895757.6078
B47: Capitalised Overheads Expensed | D47: 1072487.858 | E47: 1072487.858 | F47: 0 | G47: 0 | H47: 0 | I47: 0 | J47: 0
B48: Ancillary Reference Services | D48: 2386925.261 | E48: 2403612.008 | F48: 2417877.034 | G48: 2442706.934 | H48: 2470407.111 | I48: 2500972.666 | J48: 2530842.714
B70: Total | D70: =SUM(D45:D69) -> 13527678.21 | E70: 13542744.68 | F70: 12720948.34 | G70: 12752833.51 | H70: 12790084.35 | I70: 12829953.84 | J70: 12869774.72

Sheet E20. Opex
B1: =INDEX(dms_Worksheet_List,MATCH(dms_Model,dms_Model_List)) -> REGULATORY REPORTING STATEMENT
B2: =INDEX(dms_TradingNameFull_List,MATCH(dms_TradingName,dms_TradingName_List)) -> Australian Gas Networks Limited (reporting data for SA)
B3: =dms_Header_Span -> 2019-20 - 2025-26
B4: E20. OPERATING EXPENDITURE
B7: IMPORTANT!
B8: =CONCATENATE("Has ",dms_TradingName," used a base-step-trend model to derive its opex forecast? ") -> Has AGN (SA) used a base-step-trend model to derive its opex forecast? | D8: Yes
B9: Yes / No
B10: Please nominate the base year | D10: 2019-20
E11: 2015-16 | F11: 2016-17 | G11: 2017-18 | H11: 2018-19 | I11: 2019-20
B12: E20.1 - OPEX - BY DRIVER
B13: E20.1.1 - REFERENCE SERVICES
C14: EXPENDITURE
C15: =CONCATENATE("$0's, real ",dms_DollarReal) -> $0's, real June 2021
C16: =CRCP_y1 -> 2016-17 | D16: =CRCP_y2 -> 2017-18 | E16: =CRCP_y3 -> 2018-19 | F16: =CRCP_y4 -> 2019-20 | G16: =CRCP_y5 -> 2020-21 | H16: =FRCP_y1 -> 2021-22 | I16: =FRCP_y2 -> 2022-23 | J16: =FRCP_y3 -> 2023-24 | K16: =FRCP_y4 -> 2024-25 | L16: =FRCP_y5 -> 2025-26
B17: Base year total opex, excluding category specific | D17: 60624557.29 | E17: 54831622.64 | F17: 57994165.35 | G17: 57994165.35 | H17: 57994165.35 | I17: 57994165.35 | J17: 57994165.35 | K17: 57994165.35 | L17: 57994165.35
B18: Increment from base year to final year | G18: 0
B19: Price growth | H19: 368992.8505 | I19: 527212.9933 | J19: 660465.2982 | K19: 932104.5833 | L19: 1049328.296
B20: Output growth | H20: 806052.3079 | I20: 716445.5163 | J20: 1185560.746 | K20: 1498626.058 | L20: 1855988.206
B21: Productivity growth | H21: 0 | I21: 482640.4192 | J21: 553978.6539 | K21: 636021.1429 | L21: 772275.7228
B22: Step changes | H22: 1310054.966 | I22: 1561122.537 | J22: 1704140.028 | K22: 1763447.344 | L22: 1797706.906
B23: Category specific | F23: =IF(ISBLANK('E17. Step changes'!D70),"",'E17. Step changes'!D70) -> 13527678.21 | G23: =IF(ISBLANK('E17. Step changes'!E70),"",'E17. Step changes'!E70) -> 13542744.68 | H23: =IF(ISBLANK('E17. Step changes'!F70),"",'E17. Step changes'!F70) -> 12720948.34 | I23: =IF(ISBLANK('E17. Step changes'!G70),"",'E17. Step changes'!G70) -> 12752833.51 | J23: =IF(ISBLANK('E17. Step changes'!H70),"",'E17. Step changes'!H70) -> 12790084.35 | K23: =IF(ISBLANK('E17. Step changes'!I70),"",'E17. Step changes'!I70) -> 12829953.84 | L23: =IF(ISBLANK('E17. Step changes'!J70),"",'E17. Step changes'!J70) -> 12869774.72
B25: E20.1.2 - NON-REFERENCE SERVICES
C26: EXPENDITURE
C27: =CONCATENATE("$0's, real ",dms_DollarReal) -> $0's, real June 2021
C28: =CRCP_y1 -> 2016-17 | D28: =CRCP_y2 -> 2017-18 | E28: =CRCP_y3 -> 2018-19 | F28: =CRCP_y4 -> 2019-20 | G28: =CRCP_y5 -> 2020-21 | H28: =FRCP_y1 -> 2021-22 | I28: =FRCP_y2 -> 2022-23 | J28: =FRCP_y3 -> 2023-24 | K28: =FRCP_y4 -> 2024-25 | L28: =FRCP_y5 -> 2025-26
B29: Base year total opex, excluding category specific | E29: 0 | F29: 317068 | G29: 320901.7338 | H29: 323901.6228 | I29: 325823.9235 | J29: 329169.9065 | K29: 332902.6771 | L29: 337021.5752
B30: Increment from base year to final year
B31: Price growth
B32: Output growth
B33: Productivity growth
B34: Step changes
B35: Category specific
B39: E20.2 - OPEX - BY CATEGORY
B40: E20.2.1 - REFERENCE SERVICES
C41: EXPENDITURE
C42: =CONCATENATE("$0's, real ",dms_DollarReal) -> $0's, real June 2021
C43: =CRCP_y1 -> 2016-17 | D43: =CRCP_y2 -> 2017-18 | E43: =CRCP_y3 -> 2018-19 | F43: =CRCP_y4 -> 2019-20 | G43: =CRCP_y5 -> 2020-21 | H43: =FRCP_y1 -> 2021-22 | I43: =FRCP_y2 -> 2022-23 | J43: =FRCP_y3 -> 2023-24 | K43: =FRCP_y4 -> 2024-25 | L43: =FRCP_y5 -> 2025-26
B44: repairs and maintenance | F44: 43357040.1 | G44: 43958938.08 | H44: 44235516.06 | I44: 44647639.1 | J44: 45151308.53 | K44: 45649775.57 | L44: 46106446.23
B45: marketing and retail incentives | F45: 5278996.8 | G45: 5352281.727 | H45: 5385956.864 | I45: 5436135.479 | J45: 5497460.451 | K45: 5558152.001 | L45: 5613754.572
B46: debt raising | F46: 1209087 | G46: 1212370.344 | H46: 859896.9104 | I46: 866952.1746 | J46: 876502.836 | K46: 885806.7746 | L46: 895757.6078
B47: equity raising
B48: unaccounted for gas | F48: 8859178.094 | G48: 8854274.472 | H48: 9443174.4 | I48: 9443174.4 | J48: 9443174.4 | K48: 9443174.4 | L48: 9443174.4
B49: jurisdictional charges
B50: GSL payments
B51: other opex | F51: 9358128.45 | G51: 9488041.345 | H51: 13275669.58 | I51: 13640519.17 | J51: 13919948.21 | K51: 14117409.57 | L51: 14280106.4
B52: TOTAL | F52: =SUM(F44:F51) -> 68062430.44 | G52: 68865905.97 | H52: 73200213.82 | I52: 74034420.32 | J52: 74888394.42 | K52: 75654318.32 | L52: 76339239.2
B54: E20.2.2 - NON-REFERENCE SERVICES
C55: EXPENDITURE
C56: =CONCATENATE("$0's, real ",dms_DollarReal) -> $0's, real June 2021
C57: =CRCP_y1 -> 2016-17 | D57: =CRCP_y2 -> 2017-18 | E57: =CRCP_y3 -> 2018-19 | F57: =CRCP_y4 -> 2019-20 | G57: =CRCP_y5 -> 2020-21 | H57: =FRCP_y1 -> 2021-22 | I57: =FRCP_y2 -> 2022-23 | J57: =FRCP_y3 -> 2023-24 | K57: =FRCP_y4 -> 2024-25 | L57: =FRCP_y5 -> 2025-26
B58: Special account investigation | F58: 12153.19117 | G58: 12266.80298 | H58: 12339.60435 | I58: 12466.32343 | J58: 12607.69093 | K58: 12763.68185 | L58: 12916.12325
B59: No access | F59: 189904.7451 | G59: 191680.0336 | H59: 192817.6218 | I59: 194797.7234 | J59: 197006.7201 | K59: 199444.2211 | L59: 201826.2577
B60: Same day service premium | F60: 46178.68535 | G60: 46610.37803 | H60: 46887.00265 | I60: 47368.49926 | J60: 47905.65572 | K60: 48498.37705 | L60: 49077.61122
B61: MFX unable to be completed | F61: 72665.11215 | G61: 73344.40817 | H61: 73779.69469 | I61: 74537.36037 | J61: 75382.61038 | K61: 76315.29526 | L61: 77226.75725
B83: TOTAL | F83: =SUM(F58:F82) -> 320901.7338 | G83: =SUM(G58:G82) -> 323901.6228 | H83: 325823.9235 | I83: 329169.9065 | J83: 332902.6771 | K83: 337021.5752 | L83: 341046.7494
B87: E20.3 - OPEX - BY CATEGORY - RELATED PARTY MARGIN EXPENDITURE
B88: 20.3.1 - REFERENCE SERVICES
C89: EXPENDITURE
C90: =CONCATENATE("$0's, real ",dms_DollarReal) -> $0's, real June 2021
C91: =CRCP_y1 -> 2016-17 | D91: =CRCP_y2 -> 2017-18 | E91: =CRCP_y3 -> 2018-19 | F91: =CRCP_y4 -> 2019-20 | G91: =CRCP_y5 -> 2020-21 | H91: =FRCP_y1 -> 2021-22 | I91: =FRCP_y2 -> 2022-23 | J91: =FRCP_y3 -> 2023-24 | K91: =FRCP_y4 -> 2024-25 | L91: =FRCP_y5 -> 2025-26
B92: repairs and maintenance | F92: N/A | G92: N/A | H92: N/A | I92: N/A | J92: N/A | K92: N/A | L92: N/A
B93: marketing and retail incentives
B94: debt raising
B95: equity raising
B96: unaccounted for gas
B97: jurisdictional charges
B98: GSL payments
B99: other opex
B100: TOTAL | F100: =SUM(F92:F99) -> 0 | G100: 0 | H100: 0 | I100: 0 | J100: 0 | K100: 0 | L100: 0
B102: 20.3.2 - NON-REFERENCE SERVICES
C103: EXPENDITURE
C104: =CONCATENATE("$0's, real ",dms_DollarReal) -> $0's, real June 2021
C105: =CRCP_y1 -> 2016-17 | D105: =CRCP_y2 -> 2017-18 | E105: =CRCP_y3 -> 2018-19 | F105: =CRCP_y4 -> 2019-20 | G105: =CRCP_y5 -> 2020-21 | H105: =FRCP_y1 -> 2021-22 | I105: =FRCP_y2 -> 2022-23 | J105: =FRCP_y3 -> 2023-24 | K105: =FRCP_y4 -> 2024-25 | L105: =FRCP_y5 -> 2025-26
B106: =IF(ISBLANK(B58),"",B58) -> Special account investigation | F106: 12153.19117 | G106: 12266.80298 | H106: 12339.60435 | I106: 12466.32343 | J106: 12607.69093 | K106: 12763.68185 | L106: 12916.12325
B107: No access | F107: 189904.7451 | G107: 191680.0336 | H107: 192817.6218 | I107: 194797.7234 | J107: 197006.7201 | K107: 199444.2211 | L107: 201826.2577
B108: Same day service premium | F108: 46178.68535 | G108: 46610.37803 | H108: 46887.00265 | I108: 47368.49926 | J108: 47905.65572 | K108: 48498.37705 | L108: 49077.61122
B109: MFX unable to be completed | F109: 72665.11215 | G109: 73344.40817 | H109: 73779.69469 | I109: 74537.36037 | J109: 75382.61038 | K109: 76315.29526 | L109: 77226.75725
B131: TOTAL | F131: =SUM(F106:F130) -> 320901.7338 | G131: =SUM(G106:G130) -> 323901.6228 | H131: 325823.9235 | I131: 329169.9065 | J131: 332902.6771 | K131: 337021.5752 | L131: 341046.7494

Sheet E21. ARS
B1: =INDEX(dms_Worksheet_List,MATCH(dms_Model,dms_Model_List)) -> REGULATORY REPORTING STATEMENT
B2: =INDEX(dms_TradingNameFull_List,MATCH(dms_TradingName,dms_TradingName_List)) -> Australian Gas Networks Limited (reporting data for SA)
B3: =dms_Header_Span -> 2019-20 - 2025-26
B4: E21. ANCILLARY REFERENCE SERVICES
B6: E21.1 - VOLUMES
C7: VOLUME
C8: 0's
B9: Description | C9: =CRCP_y4 -> 2019-20 | D9: =CRCP_y5 -> 2020-21 | E9: =FRCP_y1 -> 2021-22 | F9: =FRCP_y2 -> 2022-23 | G9: =FRCP_y3 -> 2023-24 | H9: =FRCP_y4 -> 2024-25 | I9: =FRCP_y5 -> 2025-26
B10: Special Meter Read | C10: 108053.8932 | D10: 109064.0145 | E10: 109711.2908 | F10: 110837.9487 | G10: 112094.8456 | H10: 113481.7592 | I10: 114837.1141
B11: Disconnection | C11: 6701.05586 | D11: 6763.69941 | E11: 6803.840808 | F11: 6873.711478 | G11: 6951.659029 | H11: 7037.669679 | I11: 7121.723188
B12: Reconnection | C12: 6719.273501 | D12: 6782.087355 | E12: 6822.337884 | F12: 6892.398505 | G12: 6970.557966 | H12: 7056.802446 | I12: 7141.084466
B13: Meter Removal | C13: 2281.253573 | D13: 2302.57944 | E13: 2316.244855 | F13: 2340.031063 | G13: 2366.566901 | H13: 2395.847675 | I13: 2424.462176
B14: Meter Reinstallation | C14: 43.51992176 | D14: 43.92675949 | E14: 44.1874573 | F14: 44.64123147 | G14: 45.14746084 | H14: 45.70605591 | I14: 46.25194036
B15: Meter Gas and Installation Test | C15: 51.61665139 | D15: 52.09917987 | E15: 52.40837958 | F15: 52.94657686 | G15: 53.54698844 | H15: 54.20950817 | I15: 54.85695251
B17: Total | C17: =SUM(C10:C16) -> 123850.6127 | D17: =SUM(D10:D16) -> 125008.4067 | E17: =SUM(E10:E16) -> 125750.3102 | F17: 127041.6776 | G17: 128482.324 | H17: 130071.9946 | I17: 131625.4929
B19: E21.2 - omitted
B21: E21.3 - EXPENDITURE
C22: EXPENDITURE
C23: =CONCATENATE("$0's, real ",dms_DollarReal) -> $0's, real June 2021
C24: =CRCP_y4 -> 2019-20 | D24: =CRCP_y5 -> 2020-21 | E24: =FRCP_y1 -> 2021-22 | F24: =FRCP_y2 -> 2022-23 | G24: =FRCP_y3 -> 2023-24 | H24: =FRCP_y4 -> 2024-25 | I24: =FRCP_y5 -> 2025-26
B25: =IF(ISBLANK(B10),"",B10) -> Special Meter Read | C25: 1188460.244 | D25: 1199704.16 | E25: 1206824.199 | F25: 1219217.436 | G25: 1233043.302 | H25: 1248299.352 | I25: 1263208.256
B26: Disconnection | C26: 505004.725 | D26: 507277.4557 | E26: 510288.0606 | F26: 515528.3608 | G26: 521374.4272 | H26: 527825.2259 | I26: 534129.2391
B27: Reconnection | C27: 506377.6423 | D27: 508656.5517 | E27: 511675.3413 | F27: 516929.8879 | G27: 522791.8474 | H27: 529260.1835 | I27: 535581.3349
B28: Meter Removal | C28: 171919.7478 | D28: 172693.458 | E28: 173718.3641 | F28: 175502.3298 | G28: 177492.5176 | H28: 179688.5756 | I28: 181834.6632
B29: Meter Reinstallation | C29: 3545.672153 | D29: 3558.067519 | E29: 3579.184041 | F29: 3615.939749 | G29: 3656.944328 | H29: 3702.190529 | I29: 3746.407169
B30: Meter Gas and Installation Test | C30: 11617.22989 | D30: 11722.31547 | E30: 11791.88541 | F30: 11912.97979 | G30: 12048.0724 | H30: 12197.13934 | I30: 12342.81432
B32: Total | C32: =SUM(C25:C31) -> 2386925.261 | D32: 2403612.008 | E32: 2417877.034 | F32: 2442706.934 | G32: 2470407.111 | H32: 2500972.666 | I32: 2530842.714

Sheet E25. Escalators
B1: =INDEX(dms_Worksheet_List,MATCH(dms_Model,dms_Model_List)) -> REGULATORY REPORTING STATEMENT
B2: =INDEX(dms_TradingNameFull_List,MATCH(dms_TradingName,dms_TradingName_List)) -> Australian Gas Networks Limited (reporting data for SA)
B3: =dms_Header_Span -> 2019-20 - 2025-26
B4: E25. ESCALATORS
B6: E25.1 - FORECAST CAPEX AND OPEX PRICE CHANGES
C7: Price changes (% YoY real)
C8: =CRCP_y4 -> 2019-20 | D8: =CRCP_y5 -> 2020-21 | E8: =FRCP_y1 -> 2021-22 | F8: =FRCP_y2 -> 2022-23 | G8: =FRCP_y3 -> 2023-24 | H8: =FRCP_y4 -> 2024-25 | I8: =FRCP_y5 -> 2025-26
B9: E25.1.1 - OPEX
B10: Labour | C10: 0.005276955252 | D10: 0.00775158055 | E10: 0.007318938127 | F10: 0.007988084194 | G10: 0.009819259799 | H10: 0.009103840952 | I10: 0.008098549228
B11: Materials | C11: 0 | D11: 0 | E11: 0 | F11: 0 | G11: 0 | H11: 0 | I11: 0
B16: E25.1.2 - CAPEX
B17: Weighted real input cost escalation | E17: 0.0044 | F17: 0.0048 | G17: 0.0059 | H17: 0.0054 | I17: 0.0048

Sheet N1. Demand
B1: =INDEX(dms_Worksheet_List,MATCH(dms_Model,dms_Model_List)) -> REGULATORY REPORTING STATEMENT
B2: =INDEX(dms_TradingNameFull_List,MATCH(dms_TradingName,dms_TradingName_List)) -> Australian Gas Networks Limited (reporting data for SA)
B3: =dms_Header_Span -> 2019-20 - 2025-26
B4: N1. DEMAND
B6: N1.1 - DEMAND - BY CUSTOMER TYPE
C7: VOLUME
C8: GJ
C9: =CRCP_y4 -> 2019-20 | D9: =CRCP_y5 -> 2020-21 | E9: =FRCP_y1 -> 2021-22 | F9: =FRCP_y2 -> 2022-23 | G9: =FRCP_y3 -> 2023-24 | H9: =FRCP_y4 -> 2024-25 | I9: =FRCP_y5 -> 2025-26
B10: Residential | C10: 7254573.773 | D10: 7135021.168 | E10: 7063354.904 | F10: 6965197.95 | G10: 6922094.708 | H10: 6753763.464 | I10: 6661180.799
B11: Commercial | C11: 3333179.922 | D11: 3342236.533 | E11: 3361719.363 | F11: 3391167.843 | G11: 3412491.965 | H11: 3411364.468 | I11: 3423291.862
B12: Industrial | C12: 10915304.24 | D12: 10564890.31 | E12: 10272242.92 | F12: 9982565.981 | G12: 9698534.395 | H12: 9420162.389 | I12: 9147402.27
B13: Total | C13: =SUM(C10:C12) -> 21503057.93 | D13: 21042148.01 | E13: 20697317.18 | F13: 20338931.77 | G13: 20033121.07 | H13: 19585290.32 | I13: 19231874.93
B17: N1.2 - DEMAND - BY TARIFF
C18: VOLUMES
C19: GJ
B20: Tariff | C20: =CRCP_y4 -> 2019-20 | D20: =CRCP_y5 -> 2020-21 | E20: =FRCP_y1 -> 2021-22 | F20: =FRCP_y2 -> 2022-23 | G20: =FRCP_y3 -> 2023-24 | H20: =FRCP_y4 -> 2024-25 | I20: =FRCP_y5 -> 2025-26
B21: Tariff R - SA excl New Towns | C21: 7249464.26 | D21: 7129995.859 | E21: 7058380.07 | F21: 6953397.454 | G21: 6835464.003 | H21: 6711463.327 | I21: 6601318.082
B22: Tariff R - New Towns | C22: 5109.512266 | D22: 5025.309456 | E22: 4974.833761 | F22: 11800.49551 | G22: 86630.70531 | H22: 42300.13652 | I22: 59862.71724
B23: Tariff C - SA excl New Towns | C23: 3322565.609 | D23: 3331593.38 | E23: 3351014.168 | F23: 3378637.62 | G23: 3388136.425 | H23: 3382555.628 | I23: 3384008.68
B24: Tariff C - New Towns | C24: 10614.3131 | D24: 10643.15334 | E24: 10705.19525 | F24: 12530.22314 | G24: 24355.54014 | H24: 28808.83997 | I24: 39283.18186
B25: Northern | C25: 7903282.529 | D25: 7649563.51 | E25: 7437670.653 | F25: 7224699.925 | G25: 7015656.939 | H25: 6810587.949 | I25: 6609550.597
B26: Central | C26: 1561599.062 | D26: 1511467.059 | E26: 1469599.431 | F26: 1411512.392 | G26: 1355124.942 | H26: 1300441.26 | I26: 1247385.949
B27: Southern | C27: 346371.8219 | D27: 335252.2499 | E27: 325965.7649 | F27: 314543.4478 | G27: 303296.1629 | H27: 292219.3772 | I27: 281308.6295
B28: Peterborough
B29: Port Pirie
B30: Riverland
B31: South East
B32: Whyalla
B96: Total | C96: =SUM(C21:C95) -> 20399007.11 | D96: 19973540.52 | E96: 19658310.12 | F96: 19307121.56 | G96: 19008664.72 | H96: 18568376.52 | I96: 18222717.84

Sheet N2. Network characteristics
B1: =INDEX(dms_Worksheet_List,MATCH(dms_Model,dms_Model_List)) -> REGULATORY REPORTING STATEMENT
B2: =INDEX(dms_TradingNameFull_List,MATCH(dms_TradingName,dms_TradingName_List)) -> Australian Gas Networks Limited (reporting data for SA)
B3: =dms_Header_Span -> 2019-20 - 2025-26
B4: N2. NETWORK CHARACTERISTICS
B6: N2.1 - NETWORK LENGTH - BY PRESSURE AND ASSET TYPE
D7: LENGTH
D8: KM
D9: =CRCP_y4 -> 2019-20 | E9: =CRCP_y5 -> 2020-21 | F9: =FRCP_y1 -> 2021-22 | G9: =FRCP_y2 -> 2022-23 | H9: =FRCP_y3 -> 2023-24 | I9: =FRCP_y4 -> 2024-25 | J9: =FRCP_y5 -> 2025-26
B10: N2.1.1 - LOW PRESSURE
C11: Cast Iron | D11: 305.928 | E11: 300.104845 | F11: 239.9383827 | G11: 179.7719203 | H11: 116.3567177 | I11: 54.14567285 | J11: 0
C12: PVC | D12: 0 | E12: 0 | F12: 0 | G12: 0 | H12: 0 | I12: 0 | J12: 0
C13: Polyamide | D13: 0 | E13: 0 | F13: 0 | G13: 0 | H13: 0 | I13: 0 | J13: 0
C14: High density polyethylene (80) | D14: 0 | E14: 0 | F14: 0 | G14: 0 | H14: 0 | I14: 0 | J14: 0
C15: High density polyethylene (100) | D15: 21.729 | E15: 30.26821404 | F15: 28.53676721 | G15: 26.68653441 | H15: 24.72868239 | I15: 22.78214615 | J15: 20.845
C16: High density polyethylene (250) | D16: 149.689 | E16: 117.9979995 | F16: 111.2176579 | G16: 84.03331579 | H16: 55.34462368 | I16: 27.0783 | J16: 0
C17: High density polyethylene (575) | D17: 48.144 | E17: 36.37715047 | F17: 34.02589474 | G17: 25.70378947 | H17: 16.92208421 | I17: 8.2728 | J17: 0
C18: Medium density polyethylene | D18: 58.156 | E18: 44.31505975 | F18: 42.36122267 | G18: 32.10644534 | H18: 21.26676032 | I18: 10.52833846 | J18: 0
C19: Other polyethylene | D19: 0 | E19: 0 | F19: 0 | G19: 0 | H19: 0 | I19: 0 | J19: 0
C20: Unprotected steel | D20: 35.4745 | E20: 32.10610621 | F20: 27.45554453 | G20: 20.77008907 | H20: 13.71022206 | I20: 6.739407692 | J20: 0
C21: Protected steel | D21: 15.4865 | E21: 17.0007812 | F21: 13.50172065 | G21: 11.9594413 | H21: 10.33543887 | I21: 7.552015385 | J21: 6.099
C22: Other | D22: 0.026 | E22: 0 | F22: 0 | G22: 0 | H22: 0 | I22: 0 | J22: 0
B23: N2.1.2 - MEDIUM PRESSURE
C24: Cast Iron | D24: 15.7295 | E24: 7 | F24: 3.5 | G24: 0 | H24: 0 | I24: 0 | J24: 0
C25: PVC | D25: 0 | E25: 0 | F25: 0 | G25: 0 | H25: 0 | I25: 0 | J25: 0
C26: Polyamide | D26: 0 | E26: 0 | F26: 0 | G26: 0 | H26: 0 | I26: 0 | J26: 0
C27: High density polyethylene (80) | D27: 0 | E27: 0 | F27: 0 | G27: 0 | H27: 0 | I27: 0 | J27: 0
C28: High density polyethylene (100) | D28: 470.0625618 | E28: 544.1164164 | F28: 568.1443664 | G28: 592.6061301 | H28: 616.8840343 | I28: 646.4801802 | J28: 676.0151117
C29: High density polyethylene (250) | D29: 65.504 | E29: 14 | F29: 7 | G29: 0 | H29: 0 | I29: 0 | J29: 0
C30: High density polyethylene (575) | D30: 490.91 | E30: 470.207214 | F30: 460.2106973 | G30: 450.2141806 | H30: 430.2211473 | I30: 405.2298556 | J30: 380.2385639
C31: Medium density polyethylene | D31: 1386.45 | E31: 1386.991991 | F31: 1386.991991 | G31: 1386.991991 | H31: 1386.991991 | I31: 1386.991991 | J31: 1386.991991
C32: Other polyethylene | D32: 0 | E32: 0 | F32: 0 | G32: 0 | H32: 0 | I32: 0 | J32: 0
C33: Unprotected steel | D33: 4.199 | E33: 1 | F33: 0.5 | G33: 0 | H33: 0 | I33: 0 | J33: 0
C34: Protected steel | D34: 480.311 | E34: 480.0018557 | F34: 480.0018557 | G34: 480.0018557 | H34: 480.0018557 | I34: 480.0018557 | J34: 480.0018557
C35: Other | D35: 1.086 | E35: 1.0076814 | F35: 0.9355648247 | G35: 0.8691591388 | H35: 0.8080120983 | I35: 0.7517072729 | J35: 0.6998612089
B36: N2.1.3 - HIGH PRESSURE
C37: Cast Iron | D37: 0.118 | E37: 0 | F37: 0 | G37: 0 | H37: 0 | I37: 0 | J37: 0
C38: PVC | D38: 0 | E38: 0 | F38: 0 | G38: 0 | H38: 0 | I38: 0 | J38: 0
C39: Polyamide | D39: 0 | E39: 0 | F39: 0 | G39: 0 | H39: 0 | I39: 0 | J39: 0
C40: High density polyethylene (80) | D40: 0 | E40: 0 | F40: 0 | G40: 0 | H40: 0 | I40: 0 | J40: 0
C41: High density polyethylene (100) | D41: 856.6191382 | E41: 1094.581622 | F41: 1267.830721 | G41: 1466.366127 | H41: 1677.68325 | I41: 1882.579602 | J41: 2072.046351
C42: High density polyethylene (250) | D42: 0.155 | E42: 0 | F42: 0 | G42: 0 | H42: 0 | I42: 0 | J42: 0
C43: High density polyethylene (575) | D43: 703.3148 | E43: 603.2738401 | F43: 563.4038241 | G43: 523.5338082 | H43: 483.6637923 | I43: 443.7937764 | J43: 405.9172613
C44: Medium density polyethylene | D44: 1926.541 | E44: 1926.001887 | F44: 1925.462925 | G44: 1924.924115 | H44: 1924.385455 | I44: 1923.846947 | J44: 1923.308591
C45: Other polyethylene | D45: 0 | E45: 0 | F45: 0 | G45: 0 | H45: 0 | I45: 0 | J45: 0
C46: Unprotected steel | D46: 0.169 | E46: 0.169 | F46: 0.169 | G46: 0.169 | H46: 0.169 | I46: 0.169 | J46: 0.169
C47: Protected steel | D47: 1140.162 | E47: 1140.00383 | F47: 1140.50383 | G47: 1140.50383 | H47: 1141.00383 | I47: 1142.20383 | J47: 1142.20383
C48: Other | D48: 0.195 | E48: 0.195 | F48: 0.195 | G48: 0.195 | H48: 0.195 | I48: 0.195 | J48: 0.195
B49: N2.1.4 - TRANSMISSION
C50: Protected steel | D50: 214 | E50: 254 | F50: 254 | G50: 254 | H50: 254 | I50: 254 | J50: 254
C51: Other | D51: 0 | E51: 0 | F51: 0 | G51: 0 | H51: 0 | I51: 0 | J51: 0
C52: Total | D52: =SUM(D11:D51) -> 8390.159 | E52: 8500.720494 | F52: 8555.886966 | G52: 8601.406732 | H52: 8654.671898 | I52: 8703.342426 | J52: 8748.731416
B56: N2.2 - CITY GATES / REGULATORS
D57: VOLUMES
D58: 0's
D59: =CRCP_y4 -> 2019-20 | E59: =CRCP_y5 -> 2020-21 | F59: =FRCP_y1 -> 2021-22 | G59: =FRCP_y2 -> 2022-23 | H59: =FRCP_y3 -> 2023-24 | I59: =FRCP_y4 -> 2024-25 | J59: =FRCP_y5 -> 2025-26
C60: City Gate | D60: 0 | E60: 1 | F60: 1 | G60: 1 | H60: 1 | I60: 1 | J60: 1
C61: Field Regulator | D61: 251 | E61: 252 | F61: 230 | G61: 208 | H61: 186 | I61: 164 | J61: 146
C62: District Regulator | D62: 0 | E62: 0 | F62: 0 | G62: 0 | H62: 0 | I62: 0 | J62: 0
C63: Total | D63: =SUM(D60:D62) -> 251 | E63: =SUM(E60:E62) -> 253 | F63: =SUM(F60:F62) -> 231 | G63: =SUM(G60:G62) -> 209 | H63: 187 | I63: 165 | J63: 147
B66: N2.5 - NETWORK LENGTH - BY POST CODE
D67: VOLUMES
D68: Metres, 0's
B69: Post Code | C69: Asset Type (drop down) | D69: =CRCP_y4 -> 2019-20 | E69: =CRCP_y5 -> 2020-21 | F69: =FRCP_y1 -> 2021-22 | G69: =FRCP_y2 -> 2022-23 | H69: =FRCP_y3 -> 2023-24 | I69: =FRCP_y4 -> 2024-25 | J69: =FRCP_y5 -> 2025-26
B70: 5000 | C70: Cast Iron | D70: 6523.5 | E70: 0 | F70: 0 | G70: 0 | H70: 0 | I70: 0 | J70: 0
B71: 5000 | C71: High density polyethylene (100) | D71: 56708.5 | E71: 64017 | F71: 64567 | G71: 64567 | H71: 64567 | I71: 64567 | J71: 64567
B72: 5000 | C72: High density polyethylene (250) | D72: 84 | E72: 0 | F72: 0 | G72: 0 | H72: 0 | I72: 0 | J72: 0
B73: 5000 | C73: High density polyethylene (575) | D73: 2054 | E73: 1973 | F73: 1973 | G73: 1973 | H73: 1973 | I73: 1973 | J73: 1973
B74: 5000 | C74: Medium density polyethylene | D74: 23401 | E74: 23117 | F74: 23117 | G74: 23117 | H74: 23117 | I74: 23117 | J74: 23117
B75: 5000 | C75: Other | D75: 134 | E75: 108 | F75: 108 | G75: 108 | H75: 108 | I75: 108 | J75: 108
B76: 5000 | C76: Protected steel | D76: 27639.5 | E76: 27846 | F76: 27846 | G76: 27846 | H76: 27846 | I76: 27846 | J76: 27846
B77: 5000 | C77: PVC | D77: 0 | E77: 0 | F77: 0 | G77: 0 | H77: 0 | I77: 0 | J77: 0
B78: 5000 | C78: Unprotected steel | D78: 617.5 | E78: 101 | F78: 101 | G78: 101 | H78: 101 | I78: 101 | J78: 101
B79: 5006 | C79: Cast Iron | D79: 22879 | E79: 22879 | F79: 16858.21053 | G79: 10837.42105 | H79: 4816.631579 | I79: 0 | J79: 0
B80: 5006 | C80: High density polyethylene (100) | D80: 377.9259605 | E80: 490.2095013 | F80: 10513.00733 | G80: 20545.55608 | H80: 30585.28909 | I80: 38643.53021 | J80: 38745.65857
B81: 5006 | C81: High density polyethylene (250) | D81: 8025 | E81: 8025 | F81: 5913.157895 | G81: 3801.315789 | H81: 1689.473684 | I81: 0 | J81: 0
B82: 5006 | C82: High density polyethylene (575) | D82: 2748 | E82: 2748 | F82: 2085.894737 | G82: 1423.789474 | H82: 761.6842105 | I82: 232 | J82: 232
B83: 5006 | C83: Medium density polyethylene | D83: 5714 | E83: 5714 | F83: 5207.684211 | G83: 4701.368421 | H83: 4195.052632 | I83: 3790 | J83: 3790
B84: 5006 | C84: Other | D84: 0 | E84: 0 | F84: 0 | G84: 0 | H84: 0 | I84: 0 | J84: 0
B85: 5006 | C85: Protected steel | D85: 10021 | E85: 10021 | F85: 9824.105263 | G85: 9627.210526 | H85: 9429.315789 | I85: 9272 | J85: 9272
B86: 5006 | C86: PVC | D86: 0 | E86: 0 | F86: 0 | G86: 0 | H86: 0 | I86: 0 | J86: 0
B87: 5006 | C87: Unprotected steel | D87: 1692 | E87: 1692 | F87: 1246.736842 | G87: 801.4736842 | H87: 356.2105263 | I87: 0 | J87: 0
B88: 5007 | C88: Cast Iron | D88: 445 | E88: 259.549112 | F88: 158.396138 | G88: 57.24316406 | H88: 37.79516602 | I88: 18.34716797 | J88: 0
B89: 5007 | C89: High density polyethylene (100) | D89: 11016.50625 | E89: 11718.46579 | F89: 12229.12045 | G89: 12735.68139 | H89: 13334.52761 | I89: 14037.98756 | J89: 14733.31683
B90: 5007 | C90: High density polyethylene (250) | D90: 187 | E90: 66.38015188 | F90: 33.19007594 | G90: 0 | H90: 0 | I90: 0 | J90: 0
B91: 5007 | C91: High density polyethylene (575) | D91: 12132 | E91: 11632.49142 | F91: 11294.32621 | G91: 10956.161 | H91: 10413.45728 | I91: 9768.484297 | J91: 9130.192654
B92: 5007 | C92: Medium density polyethylene | D92: 25477 | E92: 25475.58625 | F92: 25470.81262 | G92: 25466.04034 | H92: 25461.2694 | I92: 25456.4998 | J92: 25451.73153
B93: 5007 | C93: Other | D93: 0 | E93: 0 | F93: 0 | G93: 0 | H93: 0 | I93: 0 | J93: 0
B94: 5007 | C94: Protected steel | D94: 7252 | E94: 7257.098208 | F94: 7244.826008 | G94: 7239.826008 | H94: 7234.526008 | I94: 7229.226008 | J94: 7223.826008
B95: 5007 | C95: PVC | D95: 0 | E95: 0 | F95: 0 | G95: 0 | H95: 0 | I95: 0 | J95: 0
B96: 5007 | C96: Unprotected steel | D96: 0 | E96: 0 | F96: 0 | G96: 0 | H96: 0 | I96: 0 | J96: 0
B97: 5008 | C97: Cast Iron | D97: 5139 | E97: 6243.421248 | F97: 4991.272362 | G97: 3739.123477 | H97: 2468.780244 | I97: 1198.437012 | J97: 0
B98: 5008 | C98: High density polyethylene (100) | D98: 15350.44822 | E98: 16898.06903 | F98: 19635.74471 | G98: 23849.68616 | H98: 28297.40445 | I98: 32981.12905 | J98: 37626.15614
B99: 5008 | C99: High density polyethylene (250) | D99: 4991 | E99: 3210.173511 | F99: 2751.33541 | G99: 1827.692308 | H99: 1222.269231 | I99: 616.8461538 | J99: 0
B100: 5008 | C100: High density polyethylene (575) | D100: 26036 | E100: 24483.632 | F100: 23839.72179 | G100: 22560.23209 | H100: 20797.23863 | I100: 18816.95484 | J100: 16821.83958
B101: 5008 | C101: Medium density polyethylene | D101: 23044 | E101: 22761.99737 | F101: 22711.16651 | G101: 22370.65762 | H101: 22009.73728 | I101: 21648.81704 | J101: 21281.09303
B102: 5008 | C102: Other | D102: 0 | E102: 0 | F102: 0 | G102: 0 | H102: 0 | I102: 0 | J102: 0
B103: 5008 | C103: Protected steel | D103: 8060 | E103: 8056.409105 | F103: 8056.409105 | G103: 8056.409105 | H103: 8056.409105 | I103: 8056.409105 | J103: 8056.409105
B104: 5008 | C104: PVC | D104: 0 | E104: 0 | F104: 0 | G104: 0 | H104: 0 | I104: 0 | J104: 0
B105: 5008 | C105: Unprotected steel | D105: 1193 | E105: 962.9057315 | F105: 810.3290083 | G105: 596.9230769 | H105: 399.1923077 | I105: 201.4615385 | J105: 0
B106: 5009 | C106: Cast Iron | D106: 1321 | E106: 1654.5525 | F106: 1331.397715 | G106: 1008.24293 | H106: 665.6988574 | I106: 323.1547852 | J106: 0
B107: 5009 | C107: High density polyethylene (100) | D107: 6153.404451 | E107: 6649.547333 | F107: 7657.579467 | G107: 8693.679134 | H107: 9784.536548 | I107: 10907.7653 | J107: 11987.2429
B108: 5009 | C108: High density polyethylene (250) | D108: 1649 | E108: 113.6618334 | F108: 79.60151283 | G108: 36.30769231 | H108: 24.28076923 | I108: 12.25384615 | J108: 0
B109: 5009 | C109: High density polyethylene (575) | D109: 10947.5 | E109: 10532.70442 | F109: 9961.613621 | G109: 9390.522817 | H109: 8759.298792 | I109: 8098.008156 | J109: 7462.265399
B110: 5009 | C110: Medium density polyethylene | D110: 15523 | E110: 15496.88182 | F110: 15489.82174 | G110: 15456.56197 | H110: 15421.45674 | I110: 15386.3522 | J110: 15350.63299
B111: 5009 | C111: Other | D111: 0 | E111: 0 | F111: 0 | G111: 0 | H111: 0 | I111: 0 | J111: 0
B112: 5009 | C112: Protected steel | D112: 5777 | E112: 5794.936525 | F112: 5762.840002 | G112: 5749.763078 | H112: 5735.90154 | I112: 5722.040002 | J112: 5707.916925
B113: 5009 | C113: PVC | D113: 0 | E113: 0 | F113: 0 | G113: 0 | H113: 0 | I113: 0 | J113: 0
B114: 5009 | C114: Unprotected steel | D114: 181 | E114: 138.3147422 | F114: 115.2678406 | G114: 83.69230769 | H114: 55.96923077 | I114: 28.24615385 | J114: 0
B115: 5010 | C115: Cast Iron | D115: 810 | E115: 1003.256385 | F115: 805.3985833 | G115: 607.5407813 | H115: 401.1326953 | I115: 194.7246094 | J115: 0
B116: 5010 | C116: High density polyethylene (100) | D116: 7164.939566 | E116: 12293.4999 | F116: 12711.60932 | G116: 13236.75713 | H116: 13858.12135 | I116: 14525.48438 | J116: 15180.83927
B117: 5010 | C117: High density polyethylene (250) | D117: 4527 | E117: 354.27 | F117: 339.2307692 | G117: 258.4615385 | H117: 172.8461538 | I117: 87.23076923 | J117: 0
B118: 5010 | C118: High density polyethylene (575) | D118: 3575 | E118: 3425.011277 | F118: 3346.048859 | G118: 3267.086441 | H118: 3118.1723 | I118: 2934.282299 | J118: 2750.842832
B119: 5010 | C119: Medium density polyethylene | D119: 13930 | E119: 13907.06611 | F119: 13901.6268 | G119: 13869.82357 | H119: 13836.16289 | I119: 13802.50244 | J119: 13768.223
B120: 5010 | C120: Other | D120: 0 | E120: 0 | F120: 0 | G120: 0 | H120: 0 | I120: 0 | J120: 0
B121: 5010 | C121: Protected steel | D121: 11795 | E121: 11789.7281 | F121: 11789.7281 | G121: 11789.7281 | H121: 11789.7281 | I121: 11789.7281 | J121: 11789.7281
B122: 5010 | C122: PVC | D122: 0 | E122: 0 | F122: 0 | G122: 0 | H122: 0 | I122: 0 | J122: 0
B123: 5010 | C123: Unprotected steel | D123: 0 | E123: 0 | F123: 0 | G123: 0 | H123: 0 | I123: 0 | J123: 0
B124: 5011 | C124: Cast Iron | D124: 2651 | E124: 3203.895 | F124: 2578.134258 | G124: 1952.373516 | H124: 1289.067129 | I124: 625.7607422 | J124: 0
B125: 5011 | C125: High density polyethylene (100) | D125: 9103.599882 | E125: 10547.80409 | F125: 12390.86078 | G125: 15731.72147 | H125: 19362.59759 | I125: 23136.17223 | J125: 26896.88898
B126: 5011 | C126: High density polyethylene (250) | D126: 5227 | E126: 4167.642693 | F126: 3910.486289 | G126: 2912.615385 | H126: 1947.811538 | I126: 983.0076923 | J126: 0
B127: 5011 | C127: High density polyethylene (575) | D127: 10851 | E127: 10217.62511 | F127: 9946.970642 | G127: 9429.429526 | H127: 8711.629343 | I127: 7903.201551 | J127: 7089.4169
B128: 5011 | C128: Medium density polyethylene | D128: 48145 | E128: 47704.05844 | F128: 47622.2712 | G128: 47088.85549 | H128: 46523.61756 | I128: 45958.38048 | J128: 45382.53656
B129: 5011 | C129: Other | D129: 102 | E129: 102 | F129: 102 | G129: 102 | H129: 102 | I129: 102 | J129: 102
B130: 5011 | C130: Protected steel | D130: 5311 | E130: 5325.209664 | F130: 5297.833218 | G130: 5286.679372 | H130: 5274.856295 | I130: 5263.033218 | J130: 5250.987064
B131: 5011 | C131: PVC | D131: 0 | E131: 0 | F131: 0 | G131: 0 | H131: 0 | I131: 0 | J131: 0
B132: 5011 | C132: Unprotected steel | D132: 73 | E132: 64.24417802 | F132: 54.83827618 | G132: 41.23076923 | H132: 27.57307692 | I132: 13.91538462 | J132: 0
B133: 5012 | C133: Cast Iron | D133: 0 | E133: 0 | F133: 0 | G133: 0 | H133: 0 | I133: 0 | J133: 0
B134: 5012 | C134: High density polyethylene (100) | D134: 30025.34347 | E134: 32011.07541 | F134: 32538.64334 | G134: 33085.18943 | H134: 33799.96507 | I134: 34614.95942 | J134: 35418.11451
B135: 5012 | C135: High density polyethylene (250) | D135: 104 | E135: 36.91730372 | F135: 18.45865186 | G135: 0 | H135: 0 | I135: 0 | J135: 0
B136: 5012 | C136: High density polyethylene (575) | D136: 11373 | E136: 10910.1774 | F136: 10552.94977 | G136: 10195.72214 | H136: 9665.570749 | I136: 9048.957485 | J136: 8441.559416
B137: 5012 | C137: Medium density polyethylene | D137: 12541 | E137: 12537.71506 | F137: 12534.37138 | G137: 12530.70112 | H137: 12527.0087 | I137: 12523.31721 | J137: 12519.61895
B138: 5012 | C138: Other | D138: 5 | E138: 5 | F138: 5 | G138: 5 | H138: 5 | I138: 5 | J138: 5
B139: 5012 | C139: Protected steel | D139: 5435 | E139: 5433.791597 | F139: 5433.791597 | G139: 5433.791597 | H139: 5433.791597 | I139: 5433.791597 | J139: 5433.791597
B140: 5012 | C140: PVC | D140: 0 | E140: 0 | F140: 0 | G140: 0 | H140: 0 | I140: 0 | J140: 0
B141: 5012 | C141: Unprotected steel | D141: 16 | E141: 3.855421687 | F141: 1.927710843 | G141: 0 | H141: 0 | I141: 0 | J141: 0
B142: 5013 | C142: Cast Iron | D142: 1431 | E142: 641.3190004 | F142: 321.0411213 | G142: 0.7632421875 | H142: 0.5039355469 | I142: 0.2446289062 | J142: 0
B143: 5013 | C143: High density polyethylene (100) | D143: 28394 | E143: 29996.81626 | F143: 30322.51265 | G143: 30648.20904 | H143: 30659.30536 | I143: 30673.11094 | J143: 30686.90184
B144: 5013 | C144: High density polyethylene (250) | D144: 0 | E144: 0 | F144: 0 | G144: 0 | H144: 0 | I144: 0 | J144: 0
B145: 5013 | C145: High density polyethylene (575) | D145: 266 | E145: 254.7782689 | F145: 249.3597604 | G145: 243.941252 | H145: 233.104235 | I145: 219.5579638 | J145: 206.0116926
B146: 5013 | C146: Medium density polyethylene | D146: 35041 | E146: 35031.41473 | F146: 35021.68305 | G146: 35011.95409 | H146: 35002.22786 | I146: 34992.50437 | J146: 34982.78361
B147: 5013 | C147: Other | D147: 0 | E147: 0 | F147: 0 | G147: 0 | H147: 0 | I147: 0 | J147: 0
B148: 5013 | C148: Protected steel | D148: 19903 | E148: 19899.05512 | F148: 19899.05512 | G148: 19899.05512 | H148: 19899.05512 | I148: 19899.05512 | J148: 19899.05512
B149: 5013 | C149: PVC | D149: 0 | E149: 0 | F149: 0 | G149: 0 | H149: 0 | I149: 0 | J149: 0
B150: 5013 | C150: Unprotected steel | D150: 0 | E150: 0 | F150: 0 | G150: 0 | H150: 0 | I150: 0 | J150: 0
B151: 5014 | C151: Cast Iron | D151: 10279 | E151: 12282.04033 | F151: 9782.830262 | G151: 7283.620195 | H151: 4809.056924 | I151: 2334.493652 | J151: 0
B152: 5014 | C152: High density polyethylene (100) | D152: 3610.896746 | E152: 5876.317609 | F152: 9475.063404 | G152: 13536.88798 | H152: 18303.2464 | I152: 23435.29485 | J152: 28439.85262
B153: 5014 | C153: High density polyethylene (250) | D153: 4290 | E153: 1998.480185 | F153: 1880.346381 | G153: 1404.923077 | H153: 939.5423077 | I153: 474.1615385 | J153: 0
B154: 5014 | C154: High density polyethylene (575) | D154: 35566 | E154: 34014.09139 | F154: 33279.06668 | G154: 32472.38937 | H154: 30945.44244 | I154: 29061.1184 | J154: 27174.9559
B155: 5014 | C155: Medium density polyethylene | D155: 16223 | E155: 16200.1449 | F155: 16194.12455 | G155: 16162.72301 | H155: 16129.53345 | I155: 16096.34435 | J155: 16062.55953
B156: 5014 | C156: Other | D156: 0 | E156: 0 | F156: 0 | G156: 0 | H156: 0 | I156: 0 | J156: 0
B157: 5014 | C157: Protected steel | D157: 9226 | E157: 9261.878991 | F157: 9192.021852 | G157: 9163.560314 | H157: 9133.391083 | I157: 9103.221852 | J157: 9072.483391
B158: 5014 | C158: PVC | D158: 0 | E158: 0 | F158: 0 | G158: 0 | H158: 0 | I158: 0 | J158: 0
B159: 5014 | C159: Unprotected steel | D159: 620 | E159: 581.1194751 | F159: 500.7692308 | G159: 381.5384615 | H159: 255.1538462 | I159: 128.7692308 | J159: 0
B160: 5015 | C160: Cast Iron | D160: 11248 | E160: 14043.85044 | F160: 11293.41012 | G160: 8542.969805 | H160: 5640.550576 | I160: 2738.131348 | J160: 0
B161: 5015 | C161: High density polyethylene (100) | D161: 9903.637113 | E161: 11073.26455 | F161: 15008.99662 | G161: 20844.45068 | H161: 27079.52977 | I161: 33361.70045 | J161: 39532.75758
B162: 5015 | C162: High density polyethylene (250) | D162: 7602 | E162: 6412.287 | F162: 6140.076923 | G162: 4678.153846 | H162: 3128.515385 | I162: 1578.876923 | J162: 0
B163: 5015 | C163: High density polyethylene (575) | D163: 6155 | E163: 5571.334651 | F163: 5376.403123 | G163: 4729.970321 | H163: 3986.246751 | I163: 3211.25472 | J163: 2424.91133
B164: 5015 | C164: Medium density polyethylene | D164: 8099 | E164: 7825.491608 | F164: 7777.282776 | G164: 7453.314817 | H164: 7109.916124 | I164: 6766.517464 | J164: 6416.641915
B165: 5015 | C165: Other | D165: 0 | E165: 0 | F165: 0 | G165: 0 | H165: 0 | I165: 0 | J165: 0
B166: 5015 | C166: Protected steel | D166: 5316 | E166: 5467.236053 | F166: 5208.575837 | G166: 5103.191222 | H166: 4991.48353 | I166: 4879.775837 | J166: 4765.960453
B167: 5015 | C167: PVC | D167: 0 | E167: 0 | F167: 0 | G167: 0 | H167: 0 | I167: 0 | J167: 0
B168: 5015 | C168: Unprotected steel | D168: 2357 | E168: 1840.138716 | F168: 1539.509268 | G168: 1124.307692 | H168: 751.8807692 | I168: 379.4538462 | J168: 0
B169: 5016 | C169: Cast Iron | D169: 14649 | E169: 18347.8725 | F169: 14764.30365 | G169: 11180.7348 | H169: 7382.151826 | I169: 3583.568848 | J169: 0
B170: 5016 | C170: High density polyethylene (100) | D170: 28488.93866 | E170: 30349.57287 | F170: 34770.60038 | G170: 39839.33413 | H170: 45216.93792 | I170: 50613.48815 | J170: 55816.29994
B171: 5016 | C171: High density polyethylene (250) | D171: 1470 | E171: 1239.945 | F171: 1187.307692 | G171: 904.6153846 | H171: 604.9615385 | I171: 305.3076923 | J171: 0
B172: 5016 | C172: High density polyethylene (575) | D172: 1067 | E172: 909.7821738 | F172: 864.0180723 | G172: 661.9074138 | H172: 447.7621399 | I172: 233.6168659 | J172: 15.53674031
B173: 5016 | C173: Medium density polyethylene | D173: 4758 | E173: 4704.027368 | F173: 4693.587806 | G173: 4630.420298 | H173: 4563.537756 | I173: 4496.655562 | J173: 4428.535256
B174: 5016 | C174: Other | D174: 0 | E174: 0 | F174: 0 | G174: 0 | H174: 0 | I174: 0 | J174: 0
B175: 5016 | C175: Protected steel | D175: 2772 | E175: 2809.664664 | F175: 2745.471618 | G175: 2719.317771 | H175: 2691.594695 | I175: 2663.871618 | J175: 2635.625464
B176: 5016 | C176: PVC | D176: 0 | E176: 0 | F176: 0 | G176: 0 | H176: 0 | I176: 0 | J176: 0
B177: 5016 | C177: Unprotected steel | D177: 3523 | E177: 3302.070824 | F177: 2845.5 | G177: 2168 | H177: 1449.85 | I177: 731.7 | J177: 0
B178: 5017 | C178: Cast Iron | D178: 16581 | E178: 20767.7025 | F178: 16711.51061 | G178: 12655.31871 | H178: 8355.755303 | I178: 4056.191895 | J178: 0
B179: 5017 | C179: High density polyethylene (100) | D179: 9755.124058 | E179: 562.9717159 | F179: 5639.086362 | G179: 11271.64959 | H179: 17246.74696 | I179: 23234.27343 | J179: 29004.84318
B180: 5017 | C180: High density polyethylene (250) | D180: 1263 | E180: 1065.3405 | F180: 1020.115385 | G180: 777.2307692 | H180: 519.7730769 | I180: 262.3153846 | J180: 0
B181: 5017 | C181: High density polyethylene (575) | D181: 1162 | E181: 996.9709235 | F181: 949.5672456 | G181: 740.7203827 | H181: 517.7151185 | I181: 293.8441151 | J181: 65.83080402
B182: 5017 | C182: Medium density polyethylene | D182: 2317 | E182: 2183.247723 | F182: 2159.803806 | G182: 2002.082871 | H182: 1834.900406 | I182: 1667.717949 | J182: 1497.381654
B183: 5017 | C183: Other | D183: 0 | E183: 0 | F183: 0 | G183: 0 | H183: 0 | I183: 0 | J183: 0
B184: 5017 | C184: Protected steel | D184: 2284 | E184: 2463.631159 | F184: 2158.71419 | G184: 2034.483421 | H184: 1902.798805 | I184: 1771.11419 | J184: 1636.944959
B185: 5017 | C185: PVC | D185: 0 | E185: 0 | F185: 0 | G185: 0 | H185: 0 | I185: 0 | J185: 0
B186: 5017 | C186: Unprotected steel | D186: 3637 | E186: 3408.921824 | F186: 2937.576923 | G186: 2238.153846 | H186: 1496.765385 | I186: 755.3769231 | J186: 0
B187: 5018 | C187: Cast Iron | D187: 639 | E187: 800.3475 | F187: 644.0296289 | G187: 487.7117578 | H187: 322.0148145 | I187: 156.3178711 | J187: 0
B188: 5018 | C188: High density polyethylene (100) | D188: 19782.5 | E188: 21749.15247 | F188: 22310.27205 | G188: 22940.60732 | H188: 23486.32369 | I188: 24101.36031 | J188: 24708.95631
B189: 5018 | C189: High density polyethylene (250) | D189: 1744.5 | E189: 815.1511687 | F189: 562.3384497 | G189: 246.7692308 | H189: 165.0269231 | I189: 83.28461538 | J189: 0
B190: 5018 | C190: High density polyethylene (575) | D190: 6806 | E190: 6518.875558 | F190: 6380.235074 | G190: 6241.59459 | H190: 5964.313622 | I190: 5617.712412 | J190: 5271.111202
B191: 5018 | C191: Medium density polyethylene | D191: 1655 | E191: 1655.656533 | F191: 1655.656533 | G191: 1655.656533 | H191: 1655.656533 | I191: 1655.656533 | J191: 1655.656533
B192: 5018 | C192: Other | D192: 0 | E192: 0 | F192: 0 | G192: 0 | H192: 0 | I192: 0 | J192: 0
B193: 5018 | C193: Protected steel | D193: 1704 | E193: 1702.896665 | F193: 1702.896665 | G193: 1702.896665 | H193: 1702.896665 | I193: 1702.896665 | J193: 1702.896665
B194: 5018 | C194: PVC | D194: 0 | E194: 0 | F194: 0 | G194: 0 | H194: 0 | I194: 0 | J194: 0
B195: 5018 | C195: Unprotected steel | D195: 120 | E195: 100.6372016 | F195: 85.24050046 | G195: 63.38461538 | H195: 42.38846154 | I195: 21.39230769 | J195: 0
B196: 5019 | C196: Cast Iron | D196: 21390 | E196: 26065.75916 | F196: 20851.91417 | G196: 15638.06918 | H196: 10325.13542 | I196: 5012.20166 | J196: 0
B197: 5019 | C197: High density polyethylene (100) | D197: 9050.893245 | E197: 9977.907282 | F197: 15742.65364 | G197: 22179.14122 | H197: 28802.44703 | I197: 35449.60972 | J197: 41817.55518
B198: 5019 | C198: High density polyethylene (250) | D198: 2227 | E198: 1815.454656 | F198: 1717.434289 | G198: 1291.076923 | H198: 863.4076923 | I198: 435.7384615 | J198: 0
B199: 5019 | C199: High density polyethylene (575) | D199: 3172 | E199: 2908.387762 | F199: 2817.219038 | G199: 2545.419825 | H199: 2219.648321 | I199: 1873.842595 | J199: 1523.402253
B200: 5019 | C200: Medium density polyethylene | D200: 11494 | E200: 11353.45177 | F200: 11328.20895 | G200: 11158.20895 | H200: 10978.00895 | I200: 10797.80895 | J200: 10614.20895
B201: 5019 | C201: Other | D201: 0 | E201: 0 | F201: 0 | G201: 0 | H201: 0 | I201: 0 | J201: 0
B202: 5019 | C202: Protected steel | D202: 3247 | E202: 3316.386189 | F202: 3196.024227 | G202: 3146.985765 | H202: 3095.004996 | I202: 3043.024227 | J202: 2990.062689
B203: 5019 | C203: PVC | D203: 0 | E203: 0 | F203: 0 | G203: 0 | H203: 0 | I203: 0 | J203: 0
B204: 5019 | C204: Unprotected steel | D204: 1350 | E204: 1259.770188 | F204: 1084.886932 | G204: 825.8461538 | H204: 552.2846154 | I204: 278.7230769 | J204: 0
B205: 5020 | C205: Cast Iron | D205: 0 | E205: 0 | F205: 0 | G205: 0 | H205: 0 | I205: 0 | J205: 0
B206: 5020 | C206: High density polyethylene (100) | D206: 16531 | E206: 18174.40867 | F206: 18355.52344 | G206: 18536.6382 | H206: 18568.74185 | I206: 18608.8714 | J206: 18649.00096
... 1051 more rows

Sheet S1.1 Customer numbers
B1: =INDEX(dms_Worksheet_List,MATCH(dms_Model,dms_Model_List)) -> REGULATORY REPORTING STATEMENT
B2: =INDEX(dms_TradingNameFull_List,MATCH(dms_TradingName,dms_TradingName_List)) -> Australian Gas Networks Limited (reporting data for SA)
B3: =dms_Header_Span -> 2019-20 - 2025-26
B4: S1. CUSTOMER NUMBERS
B6: S1.1 - CUSTOMER NUMBERS - BY CUSTOMER TYPE
B7: A. RESIDENTIAL
C8: VOLUMES
C9: 0's
C10: =CRCP_y4 -> 2019-20 | D10: =CRCP_y5 -> 2020-21 | E10: =FRCP_y1 -> 2021-22 | F10: =FRCP_y2 -> 2022-23 | G10: =FRCP_y3 -> 2023-24 | H10: =FRCP_y4 -> 2024-25 | I10: =FRCP_y5 -> 2025-26
B11: Customer numbers as at 1 July | C11: 443043 | D11: 448399.9232 | E11: 452591.7048 | F11: 455474.0291 | G11: 460455.6922 | H11: 466316.1685 | I11: 472716.1856
B12: Customer numbers as at 30 June | C12: 448399.9232 | D12: 452591.7048 | E12: 455474.0291 | F12: 460455.6922 | G12: 466316.1685 | H12: 472716.1856 | I12: 478985.241
B13: Total customer connections | C13: 7254.083168 | D13: 7559.880585 | E13: 6274.573457 | F13: 6943.614646 | G13: 7842.448432 | H13: 8404.324058 | I13: 8298.007593
B14: Total customer disconnections | C14: 1897.159998 | D14: 3368.098946 | E14: 3392.249126 | F14: 1961.951612 | G14: 1981.972128 | H14: 2004.306968 | I14: 2028.952182
B17: B. COMMERCIAL
C18: VOLUMES
C19: 0's
C20: =CRCP_y4 -> 2019-20 | D20: =CRCP_y5 -> 2020-21 | E20: =FRCP_y1 -> 2021-22 | F20: =FRCP_y2 -> 2022-23 | G20: =FRCP_y3 -> 2023-24 | H20: =FRCP_y4 -> 2024-25 | I20: =FRCP_y5 -> 2025-26
B21: Customer numbers as at 1 July | C21: 11233 | D21: 11349.88159 | E21: 11291.42727 | F21: 11236.21636 | G21: 11349.97273 | H21: 11471.67594 | I21: 11590.11958
B22: Customer numbers as at 30 June | C22: 11349.88159 | D22: 11291.42727 | E22: 11236.21636 | F22: 11349.97273 | G22: 11471.67594 | H22: 11590.11958 | I22: 11707.39178
B23: Total customer connections | C23: 266.6543486 | D23: 260.87686 | E23: 265.5808766 | F23: 267.9855271 | G23: 276.3453851 | H23: 275.4768782 | I23: 274.6663674
B24: Total customer disconnections | C24: 149.7727623 | D24: 319.3311775 | E24: 320.7917811 | F24: 154.2291601 | G24: 154.6421794 | H24: 157.0332354 | I24: 157.394164
B27: C. INDUSTRIAL
C28: VOLUMES
C29: 0's
C30: =CRCP_y4 -> 2019-20 | D30: =CRCP_y5 -> 2020-21 | E30: =FRCP_y1 -> 2021-22 | F30: =FRCP_y2 -> 2022-23 | G30: =FRCP_y3 -> 2023-24 | H30: =FRCP_y4 -> 2024-25 | I30: =FRCP_y5 -> 2025-26
B31: Customer numbers as at 1 July | C31: 115 | D31: 112 | E31: 109 | F31: 106 | G31: 103 | H31: 101 | I31: 100
B32: Customer numbers as at 30 June | C32: 112 | D32: 109 | E32: 106 | F32: 103 | G32: 101 | H32: 100 | I32: 98
B33: Total customer connections | C33: 3 | D33: 3 | E33: 3 | F33: 3 | G33: 4 | H33: 5 | I33: 4
B34: Total customer disconnections | C34: 6 | D34: 6 | E34: 6 | F34: 6 | G34: 6 | H34: 6 | I34: 6

Sheet S1.2 Customer numbers
B1: =INDEX(dms_Worksheet_List,MATCH(dms_Model,dms_Model_List)) -> REGULATORY REPORTING STATEMENT
B2: =INDEX(dms_TradingNameFull_List,MATCH(dms_TradingName,dms_TradingName_List)) -> Australian Gas Networks Limited (reporting data for SA)
B3: =dms_Header_Span -> 2019-20 - 2025-26
B4: S1. CUSTOMER NUMBERS
B6: S1.2 - CUSTOMER NUMBERS - BY TARIFF
B7: S1.2.1 - CUSTOMER NUMBERS AS AT 1 JULY
C8: VOLUMES
C9: 0's
C10: =CRCP_y4 -> 2019-20 | D10: =CRCP_y5 -> 2020-21 | E10: =FRCP_y1 -> 2021-22 | F10: =FRCP_y2 -> 2022-23 | G10: =FRCP_y3 -> 2023-24 | H10: =FRCP_y4 -> 2024-25 | I10: =FRCP_y5 -> 2025-26
B11: =IF(ISBLANK('N1. Demand'!B21),"",'N1. Demand'!B21) -> Tariff R - SA excl New Towns | C11: 436708 | D11: =C92 -> 445717.6742 | E11: 449884.3813 | F11: 455072.7591 | G11: 459747.1422 | H11: 464961.9882 | I11: 470716.3751
B12: =IF(ISBLANK('N1. Demand'!B22),"",'N1. Demand'!B22) -> Tariff R - New Towns | C12: 200 | D12: =C93 -> 201 | E12: 202.8790104 | F12: 401.27 | G12: 708.55 | H12: 1354.180242 | I12: 1999.810485
B13: =IF(ISBLANK('N1. Demand'!B23),"",'N1. Demand'!B23) -> Tariff C - SA excl New Towns | C13: 11154.67744 | D13: =C94 -> 11272.64715 | E13: 11214.59061 | F13: 11200.39637 | G13: 11305.91545 | H13: 11410.25228 | I13: 11512.33104
B14: =IF(ISBLANK('N1. Demand'!B24),"",'N1. Demand'!B24) -> Tariff C - New Towns | C14: 30.32256113 | D14: =C95 -> 31.32256113 | E14: 30.84034337 | F14: 35.81999271 | G14: 44.05728312 | H14: 61.42365276 | I14: 77.78853753
B15: =IF(ISBLANK('N1. Demand'!B25),"",'N1. Demand'!B25) -> Northern | C15: 60.08735893 | D15: =C96 -> 58.47787611 | E15: 56.91150442 | F15: 55.34513274 | G15: 53.77876106 | H15: 52.21238938 | I15: 50.6460177
B16: =IF(ISBLANK('N1. Demand'!B26),"",'N1. Demand'!B26) -> Central | C16: 34.62661362 | D16: =C97 -> 33.69911504 | E16: 32.79646018 | F16: 31.89380531 | G16: 30.99115044 | H16: 30.08849558 | I16: 29.18584071
B17: =IF(ISBLANK('N1. Demand'!B27),"",'N1. Demand'!B27) -> Southern | C17: 13.23958756 | D17: =C98 -> 12.88495575 | E17: 12.53982301 | F17: 12.19469027 | G17: 11.84955752 | H17: 11.50442478 | I17: 11.15929204
B18: =IF(ISBLANK('N1. Demand'!B28),"",'N1. Demand'!B28) -> Peterborough | C18: 0 | D18: =C99 -> 0 | E18: 0 | F18: 0 | G18: 0 | H18: 0 | I18: 0
B19: =IF(ISBLANK('N1. Demand'!B29),"",'N1. Demand'!B29) -> Port Pirie | C19: 1.018429812 | D19: =C100 -> 0.9911504425 | E19: 0.9646017699 | F19: 0.9380530973 | G19: 0.9115044248 | H19: 0.8849557522 | I19: 0.8584070796
B20: =IF(ISBLANK('N1. Demand'!B30),"",'N1. Demand'!B30) -> Riverland | C20: 2.036859625 | D20: =C101 -> 1.982300885 | E20: 1.92920354 | F20: 1.876106195 | G20: 1.82300885 | H20: 1.769911504 | I20: 1.716814159
B21: =IF(ISBLANK('N1. Demand'!B31),"",'N1. Demand'!B31) -> South East | C21: 3.055289437 | D21: =C102 -> 2.973451327 | E21: 2.89380531 | F21: 2.814159292 | G21: 2.734513274 | H21: 3.654867257 | I21: 5.575221239
B22: =IF(ISBLANK('N1. Demand'!B32),"",'N1. Demand'!B32) -> Whyalla | C22: 1.018429812 | D22: =C103 -> 0.9911504425 | E22: 0.9646017699 | F22: 0.9380530973 | G22: 0.9115044248 | H22: 0.8849557522 | I22: 0.8584070796
B23: =IF(ISBLANK('N1. Demand'!B33),"",'N1. Demand'!B33) ->  | D23: =C104 -> 0 | E23: 0 | F23: 0 | G23: 0 | H23: 0 | I23: 0
B24: =IF(ISBLANK('N1. Demand'!B34),"",'N1. Demand'!B34) ->  | D24: =C105 -> 0 | E24: 0 | F24: 0 | G24: 0 | H24: 0 | I24: 0
B25: =IF(ISBLANK('N1. Demand'!B35),"",'N1. Demand'!B35) ->  | D25: =C106 -> 0 | E25: 0 | F25: 0 | G25: 0 | H25: 0 | I25: 0
B26: =IF(ISBLANK('N1. Demand'!B36),"",'N1. Demand'!B36) ->  | D26: =C107 -> 0 | E26: 0 | F26: 0 | G26: 0 | H26: 0 | I26: 0
B27: =IF(ISBLANK('N1. Demand'!B37),"",'N1. Demand'!B37) ->  | D27: =C108 -> 0 | E27: 0 | F27: 0 | G27: 0 | H27: 0 | I27: 0
B28: =IF(ISBLANK('N1. Demand'!B38),"",'N1. Demand'!B38) ->  | D28: =C109 -> 0 | E28: 0 | F28: 0 | G28: 0 | H28: 0 | I28: 0
B29: =IF(ISBLANK('N1. Demand'!B39),"",'N1. Demand'!B39) ->  | D29: =C110 -> 0 | E29: 0 | F29: 0 | G29: 0 | H29: 0 | I29: 0
B30: =IF(ISBLANK('N1. Demand'!B40),"",'N1. Demand'!B40) ->  | D30: =C111 -> 0 | E30: 0 | F30: 0 | G30: 0 | H30: 0 | I30: 0
B31: =IF(ISBLANK('N1. Demand'!B41),"",'N1. Demand'!B41) ->  | D31: =C112 -> 0 | E31: 0 | F31: 0 | G31: 0 | H31: 0 | I31: 0
B32: =IF(ISBLANK('N1. Demand'!B42),"",'N1. Demand'!B42) ->  | D32: =C113 -> 0 | E32: 0 | F32: 0 | G32: 0 | H32: 0 | I32: 0
B33: =IF(ISBLANK('N1. Demand'!B43),"",'N1. Demand'!B43) ->  | D33: =C114 -> 0 | E33: 0 | F33: 0 | G33: 0 | H33: 0 | I33: 0
B34: =IF(ISBLANK('N1. Demand'!B44),"",'N1. Demand'!B44) ->  | D34: =C115 -> 0 | E34: 0 | F34: 0 | G34: 0 | H34: 0 | I34: 0
B35: =IF(ISBLANK('N1. Demand'!B45),"",'N1. Demand'!B45) ->  | D35: =C116 -> 0 | E35: 0 | F35: 0 | G35: 0 | H35: 0 | I35: 0
B36: =IF(ISBLANK('N1. Demand'!B46),"",'N1. Demand'!B46) ->  | D36: =C117 -> 0 | E36: 0 | F36: 0 | G36: 0 | H36: 0 | I36: 0
B37: =IF(ISBLANK('N1. Demand'!B47),"",'N1. Demand'!B47) ->  | D37: =C118 -> 0 | E37: 0 | F37: 0 | G37: 0 | H37: 0 | I37: 0
B38: =IF(ISBLANK('N1. Demand'!B48),"",'N1. Demand'!B48) ->  | D38: =C119 -> 0 | E38: 0 | F38: 0 | G38: 0 | H38: 0 | I38: 0
B39: =IF(ISBLANK('N1. Demand'!B49),"",'N1. Demand'!B49) ->  | D39: =C120 -> 0 | E39: 0 | F39: 0 | G39: 0 | H39: 0 | I39: 0
B40: =IF(ISBLANK('N1. Demand'!B50),"",'N1. Demand'!B50) ->  | D40: =C121 -> 0 | E40: 0 | F40: 0 | G40: 0 | H40: 0 | I40: 0
B41: =IF(ISBLANK('N1. Demand'!B51),"",'N1. Demand'!B51) ->  | D41: =C122 -> 0 | E41: 0 | F41: 0 | G41: 0 | H41: 0 | I41: 0
B42: =IF(ISBLANK('N1. Demand'!B52),"",'N1. Demand'!B52) ->  | D42: =C123 -> 0 | E42: 0 | F42: 0 | G42: 0 | H42: 0 | I42: 0
B43: =IF(ISBLANK('N1. Demand'!B53),"",'N1. Demand'!B53) ->  | D43: =C124 -> 0 | E43: 0 | F43: 0 | G43: 0 | H43: 0 | I43: 0
B44: =IF(ISBLANK('N1. Demand'!B54),"",'N1. Demand'!B54) ->  | D44: =C125 -> 0 | E44: 0 | F44: 0 | G44: 0 | H44: 0 | I44: 0
B45: =IF(ISBLANK('N1. Demand'!B55),"",'N1. Demand'!B55) ->  | D45: =C126 -> 0 | E45: 0 | F45: 0 | G45: 0 | H45: 0 | I45: 0
B46: =IF(ISBLANK('N1. Demand'!B56),"",'N1. Demand'!B56) ->  | D46: =C127 -> 0 | E46: 0 | F46: 0 | G46: 0 | H46: 0 | I46: 0
B47: =IF(ISBLANK('N1. Demand'!B57),"",'N1. Demand'!B57) ->  | D47: =C128 -> 0 | E47: 0 | F47: 0 | G47: 0 | H47: 0 | I47: 0
B48: =IF(ISBLANK('N1. Demand'!B58),"",'N1. Demand'!B58) ->  | D48: =C129 -> 0 | E48: 0 | F48: 0 | G48: 0 | H48: 0 | I48: 0
B49: =IF(ISBLANK('N1. Demand'!B59),"",'N1. Demand'!B59) ->  | D49: =C130 -> 0 | E49: 0 | F49: 0 | G49: 0 | H49: 0 | I49: 0
B50: =IF(ISBLANK('N1. Demand'!B60),"",'N1. Demand'!B60) ->  | D50: =C131 -> 0 | E50: =D131 -> 0 | F50: =E131 -> 0 | G50: =F131 -> 0 | H50: =G131 -> 0 | I50: =H131 -> 0
B51: =IF(ISBLANK('N1. Demand'!B61),"",'N1. Demand'!B61) ->  | D51: 0 | E51: 0 | F51: 0 | G51: 0 | H51: 0 | I51: 0
B52: =IF(ISBLANK('N1. Demand'!B62),"",'N1. Demand'!B62) ->  | D52: 0 | E52: 0 | F52: 0 | G52: 0 | H52: 0 | I52: 0
B53: =IF(ISBLANK('N1. Demand'!B63),"",'N1. Demand'!B63) ->  | D53: =C134 -> 0 | E53: 0 | F53: 0 | G53: 0 | H53: 0 | I53: 0
B54: =IF(ISBLANK('N1. Demand'!B64),"",'N1. Demand'!B64) ->  | D54: =C135 -> 0 | E54: 0 | F54: 0 | G54: 0 | H54: 0 | I54: 0
B55: =IF(ISBLANK('N1. Demand'!B65),"",'N1. Demand'!B65) ->  | D55: =C136 -> 0 | E55: 0 | F55: 0 | G55: 0 | H55: 0 | I55: 0
B56: =IF(ISBLANK('N1. Demand'!B66),"",'N1. Demand'!B66) ->  | D56: =C137 -> 0 | E56: 0 | F56: 0 | G56: 0 | H56: 0 | I56: 0
B57: =IF(ISBLANK('N1. Demand'!B67),"",'N1. Demand'!B67) ->  | D57: =C138 -> 0 | E57: 0 | F57: 0 | G57: 0 | H57: 0 | I57: 0
B58: =IF(ISBLANK('N1. Demand'!B68),"",'N1. Demand'!B68) ->  | D58: =C139 -> 0 | E58: =D139 -> 0 | F58: =E139 -> 0 | G58: =F139 -> 0 | H58: =G139 -> 0 | I58: =H139 -> 0
B59: =IF(ISBLANK('N1. Demand'!B69),"",'N1. Demand'!B69) ->  | D59: 0 | E59: 0 | F59: 0 | G59: 0 | H59: 0 | I59: 0
B60: =IF(ISBLANK('N1. Demand'!B70),"",'N1. Demand'!B70) ->  | D60: 0 | E60: 0 | F60: 0 | G60: 0 | H60: 0 | I60: 0
B61: =IF(ISBLANK('N1. Demand'!B71),"",'N1. Demand'!B71) ->  | D61: 0 | E61: 0 | F61: 0 | G61: 0 | H61: 0 | I61: 0
B62: =IF(ISBLANK('N1. Demand'!B72),"",'N1. Demand'!B72) ->  | D62: 0 | E62: 0 | F62: 0 | G62: 0 | H62: 0 | I62: 0
B63: =IF(ISBLANK('N1. Demand'!B73),"",'N1. Demand'!B73) ->  | D63: 0 | E63: 0 | F63: 0 | G63: 0 | H63: 0 | I63: 0
B64: =IF(ISBLANK('N1. Demand'!B74),"",'N1. Demand'!B74) ->  | D64: 0 | E64: 0 | F64: 0 | G64: 0 | H64: 0 | I64: 0
B65: =IF(ISBLANK('N1. Demand'!B75),"",'N1. Demand'!B75) ->  | D65: 0 | E65: 0 | F65: 0 | G65: 0 | H65: 0 | I65: 0
B66: =IF(ISBLANK('N1. Demand'!B76),"",'N1. Demand'!B76) ->  | D66: 0 | E66: 0 | F66: 0 | G66: 0 | H66: 0 | I66: 0
B67: =IF(ISBLANK('N1. Demand'!B77),"",'N1. Demand'!B77) ->  | D67: 0 | E67: 0 | F67: 0 | G67: 0 | H67: 0 | I67: 0
B68: =IF(ISBLANK('N1. Demand'!B78),"",'N1. Demand'!B78) ->  | D68: 0 | E68: 0 | F68: 0 | G68: 0 | H68: 0 | I68: 0
B69: =IF(ISBLANK('N1. Demand'!B79),"",'N1. Demand'!B79) ->  | D69: 0 | E69: 0 | F69: 0 | G69: 0 | H69: 0 | I69: 0
B70: =IF(ISBLANK('N1. Demand'!B80),"",'N1. Demand'!B80) ->  | D70: 0 | E70: 0 | F70: 0 | G70: 0 | H70: 0 | I70: 0
B71: =IF(ISBLANK('N1. Demand'!B81),"",'N1. Demand'!B81) ->  | D71: 0 | E71: 0 | F71: 0 | G71: 0 | H71: 0 | I71: 0
B72: =IF(ISBLANK('N1. Demand'!B82),"",'N1. Demand'!B82) ->  | D72: 0 | E72: 0 | F72: 0 | G72: 0 | H72: 0 | I72: 0
B73: =IF(ISBLANK('N1. Demand'!B83),"",'N1. Demand'!B83) ->  | D73: 0 | E73: 0 | F73: 0 | G73: 0 | H73: 0 | I73: 0
B74: =IF(ISBLANK('N1. Demand'!B84),"",'N1. Demand'!B84) ->  | D74: 0 | E74: 0 | F74: 0 | G74: 0 | H74: 0 | I74: 0
B75: =IF(ISBLANK('N1. Demand'!B85),"",'N1. Demand'!B85) ->  | D75: 0 | E75: 0 | F75: 0 | G75: 0 | H75: 0 | I75: 0
B76: =IF(ISBLANK('N1. Demand'!B86),"",'N1. Demand'!B86) ->  | D76: 0 | E76: 0 | F76: 0 | G76: 0 | H76: 0 | I76: 0
B77: =IF(ISBLANK('N1. Demand'!B87),"",'N1. Demand'!B87) ->  | D77: 0 | E77: 0 | F77: 0 | G77: 0 | H77: 0 | I77: 0
B78: =IF(ISBLANK('N1. Demand'!B88),"",'N1. Demand'!B88) ->  | D78: 0 | E78: 0 | F78: 0 | G78: 0 | H78: 0 | I78: 0
B79: =IF(ISBLANK('N1. Demand'!B89),"",'N1. Demand'!B89) ->  | D79: 0 | E79: 0 | F79: 0 | G79: 0 | H79: 0 | I79: 0
B80: =IF(ISBLANK('N1. Demand'!B90),"",'N1. Demand'!B90) ->  | D80: 0 | E80: 0 | F80: 0 | G80: 0 | H80: 0 | I80: 0
B81: =IF(ISBLANK('N1. Demand'!B91),"",'N1. Demand'!B91) ->  | D81: 0 | E81: 0 | F81: 0 | G81: 0 | H81: 0 | I81: 0
B82: =IF(ISBLANK('N1. Demand'!B92),"",'N1. Demand'!B92) ->  | D82: 0 | E82: 0 | F82: 0 | G82: 0 | H82: 0 | I82: 0
B83: =IF(ISBLANK('N1. Demand'!B93),"",'N1. Demand'!B93) ->  | D83: 0 | E83: 0 | F83: 0 | G83: 0 | H83: 0 | I83: 0
B84: =IF(ISBLANK('N1. Demand'!B94),"",'N1. Demand'!B94) ->  | D84: 0 | E84: 0 | F84: 0 | G84: 0 | H84: 0 | I84: 0
B85: =IF(ISBLANK('N1. Demand'!B95),"",'N1. Demand'!B95) ->  | D85: 0 | E85: 0 | F85: 0 | G85: 0 | H85: 0 | I85: 0
B86: Total | C86: =SUM(C11:C85) -> 448208.0826 | D86: =SUM(D11:D85) -> 457334.6439 | E86: 461441.6913 | F86: 466816.2455 | G86: 471908.6649 | H86: 477888.8444 | I86: 484406.3051
B88: S1.2.2 - CUSTOMER NUMBERS AS AT 30 JUNE
C89: VOLUMES
C90: 0's
C91: =CRCP_y4 -> 2019-20 | D91: =CRCP_y5 -> 2020-21 | E91: =FRCP_y1 -> 2021-22 | F91: =FRCP_y2 -> 2022-23 | G91: =FRCP_y3 -> 2023-24 | H91: =FRCP_y4 -> 2024-25 | I91: =FRCP_y5 -> 2025-26
B92: =IF(ISBLANK(B11),"",B11) -> Tariff R - SA excl New Towns | C92: 445717.6742 | D92: 449884.3813 | E92: 455072.7591 | F92: 459747.1422 | G92: 464961.9882 | H92: 470716.3751 | I92: 476339.8003
B93: Tariff R - New Towns | C93: 201 | D93: 202.8790104 | E93: 401.27 | F93: 708.55 | G93: 1354.180242 | H93: 1999.810485 | I93: 2645.440727
B94: Tariff C - SA excl New Towns | C94: 11272.64715 | D94: 11214.59061 | E94: 11200.39637 | F94: 11305.91545 | G94: 11410.25228 | H94: 11512.33104 | I94: 11612.23791
B95: Tariff C - New Towns | C95: 31.32256113 | D95: 30.84034337 | E95: 35.81999271 | F95: 44.05728312 | G95: 61.42365276 | H95: 77.78853753 | I95: 95.15386905
B96: Northern | C96: 58.47787611 | D96: 56.91150442 | E96: 55.34513274 | F96: 53.77876106 | G96: 52.21238938 | H96: 50.6460177 | I96: 49.07964602
B97: Central | C97: 33.69911504 | D97: 32.79646018 | E97: 31.89380531 | F97: 30.99115044 | G97: 30.08849558 | H97: 29.18584071 | I97: 28.28318584
B98: Southern | C98: 12.88495575 | D98: 12.53982301 | E98: 12.19469027 | F98: 11.84955752 | G98: 11.50442478 | H98: 11.15929204 | I98: 10.81415929
B99: Peterborough | C99: 0 | D99: 0 | E99: 0 | F99: 0 | G99: 0 | H99: 0 | I99: 0
B100: Port Pirie | C100: 0.9911504425 | D100: 0.9646017699 | E100: 0.9380530973 | F100: 0.9115044248 | G100: 0.8849557522 | H100: 0.8584070796 | I100: 0.8318584071
B101: Riverland | C101: 1.982300885 | D101: 1.92920354 | E101: 1.876106195 | F101: 1.82300885 | G101: 1.769911504 | H101: 1.716814159 | I101: 1.663716814
B102: South East | C102: 2.973451327 | D102: 2.89380531 | E102: 2.814159292 | F102: 2.734513274 | G102: 3.654867257 | H102: 5.575221239 | I102: 6.495575221
B103: Whyalla | C103: 0.9911504425 | D103: 0.9646017699 | E103: 0.9380530973 | F103: 0.9115044248 | G103: 0.8849557522 | H103: 0.8584070796 | I103: 0.8318584071
B124: =IF(ISBLANK(B43),"",B43) -> 
B141: =IF(ISBLANK(B60),"",B60) -> 
B167: Total | C167: =SUM(C92:C166) -> 457334.6439 | D167: =SUM(D92:D166) -> 461441.6913 | E167: =SUM(E92:E166) -> 466816.2455 | F167: =SUM(F92:F166) -> 471908.6649 | G167: =SUM(G92:G166) -> 477888.8444 | H167: =SUM(H92:H166) -> 484406.3051 | I167: =SUM(I92:I166) -> 490790.6328
B169: S1.2.3 - TOTAL CUSTOMER CONNECTIONS
C170: VOLUMES
C171: 0's
C172: =CRCP_y4 -> 2019-20 | D172: =CRCP_y5 -> 2020-21 | E172: =FRCP_y1 -> 2021-22 | F172: =FRCP_y2 -> 2022-23 | G172: =FRCP_y3 -> 2023-24 | H172: =FRCP_y4 -> 2024-25 | I172: =FRCP_y5 -> 2025-26
B173: =IF(ISBLANK(B11),"",B11) -> Tariff R - SA excl New Towns | C173: 7210.690526 | D173: 7514.658717 | E173: 6237.040069 | F173: 7097.17512 | G173: 8295.080128 | H173: 9494.368892 | I173: 10029.46257
B174: Tariff R - New Towns | C174: 43.3926417 | D174: 45.22186773 | E174: 37.53338796 | F174: 42.70952635 | G174: 49.91830374 | H174: 57.13540832 | I174: 60.35550607
B175: Tariff C - SA excl New Towns | C175: 264.8398012 | D175: 259.1016277 | E175: 263.7736341 | F175: 271.1132552 | G175: 288.1359941 | H175: 303.5355851 | I175: 319.9859729
B176: Tariff C - New Towns | C176: 1.814547374 | D176: 1.775232332 | E176: 1.80724254 | F176: 1.857529884 | G176: 1.974161017 | H176: 2.079671169 | I176: 2.192380843
B177: Northern | C177: 0 | D177: 0 | E177: 0 | F177: 0 | G177: 0 | H177: 0 | I177: 0
B178: Central | C178: 0 | D178: 0 | E178: 0 | F178: 0 | G178: 0 | H178: 0 | I178: 0
B179: Southern | C179: 0 | D179: 0 | E179: 0 | F179: 0 | G179: 0 | H179: 0 | I179: 0
B180: Peterborough | C180: 0 | D180: 0 | E180: 0 | F180: 0 | G180: 0 | H180: 0 | I180: 0
B181: Port Pirie | C181: 0 | D181: 0 | E181: 0 | F181: 0 | G181: 0 | H181: 0 | I181: 0
B182: Riverland | C182: 0 | D182: 0 | E182: 0 | F182: 0 | G182: 0 | H182: 0 | I182: 0
B183: South East | C183: 0 | D183: 0 | E183: 0 | F183: 0 | G183: 0 | H183: 0 | I183: 0
B184: Whyalla | C184: 0 | D184: 0 | E184: 0 | F184: 0 | G184: 0 | H184: 0 | I184: 0
B205: =IF(ISBLANK(B43),"",B43) -> 
B222: =IF(ISBLANK(B60),"",B60) -> 
B248: Total | C248: =SUM(C173:C247) -> 7520.737516 | D248: =SUM(D173:D247) -> 7820.757445 | E248: =SUM(E173:E247) -> 6540.154333 | F248: =SUM(F173:F247) -> 7412.855431 | G248: =SUM(G173:G247) -> 8635.108587 | H248: =SUM(H173:H247) -> 9857.119557 | I248: =SUM(I173:I247) -> 10411.99643
B250: S1.2.4 - TOTAL CUSTOMER DISCONNECTIONS
C251: VOLUMES
C252: 0's
C253: =CRCP_y4 -> 2019-20 | D253: =CRCP_y5 -> 2020-21 | E253: =FRCP_y1 -> 2021-22 | F253: =FRCP_y2 -> 2022-23 | G253: =FRCP_y3 -> 2023-24 | H253: =FRCP_y4 -> 2024-25 | I253: =FRCP_y5 -> 2025-26
B254: =IF(ISBLANK(B11),"",B11) -> Tariff R - SA excl New Towns | C254: 1885.811523 | D254: 3347.951574 | E254: 3371.957292 | F254: 1950.215564 | G254: 1970.116322 | H254: 1992.317559 | I254: 2016.81535
B255: Tariff R - New Towns | C255: 11.34847535 | D255: 20.14737182 | E255: 20.29183392 | F255: 11.73604732 | G255: 11.85580651 | H255: 11.98940957 | I255: 12.13683288
B256: Tariff C - SA excl New Towns | C256: 148.7535786 | D256: 150.301389 | E256: 151.7520533 | F256: 153.1796512 | G256: 154.5830551 | H256: 155.9646451 | I256: 157.3163128
B257: Tariff C - New Towns | C257: 1.019183726 | D257: 1.029788534 | E257: 1.039727747 | F257: 1.04950892 | G257: 1.059124329 | H257: 1.06859028 | I257: 1.077851218
B258: Northern | C258: 2 | D258: 2 | E258: 2 | F258: 2 | G258: 2 | H258: 2 | I258: 2
B259: Central | C259: 1 | D259: 1 | E259: 1 | F259: 1 | G259: 1 | H259: 1 | I259: 1
B260: Southern | C260: 0 | D260: 0 | E260: 0 | F260: 0 | G260: 0 | H260: 0 | I260: 0
B261: Peterborough | C261: 0 | D261: 0 | E261: 0 | F261: 0 | G261: 0 | H261: 0 | I261: 0
B262: Port Pirie | C262: 0 | D262: 0 | E262: 0 | F262: 0 | G262: 0 | H262: 0 | I262: 0
B263: Riverland | C263: 0 | D263: 0 | E263: 0 | F263: 0 | G263: 0 | H263: 0 | I263: 0
B264: South East | C264: 0 | D264: 0 | E264: 0 | F264: 0 | G264: 0 | H264: 0 | I264: 0
B265: Whyalla | C265: 0 | D265: 0 | E265: 0 | F265: 0 | G265: 0 | H265: 0 | I265: 0
B286: =IF(ISBLANK(B43),"",B43) -> 
B303: =IF(ISBLANK(B60),"",B60) -> 
B329: Total | C329: =SUM(C254:C328) -> 2049.93276 | D329: =SUM(D254:D328) -> 3522.430123 | E329: =SUM(E254:E328) -> 3548.040907 | F329: =SUM(F254:F328) -> 2119.180772 | G329: =SUM(G254:G328) -> 2140.614308 | H329: =SUM(H254:H328) -> 2164.340204 | I329: =SUM(I254:I328) -> 2190.346346

Sheet S10. Supply Quality
B1: =INDEX(dms_Worksheet_List,MATCH(dms_Model,dms_Model_List)) -> REGULATORY REPORTING STATEMENT
B2: =INDEX(dms_TradingNameFull_List,MATCH(dms_TradingName,dms_TradingName_List)) -> Australian Gas Networks Limited (reporting data for SA)
B3: =dms_Header_Span -> 2019-20 - 2025-26
B4: S10. SUPPLY QUALITY
B6: S10.1 - PRESSURE FAULTS
C7: VOLUMES
C8: 0's
C9: =CRCP_y4 -> 2019-20 | D9: =CRCP_y5 -> 2020-21 | E9: =FRCP_y1 -> 2021-22 | F9: =FRCP_y2 -> 2022-23 | G9: =FRCP_y3 -> 2023-24 | H9: =FRCP_y4 -> 2024-25 | I9: =FRCP_y5 -> 2025-26
B10: Poor Pressure events - mains | C10: NULL | D10: NULL | E10: NULL | F10: NULL | G10: NULL | H10: NULL | I10: NULL
B11: Poor Pressure events - services | C11: NULL | D11: NULL | E11: NULL | F11: NULL | G11: NULL | H11: NULL | I11: NULL
B12: Poor Pressure event - meters | C12: 255 | D12: 243 | E12: 231 | F12: 220 | G12: 209 | H12: 199 | I12: 189
B13: Pressure events impacting 5+ customers | C13: 0 | D13: 0 | E13: 0 | F13: 0 | G13: 0 | H13: 0 | I13: 0
B14: Pressure events with >12 hr resolution | C14: 79 | D14: 72 | E14: 66 | F14: 60 | G14: 55 | H14: 50 | I14: 46

Sheet S11. Network reliability
B1: =INDEX(dms_Worksheet_List,MATCH(dms_Model,dms_Model_List)) -> REGULATORY REPORTING STATEMENT
B2: =INDEX(dms_TradingNameFull_List,MATCH(dms_TradingName,dms_TradingName_List)) -> Australian Gas Networks Limited (reporting data for SA)
B3: =dms_Header_Span -> 2019-20 - 2025-26
B4: S11. NETWORK RELIABILITY
B6: S11.1 - NETWORK OUTAGES
B7: S11.1.1 - PLANNED
C8: VOLUMES
C9: 0's
C10: =CRCP_y4 -> 2019-20 | D10: =CRCP_y5 -> 2020-21 | E10: =FRCP_y1 -> 2021-22 | F10: =FRCP_y2 -> 2022-23 | G10: =FRCP_y3 -> 2023-24 | H10: =FRCP_y4 -> 2024-25 | I10: =FRCP_y5 -> 2025-26
B11: Count of outage events | C11: 11465 | D11: 11662 | E11: 11341 | F11: 10716 | G11: 10555 | H11: 10586 | I11: 9662
B12: Outages affecting 5+ customers | C12: 0 | D12: 0 | E12: 0 | F12: 0 | G12: 0 | H12: 0 | I12: 0
B13: Outages with >12 hr supply interruption | C13: 0 | D13: 0 | E13: 0 | F13: 0 | G13: 0 | H13: 0 | I13: 0
B15: S11.1.2 - UNPLANNED
C16: VOLUMES
C17: 0's
C18: =CRCP_y4 -> 2019-20 | D18: =CRCP_y5 -> 2020-21 | E18: =FRCP_y1 -> 2021-22 | F18: =FRCP_y2 -> 2022-23 | G18: =FRCP_y3 -> 2023-24 | H18: =FRCP_y4 -> 2024-25 | I18: =FRCP_y5 -> 2025-26
B19: Count of outage events | C19: 280 | D19: 267 | E19: 255 | F19: 243 | G19: 232 | H19: 221 | I19: 211
B20: Outages affecting 5+ customers | C20: 27 | D20: 26 | E20: 25 | F20: 24 | G20: 23 | H20: 22 | I20: 21
B21: Outages with >12 hr supply interruption | C21: 19 | D21: 18 | E21: 17 | F21: 16 | G21: 15 | H21: 14 | I21: 13
B25: S11.2 - LEAKS - BY ASSET TYPE AND CAUSE OF LEAK
B26: S11.2.1 - LOW PRESSURE
C27: VOLUMES
C28: Number per KM
C29: =CRCP_y4 -> 2019-20 | D29: =CRCP_y5 -> 2020-21 | E29: =FRCP_y1 -> 2021-22 | F29: =FRCP_y2 -> 2022-23 | G29: =FRCP_y3 -> 2023-24 | H29: =FRCP_y4 -> 2024-25 | I29: =FRCP_y5 -> 2025-26
B30: Cast Iron
B31: Broken pipe - cracked | C31: 0.2221850874 | D31: 0.2221850874 | E31: 0.2221850874 | F31: 0.2221850874 | G31: 0.2221850874 | H31: 0.2221850874 | I31: 0
B32: Broken pipe - full break | C32: 0.1049340732 | D32: 0.1049340732 | E32: 0.1049340732 | F32: 0.1049340732 | G32: 0.1049340732 | H32: 0.1049340732 | I32: 0
B33: Corrosion | C33: 0.1676376701 | D33: 0.1676376701 | E33: 0.1676376701 | F33: 0.1676376701 | G33: 0.1676376701 | H33: 0.1676376701 | I33: 0
B34: Joint leak | C34: 0.7675429769 | D34: 0.7675429769 | E34: 0.7675429769 | F34: 0.7675429769 | G34: 0.7675429769 | H34: 0.7675429769 | I34: 0
B35: 3rd party damage | C35: 0.06463832984 | D35: 0.06463832984 | E35: 0.06463832984 | F35: 0.06463832984 | G35: 0.06463832984 | H35: 0.06463832984 | I35: 0
B36: Identified water in main | C36: 0 | D36: 0 | E36: 0 | F36: 0 | G36: 0 | H36: 0 | I36: 0
B37: Other | C37: 0.1202266805 | D37: 0.1202266805 | E37: 0.1202266805 | F37: 0.1202266805 | G37: 0.1202266805 | H37: 0.1202266805 | I37: 0
B38: PVC
B39: Broken pipe - cracked | C39: 0 | D39: 0 | E39: 0 | F39: 0 | G39: 0 | H39: 0 | I39: 0
B40: Broken pipe - full break | C40: 0 | D40: 0 | E40: 0 | F40: 0 | G40: 0 | H40: 0 | I40: 0
B41: Corrosion | C41: 0 | D41: 0 | E41: 0 | F41: 0 | G41: 0 | H41: 0 | I41: 0
B42: Joint leak | C42: 0 | D42: 0 | E42: 0 | F42: 0 | G42: 0 | H42: 0 | I42: 0
B43: 3rd party damage | C43: 0 | D43: 0 | E43: 0 | F43: 0 | G43: 0 | H43: 0 | I43: 0
B44: Identified water in main | C44: 0 | D44: 0 | E44: 0 | F44: 0 | G44: 0 | H44: 0 | I44: 0
B45: Other | C45: 0 | D45: 0 | E45: 0 | F45: 0 | G45: 0 | H45: 0 | I45: 0
B46: Polyamide
B47: Broken pipe - cracked | C47: 0 | D47: 0 | E47: 0 | F47: 0 | G47: 0 | H47: 0 | I47: 0
B48: Broken pipe - full break | C48: 0 | D48: 0 | E48: 0 | F48: 0 | G48: 0 | H48: 0 | I48: 0
B49: Corrosion | C49: 0 | D49: 0 | E49: 0 | F49: 0 | G49: 0 | H49: 0 | I49: 0
B50: Joint leak | C50: 0 | D50: 0 | E50: 0 | F50: 0 | G50: 0 | H50: 0 | I50: 0
B51: 3rd party damage | C51: 0 | D51: 0 | E51: 0 | F51: 0 | G51: 0 | H51: 0 | I51: 0
B52: Identified water in main | C52: 0 | D52: 0 | E52: 0 | F52: 0 | G52: 0 | H52: 0 | I52: 0
B53: Other | C53: 0 | D53: 0 | E53: 0 | F53: 0 | G53: 0 | H53: 0 | I53: 0
B54: High density polyethylene (80)
B55: Broken pipe - cracked | C55: Null | D55: Null | E55: Null | F55: Null | G55: Null | H55: Null | I55: Null
B56: Broken pipe - full break | C56: Null | D56: Null | E56: Null | F56: Null | G56: Null | H56: Null | I56: Null
B57: Corrosion | C57: Null | D57: Null | E57: Null | F57: Null | G57: Null | H57: Null | I57: Null
B58: Joint leak | C58: Null | D58: Null | E58: Null | F58: Null | G58: Null | H58: Null | I58: Null
B59: 3rd party damage | C59: Null | D59: Null | E59: Null | F59: Null | G59: Null | H59: Null | I59: Null
B60: Identified water in main | C60: Null | D60: Null | E60: Null | F60: Null | G60: Null | H60: Null | I60: Null
B61: Other | C61: Null | D61: Null | E61: Null | F61: Null | G61: Null | H61: Null | I61: Null
B62: High density polyethylene (100)
B63: Broken pipe - cracked | C63: Null | D63: Null | E63: Null | F63: Null | G63: Null | H63: Null | I63: Null
B64: Broken pipe - full break | C64: Null | D64: Null | E64: Null | F64: Null | G64: Null | H64: Null | I64: Null
B65: Corrosion | C65: Null | D65: Null | E65: Null | F65: Null | G65: Null | H65: Null | I65: Null
B66: Joint leak | C66: Null | D66: Null | E66: Null | F66: Null | G66: Null | H66: Null | I66: Null
B67: 3rd party damage | C67: Null | D67: Null | E67: Null | F67: Null | G67: Null | H67: Null | I67: Null
B68: Identified water in main | C68: Null | D68: Null | E68: Null | F68: Null | G68: Null | H68: Null | I68: Null
B69: Other | C69: Null | D69: Null | E69: Null | F69: Null | G69: Null | H69: Null | I69: Null
B70: High density polyethylene (250)
B71: Broken pipe - cracked | C71: Null | D71: Null | E71: Null | F71: Null | G71: Null | H71: Null | I71: Null
B72: Broken pipe - full break | C72: Null | D72: Null | E72: Null | F72: Null | G72: Null | H72: Null | I72: Null
B73: Corrosion | C73: Null | D73: Null | E73: Null | F73: Null | G73: Null | H73: Null | I73: Null
B74: Joint leak | C74: Null | D74: Null | E74: Null | F74: Null | G74: Null | H74: Null | I74: Null
B75: 3rd party damage | C75: Null | D75: Null | E75: Null | F75: Null | G75: Null | H75: Null | I75: Null
B76: Identified water in main | C76: Null | D76: Null | E76: Null | F76: Null | G76: Null | H76: Null | I76: Null
B77: Other | C77: Null | D77: Null | E77: Null | F77: Null | G77: Null | H77: Null | I77: Null
B78: High density polyethylene (575)
B79: Broken pipe - cracked | C79: Null | D79: Null | E79: Null | F79: Null | G79: Null | H79: Null | I79: Null
B80: Broken pipe - full break | C80: Null | D80: Null | E80: Null | F80: Null | G80: Null | H80: Null | I80: Null
B81: Corrosion | C81: Null | D81: Null | E81: Null | F81: Null | G81: Null | H81: Null | I81: Null
B82: Joint leak | C82: Null | D82: Null | E82: Null | F82: Null | G82: Null | H82: Null | I82: Null
B83: 3rd party damage | C83: Null | D83: Null | E83: Null | F83: Null | G83: Null | H83: Null | I83: Null
B84: Identified water in main | C84: Null | D84: Null | E84: Null | F84: Null | G84: Null | H84: Null | I84: Null
B85: Other | C85: Null | D85: Null | E85: Null | F85: Null | G85: Null | H85: Null | I85: Null
B86: Medium density polyethylene
B87: Broken pipe - cracked | C87: Null | D87: Null | E87: Null | F87: Null | G87: Null | H87: Null | I87: Null
B88: Broken pipe - full break | C88: Null | D88: Null | E88: Null | F88: Null | G88: Null | H88: Null | I88: Null
B89: Corrosion | C89: Null | D89: Null | E89: Null | F89: Null | G89: Null | H89: Null | I89: Null
B90: Joint leak | C90: Null | D90: Null | E90: Null | F90: Null | G90: Null | H90: Null | I90: Null
B91: 3rd party damage | C91: Null | D91: Null | E91: Null | F91: Null | G91: Null | H91: Null | I91: Null
B92: Identified water in main | C92: Null | D92: Null | E92: Null | F92: Null | G92: Null | H92: Null | I92: Null
B93: Other | C93: Null | D93: Null | E93: Null | F93: Null | G93: Null | H93: Null | I93: Null
B94: Other polyethylene
B95: Broken pipe - cracked | C95: 0.1904756472 | D95: 0.1904756472 | E95: 0.1904756472 | F95: 0.1904756472 | G95: 0.1904756472 | H95: 0.1904756472 | I95: 0.1904756472
B96: Broken pipe - full break | C96: 0.06529200825 | D96: 0.06529200825 | E96: 0.06529200825 | F96: 0.06529200825 | G96: 0.06529200825 | H96: 0.06529200825 | I96: 0.06529200825
B97: Corrosion | C97: 0 | D97: 0 | E97: 0 | F97: 0 | G97: 0 | H97: 0 | I97: 0
B98: Joint leak | C98: 0.3297844313 | D98: 0.3297844313 | E98: 0.3297844313 | F98: 0.3297844313 | G98: 0.3297844313 | H98: 0.3297844313 | I98: 0.3297844313
B99: 3rd party damage | C99: 0.2113698341 | D99: 0.2113698341 | E99: 0.2113698341 | F99: 0.2113698341 | G99: 0.2113698341 | H99: 0.2113698341 | I99: 0.2113698341
B100: Identified water in main | C100: 0 | D100: 0 | E100: 0 | F100: 0 | G100: 0 | H100: 0 | I100: 0
B101: Other | C101: 0.1147421194 | D101: 0.1147421194 | E101: 0.1147421194 | F101: 0.1147421194 | G101: 0.1147421194 | H101: 0.1147421194 | I101: 0.1147421194
B102: Unprotected steel
B103: Broken pipe - cracked | C103: 0.08519549241 | D103: 0.08519549241 | E103: 0.08519549241 | F103: 0.08519549241 | G103: 0.08519549241 | H103: 0.08519549241 | I103: 0
B104: Broken pipe - full break | C104: 0.03711480377 | D104: 0.03711480377 | E104: 0.03711480377 | F104: 0.03711480377 | G104: 0.03711480377 | H104: 0.03711480377 | I104: 0
B105: Corrosion | C105: 0.82722417 | D105: 0.82722417 | E105: 0.82722417 | F105: 0.82722417 | G105: 0.82722417 | H105: 0.82722417 | I105: 0
B106: Joint leak | C106: 0.8468021304 | D106: 0.8468021304 | E106: 0.8468021304 | F106: 0.8468021304 | G106: 0.8468021304 | H106: 0.8468021304 | I106: 0
B107: 3rd party damage | C107: 0.1742935137 | D107: 0.1742935137 | E107: 0.1742935137 | F107: 0.1742935137 | G107: 0.1742935137 | H107: 0.1742935137 | I107: 0
B108: Identified water in main | C108: 0 | D108: 0 | E108: 0 | F108: 0 | G108: 0 | H108: 0 | I108: 0
B109: Other | C109: 0.099681091 | D109: 0.099681091 | E109: 0.099681091 | F109: 0.099681091 | G109: 0.099681091 | H109: 0.099681091 | I109: 0
B110: Protected steel
B111: Broken pipe - cracked | C111: 0 | D111: 0 | E111: 0 | F111: 0 | G111: 0 | H111: 0 | I111: 0
B112: Broken pipe - full break | C112: 0 | D112: 0 | E112: 0 | F112: 0 | G112: 0 | H112: 0 | I112: 0
B113: Corrosion | C113: 0.007262164125 | D113: 0.007262164125 | E113: 0.007262164125 | F113: 0.007262164125 | G113: 0.007262164125 | H113: 0.007262164125 | I113: 0.007262164125
B114: Joint leak | C114: 0.01343500363 | D114: 0.01343500363 | E114: 0.01343500363 | F114: 0.01343500363 | G114: 0.01343500363 | H114: 0.01343500363 | I114: 0.01343500363
B115: 3rd party damage | C115: 0 | D115: 0 | E115: 0 | F115: 0 | G115: 0 | H115: 0 | I115: 0
B116: Identified water in main | C116: 0 | D116: 0 | E116: 0 | F116: 0 | G116: 0 | H116: 0 | I116: 0
B117: Other | C117: 0 | D117: 0 | E117: 0 | F117: 0 | G117: 0 | H117: 0 | I117: 0
B119: S11.2.2 - MEDIUM PRESSURE
C120: VOLUMES
C121: Number per KM
C122: =CRCP_y4 -> 2019-20 | D122: =CRCP_y5 -> 2020-21 | E122: =FRCP_y1 -> 2021-22 | F122: =FRCP_y2 -> 2022-23 | G122: =FRCP_y3 -> 2023-24 | H122: =FRCP_y4 -> 2024-25 | I122: =FRCP_y5 -> 2025-26
B123: Cast Iron
B124: Broken pipe - cracked | C124: 0.07096081143 | D124: 0.07096081143 | E124: 0.07096081143 | F124: 0.07096081143 | G124: 0.07096081143 | H124: 0.07096081143 | I124: 0
B125: Broken pipe - full break | C125: 0.03301162677 | D125: 0.03301162677 | E125: 0.03301162677 | F125: 0.03301162677 | G125: 0.03301162677 | H125: 0.03301162677 | I125: 0
B126: Corrosion | C126: 0.04959762855 | D126: 0.04959762855 | E126: 0.04959762855 | F126: 0.04959762855 | G126: 0.04959762855 | H126: 0.04959762855 | I126: 0
B127: Joint leak | C127: 0.3446812667 | D127: 0.3446812667 | E127: 0.3446812667 | F127: 0.3446812667 | G127: 0.3446812667 | H127: 0.3446812667 | I127: 0
B128: 3rd party damage | C128: 0.02734062143 | D128: 0.02734062143 | E128: 0.02734062143 | F128: 0.02734062143 | G128: 0.02734062143 | H128: 0.02734062143 | I128: 0
B129: Identified water in main | C129: 0 | D129: 0 | E129: 0 | F129: 0 | G129: 0 | H129: 0 | I129: 0
B130: Other | C130: 0.07011006287 | D130: 0.07011006287 | E130: 0.07011006287 | F130: 0.07011006287 | G130: 0.07011006287 | H130: 0.07011006287 | I130: 0
B131: PVC
B132: Broken pipe - cracked | C132: 0 | D132: 0 | E132: 0 | F132: 0 | G132: 0 | H132: 0 | I132: 0
B133: Broken pipe - full break | C133: 0 | D133: 0 | E133: 0 | F133: 0 | G133: 0 | H133: 0 | I133: 0
B134: Corrosion | C134: 0 | D134: 0 | E134: 0 | F134: 0 | G134: 0 | H134: 0 | I134: 0
B135: Joint leak | C135: 0 | D135: 0 | E135: 0 | F135: 0 | G135: 0 | H135: 0 | I135: 0
B136: 3rd party damage | C136: 0 | D136: 0 | E136: 0 | F136: 0 | G136: 0 | H136: 0 | I136: 0
B137: Identified water in main | C137: 0 | D137: 0 | E137: 0 | F137: 0 | G137: 0 | H137: 0 | I137: 0
B138: Other | C138: 0 | D138: 0 | E138: 0 | F138: 0 | G138: 0 | H138: 0 | I138: 0
B139: Polyamide
B140: Broken pipe - cracked | C140: 0 | D140: 0 | E140: 0 | F140: 0 | G140: 0 | H140: 0 | I140: 0
B141: Broken pipe - full break | C141: 0 | D141: 0 | E141: 0 | F141: 0 | G141: 0 | H141: 0 | I141: 0
B142: Corrosion | C142: 0 | D142: 0 | E142: 0 | F142: 0 | G142: 0 | H142: 0 | I142: 0
B143: Joint leak | C143: 0 | D143: 0 | E143: 0 | F143: 0 | G143: 0 | H143: 0 | I143: 0
B144: 3rd party damage | C144: 0 | D144: 0 | E144: 0 | F144: 0 | G144: 0 | H144: 0 | I144: 0
B145: Identified water in main | C145: 0 | D145: 0 | E145: 0 | F145: 0 | G145: 0 | H145: 0 | I145: 0
B146: Other | C146: 0 | D146: 0 | E146: 0 | F146: 0 | G146: 0 | H146: 0 | I146: 0
B147: High density polyethylene (80)
B148: Broken pipe - cracked | C148: Null | D148: Null | E148: Null | F148: Null | G148: Null | H148: Null | I148: Null
B149: Broken pipe - full break | C149: Null | D149: Null | E149: Null | F149: Null | G149: Null | H149: Null | I149: Null
B150: Corrosion | C150: Null | D150: Null | E150: Null | F150: Null | G150: Null | H150: Null | I150: Null
B151: Joint leak | C151: Null | D151: Null | E151: Null | F151: Null | G151: Null | H151: Null | I151: Null
B152: 3rd party damage | C152: Null | D152: Null | E152: Null | F152: Null | G152: Null | H152: Null | I152: Null
B153: Identified water in main | C153: Null | D153: Null | E153: Null | F153: Null | G153: Null | H153: Null | I153: Null
B154: Other | C154: Null | D154: Null | E154: Null | F154: Null | G154: Null | H154: Null | I154: Null
B155: High density polyethylene (100)
B156: Broken pipe - cracked | C156: Null | D156: Null | E156: Null | F156: Null | G156: Null | H156: Null | I156: Null
B157: Broken pipe - full break | C157: Null | D157: Null | E157: Null | F157: Null | G157: Null | H157: Null | I157: Null
B158: Corrosion | C158: Null | D158: Null | E158: Null | F158: Null | G158: Null | H158: Null | I158: Null
B159: Joint leak | C159: Null | D159: Null | E159: Null | F159: Null | G159: Null | H159: Null | I159: Null
B160: 3rd party damage | C160: Null | D160: Null | E160: Null | F160: Null | G160: Null | H160: Null | I160: Null
B161: Identified water in main | C161: Null | D161: Null | E161: Null | F161: Null | G161: Null | H161: Null | I161: Null
B162: Other | C162: Null | D162: Null | E162: Null | F162: Null | G162: Null | H162: Null | I162: Null
B163: High density polyethylene (250)
B164: Broken pipe - cracked | C164: Null | D164: Null | E164: Null | F164: Null | G164: Null | H164: Null | I164: Null
B165: Broken pipe - full break | C165: Null | D165: Null | E165: Null | F165: Null | G165: Null | H165: Null | I165: Null
B166: Corrosion | C166: Null | D166: Null | E166: Null | F166: Null | G166: Null | H166: Null | I166: Null
B167: Joint leak | C167: Null | D167: Null | E167: Null | F167: Null | G167: Null | H167: Null | I167: Null
B168: 3rd party damage | C168: Null | D168: Null | E168: Null | F168: Null | G168: Null | H168: Null | I168: Null
B169: Identified water in main | C169: Null | D169: Null | E169: Null | F169: Null | G169: Null | H169: Null | I169: Null
B170: Other | C170: Null | D170: Null | E170: Null | F170: Null | G170: Null | H170: Null | I170: Null
B171: High density polyethylene (575)
B172: Broken pipe - cracked | C172: Null | D172: Null | E172: Null | F172: Null | G172: Null | H172: Null | I172: Null
B173: Broken pipe - full break | C173: Null | D173: Null | E173: Null | F173: Null | G173: Null | H173: Null | I173: Null
B174: Corrosion | C174: Null | D174: Null | E174: Null | F174: Null | G174: Null | H174: Null | I174: Null
B175: Joint leak | C175: Null | D175: Null | E175: Null | F175: Null | G175: Null | H175: Null | I175: Null
B176: 3rd party damage | C176: Null | D176: Null | E176: Null | F176: Null | G176: Null | H176: Null | I176: Null
B177: Identified water in main | C177: Null | D177: Null | E177: Null | F177: Null | G177: Null | H177: Null | I177: Null
B178: Other | C178: Null | D178: Null | E178: Null | F178: Null | G178: Null | H178: Null | I178: Null
B179: Medium density polyethylene
B180: Broken pipe - cracked | C180: Null | D180: Null | E180: Null | F180: Null | G180: Null | H180: Null | I180: Null
B181: Broken pipe - full break | C181: Null | D181: Null | E181: Null | F181: Null | G181: Null | H181: Null | I181: Null
B182: Corrosion | C182: Null | D182: Null | E182: Null | F182: Null | G182: Null | H182: Null | I182: Null
B183: Joint leak | C183: Null | D183: Null | E183: Null | F183: Null | G183: Null | H183: Null | I183: Null
B184: 3rd party damage | C184: Null | D184: Null | E184: Null | F184: Null | G184: Null | H184: Null | I184: Null
B185: Identified water in main | C185: Null | D185: Null | E185: Null | F185: Null | G185: Null | H185: Null | I185: Null
B186: Other | C186: Null | D186: Null | E186: Null | F186: Null | G186: Null | H186: Null | I186: Null
B187: Other polyethylene
B188: Broken pipe - cracked | C188: 0.05133743157 | D188: 0.05133743157 | E188: 0.05133743157 | F188: 0.05133743157 | G188: 0.05133743157 | H188: 0.05133743157 | I188: 0.05133743157
B189: Broken pipe - full break | C189: 0.01909860832 | D189: 0.01909860832 | E189: 0.01909860832 | F189: 0.01909860832 | G189: 0.01909860832 | H189: 0.01909860832 | I189: 0.01909860832
B190: Corrosion | C190: 0 | D190: 0 | E190: 0 | F190: 0 | G190: 0 | H190: 0 | I190: 0
B191: Joint leak | C191: 0.138659265 | D191: 0.138659265 | E191: 0.138659265 | F191: 0.138659265 | G191: 0.138659265 | H191: 0.138659265 | I191: 0.138659265
B192: 3rd party damage | C192: 0.1208847773 | D192: 0.1208847773 | E192: 0.1208847773 | F192: 0.1208847773 | G192: 0.1208847773 | H192: 0.1208847773 | I192: 0.1208847773
B193: Identified water in main | C193: 0 | D193: 0 | E193: 0 | F193: 0 | G193: 0 | H193: 0 | I193: 0
B194: Other | C194: 0.08070857768 | D194: 0.08070857768 | E194: 0.08070857768 | F194: 0.08070857768 | G194: 0.08070857768 | H194: 0.08070857768 | I194: 0.08070857768
B195: Unprotected steel
B196: Broken pipe - cracked | C196: 0.7326418501 | D196: 0.7326418501 | E196: 0.7326418501 | F196: 0.7326418501 | G196: 0.7326418501 | H196: 0 | I196: 0
B197: Broken pipe - full break | C197: 0.4444873267 | D197: 0.4444873267 | E197: 0.4444873267 | F197: 0.4444873267 | G197: 0.4444873267 | H197: 0 | I197: 0
B198: Corrosion | C198: 1.706723297 | D198: 1.706723297 | E198: 1.706723297 | F198: 1.706723297 | G198: 1.706723297 | H198: 0 | I198: 0
B199: Joint leak | C199: 4.620797943 | D199: 4.620797943 | E199: 4.620797943 | F199: 4.620797943 | G199: 4.620797943 | H199: 0 | I199: 0
B200: 3rd party damage | C200: 1.298493678 | D200: 1.298493678 | E200: 1.298493678 | F200: 1.298493678 | G200: 1.298493678 | H200: 0 | I200: 0
B201: Identified water in main | C201: 0 | D201: 0 | E201: 0 | F201: 0 | G201: 0 | H201: 0 | I201: 0
B202: Other | C202: 1.706478701 | D202: 1.706478701 | E202: 1.706478701 | F202: 1.706478701 | G202: 1.706478701 | H202: 0 | I202: 0
B203: Protected steel
B204: Broken pipe - cracked | C204: 0 | D204: 0 | E204: 0 | F204: 0 | G204: 0 | H204: 0 | I204: 0
B205: Broken pipe - full break | C205: 0 | D205: 0 | E205: 0 | F205: 0 | G205: 0 | H205: 0 | I205: 0
B206: Corrosion | C206: 0.0002305209774 | D206: 0.0002305209774 | E206: 0.0002305209774 | F206: 0.0002305209774 | G206: 0.0002305209774 | H206: 0.0002305209774 | I206: 0.0002305209774
... 102 more rows

Sheet F2. Capex
B1: =INDEX(dms_Worksheet_List,MATCH(dms_Model,dms_Model_List)) -> REGULATORY REPORTING STATEMENT
B2: =INDEX(dms_TradingNameFull_List,MATCH(dms_TradingName,dms_TradingName_List)) -> Australian Gas Networks Limited (reporting data for SA)
B3: =dms_Header_Span -> 2019-20 - 2025-26
B4: F2. CAPITAL EXPENDITURE
B7: F2.7 - IMMEDIATE EXPENSING CAPEX
B8: F2.7.1 - ACTUAL - AS INCURRED
C9: EXPENDITURE
C10: $0's, nominal
B11: Asset class | C11: =dms_y1 -> 2019-20 | D11: =dms_y2 -> 2020-21
C12: N/A | D12: N/A
B42: Total | C42: =SUM(C12:C41) -> 0 | D42: 0

Sheet F3. Revenue
B1: =INDEX(dms_Worksheet_List,MATCH(dms_Model,dms_Model_List)) -> REGULATORY REPORTING STATEMENT
B2: =INDEX(dms_TradingNameFull_List,MATCH(dms_TradingName,dms_TradingName_List)) -> Australian Gas Networks Limited (reporting data for SA)
B3: =dms_Header_Span -> 2019-20 - 2025-26
B4: F3. REVENUE
B6: F3.1 - REFERENCE SERVICES
B7: F3.1.1 - REVENUE - BY TARIFF
C8: REVENUE
C9: =CONCATENATE("$0's, real ",dms_DollarReal) -> $0's, real June 2021
B10: Tariff | C10: =CRCP_y4 -> 2019-20 | D10: =CRCP_y5 -> 2020-21 | E10: =FRCP_y1 -> 2021-22 | F10: =FRCP_y2 -> 2022-23 | G10: =FRCP_y3 -> 2023-24 | H10: =FRCP_y4 -> 2024-25 | I10: =FRCP_y5 -> 2025-26
B11: =IF(ISBLANK('N1. Demand'!B21),"",'N1. Demand'!B21) -> Tariff R - SA excl New Towns | C11: ='[5]F3. Revenue'!C11 -> 175877809.4 | D11: ='[5]F3. Revenue'!D11 -> 180010937.9 | E11: ='[5]F3. Revenue'!E11 -> 165343589 | F11: ='[5]F3. Revenue'!F11 -> 166080789.5 | G11: ='[5]F3. Revenue'!G11 -> 166755533.4 | H11: ='[5]F3. Revenue'!H11 -> 167396398.9 | I11: ='[5]F3. Revenue'!I11 -> 168290749.3
B12: =IF(ISBLANK('N1. Demand'!B22),"",'N1. Demand'!B22) -> Tariff R - New Towns | C12: ='[5]F3. Revenue'!C12 -> 100303.7255 | D12: ='[5]F3. Revenue'!D12 -> 102660.863 | E12: ='[5]F3. Revenue'!E12 -> 93801.76129 | F12: ='[5]F3. Revenue'!F12 -> 233620.2918 | G12: ='[5]F3. Revenue'!G12 -> 1774623.735 | H12: ='[5]F3. Revenue'!H12 -> 874385.8401 | I12: ='[5]F3. Revenue'!I12 -> 1255431.576
B13: =IF(ISBLANK('N1. Demand'!B23),"",'N1. Demand'!B23) -> Tariff C - SA excl New Towns | C13: ='[5]F3. Revenue'!C13 -> 33299369.29 | D13: ='[5]F3. Revenue'!D13 -> 34081904.47 | E13: ='[5]F3. Revenue'!E13 -> 31612321.43 | F13: ='[5]F3. Revenue'!F13 -> 32256231.33 | G13: ='[5]F3. Revenue'!G13 -> 32770702.11 | H13: ='[5]F3. Revenue'!H13 -> 33157808.94 | I13: ='[5]F3. Revenue'!I13 -> 33613049.16
B14: =IF(ISBLANK('N1. Demand'!B24),"",'N1. Demand'!B24) -> Tariff C - New Towns | C14: ='[5]F3. Revenue'!C14 -> 126637.1521 | D14: ='[5]F3. Revenue'!D14 -> 129613.1252 | E14: ='[5]F3. Revenue'!E14 -> 120327.1349 | F14: ='[5]F3. Revenue'!F14 -> 156836.4809 | G14: ='[5]F3. Revenue'!G14 -> 257412.949 | H14: ='[5]F3. Revenue'!H14 -> 354144.4555 | I14: ='[5]F3. Revenue'!I14 -> 475470.4201
B15: =IF(ISBLANK('N1. Demand'!B25),"",'N1. Demand'!B25) -> Northern | C15: ='[5]F3. Revenue'!C15 -> 7851582.087 | D15: ='[5]F3. Revenue'!D15 -> 8036094.266 | E15: ='[5]F3. Revenue'!E15 -> 7300710.932 | F15: ='[5]F3. Revenue'!F15 -> 7183567.01 | G15: ='[5]F3. Revenue'!G15 -> 7062771.385 | H15: ='[5]F3. Revenue'!H15 -> 6937901.852 | I15: ='[5]F3. Revenue'!I15 -> 6808871.156
B16: =IF(ISBLANK('N1. Demand'!B26),"",'N1. Demand'!B26) -> Central | C16: ='[5]F3. Revenue'!C16 -> 4747578.404 | D16: ='[5]F3. Revenue'!D16 -> 4859146.497 | E16: ='[5]F3. Revenue'!E16 -> 4360822.937 | F16: ='[5]F3. Revenue'!F16 -> 4290281.616 | G16: ='[5]F3. Revenue'!G16 -> 4218007.72 | H16: ='[5]F3. Revenue'!H16 -> 4145061.826 | I16: ='[5]F3. Revenue'!I16 -> 4071368.693
B17: =IF(ISBLANK('N1. Demand'!B27),"",'N1. Demand'!B27) -> Southern | C17: ='[5]F3. Revenue'!C17 -> 1357215.34 | D17: ='[5]F3. Revenue'!D17 -> 1389109.9 | E17: ='[5]F3. Revenue'!E17 -> 1246668.803 | F17: ='[5]F3. Revenue'!F17 -> 1219914.645 | G17: ='[5]F3. Revenue'!G17 -> 1192538.578 | H17: ='[5]F3. Revenue'!H17 -> 1164804.219 | I17: ='[5]F3. Revenue'!I17 -> 1136695.634
B18: =IF(ISBLANK('N1. Demand'!B28),"",'N1. Demand'!B28) -> Peterborough
B19: =IF(ISBLANK('N1. Demand'!B29),"",'N1. Demand'!B29) -> Port Pirie
B20: =IF(ISBLANK('N1. Demand'!B30),"",'N1. Demand'!B30) -> Riverland
B21: =IF(ISBLANK('N1. Demand'!B31),"",'N1. Demand'!B31) -> South East
B22: =IF(ISBLANK('N1. Demand'!B32),"",'N1. Demand'!B32) -> Whyalla
B23: =IF(ISBLANK('N1. Demand'!B33),"",'N1. Demand'!B33) -> 
B24: =IF(ISBLANK('N1. Demand'!B34),"",'N1. Demand'!B34) -> 
B25: =IF(ISBLANK('N1. Demand'!B35),"",'N1. Demand'!B35) -> 
B26: =IF(ISBLANK('N1. Demand'!B36),"",'N1. Demand'!B36) -> 
B27: =IF(ISBLANK('N1. Demand'!B37),"",'N1. Demand'!B37) -> 
B28: =IF(ISBLANK('N1. Demand'!B38),"",'N1. Demand'!B38) -> 
B29: =IF(ISBLANK('N1. Demand'!B39),"",'N1. Demand'!B39) -> 
B30: =IF(ISBLANK('N1. Demand'!B40),"",'N1. Demand'!B40) -> 
B31: =IF(ISBLANK('N1. Demand'!B41),"",'N1. Demand'!B41) -> 
B32: =IF(ISBLANK('N1. Demand'!B42),"",'N1. Demand'!B42) -> 
B33: =IF(ISBLANK('N1. Demand'!B43),"",'N1. Demand'!B43) -> 
B34: =IF(ISBLANK('N1. Demand'!B44),"",'N1. Demand'!B44) -> 
B35: =IF(ISBLANK('N1. Demand'!B45),"",'N1. Demand'!B45) -> 
B36: =IF(ISBLANK('N1. Demand'!B46),"",'N1. Demand'!B46) -> 
B37: =IF(ISBLANK('N1. Demand'!B47),"",'N1. Demand'!B47) -> 
B38: =IF(ISBLANK('N1. Demand'!B48),"",'N1. Demand'!B48) -> 
B39: =IF(ISBLANK('N1. Demand'!B49),"",'N1. Demand'!B49) -> 
B40: =IF(ISBLANK('N1. Demand'!B50),"",'N1. Demand'!B50) -> 
B41: =IF(ISBLANK('N1. Demand'!B51),"",'N1. Demand'!B51) -> 
B42: =IF(ISBLANK('N1. Demand'!B52),"",'N1. Demand'!B52) -> 
B43: =IF(ISBLANK('N1. Demand'!B53),"",'N1. Demand'!B53) -> 
B44: =IF(ISBLANK('N1. Demand'!B54),"",'N1. Demand'!B54) -> 
B45: =IF(ISBLANK('N1. Demand'!B55),"",'N1. Demand'!B55) -> 
B46: =IF(ISBLANK('N1. Demand'!B56),"",'N1. Demand'!B56) -> 
B47: =IF(ISBLANK('N1. Demand'!B57),"",'N1. Demand'!B57) -> 
B48: =IF(ISBLANK('N1. Demand'!B58),"",'N1. Demand'!B58) -> 
B49: =IF(ISBLANK('N1. Demand'!B59),"",'N1. Demand'!B59) -> 
B50: =IF(ISBLANK('N1. Demand'!B60),"",'N1. Demand'!B60) -> 
B51: =IF(ISBLANK('N1. Demand'!B61),"",'N1. Demand'!B61) -> 
B52: =IF(ISBLANK('N1. Demand'!B62),"",'N1. Demand'!B62) -> 
B53: =IF(ISBLANK('N1. Demand'!B63),"",'N1. Demand'!B63) -> 
B54: =IF(ISBLANK('N1. Demand'!B64),"",'N1. Demand'!B64) -> 
B55: =IF(ISBLANK('N1. Demand'!B65),"",'N1. Demand'!B65) -> 
B56: =IF(ISBLANK('N1. Demand'!B66),"",'N1. Demand'!B66) -> 
B57: =IF(ISBLANK('N1. Demand'!B67),"",'N1. Demand'!B67) -> 
B58: =IF(ISBLANK('N1. Demand'!B68),"",'N1. Demand'!B68) -> 
B59: =IF(ISBLANK('N1. Demand'!B69),"",'N1. Demand'!B69) -> 
B60: =IF(ISBLANK('N1. Demand'!B70),"",'N1. Demand'!B70) -> 
B61: =IF(ISBLANK('N1. Demand'!B71),"",'N1. Demand'!B71) -> 
B62: =IF(ISBLANK('N1. Demand'!B72),"",'N1. Demand'!B72) -> 
B63: =IF(ISBLANK('N1. Demand'!B73),"",'N1. Demand'!B73) -> 
B64: =IF(ISBLANK('N1. Demand'!B74),"",'N1. Demand'!B74) -> 
B65: =IF(ISBLANK('N1. Demand'!B75),"",'N1. Demand'!B75) -> 
B66: =IF(ISBLANK('N1. Demand'!B76),"",'N1. Demand'!B76) -> 
B67: =IF(ISBLANK('N1. Demand'!B77),"",'N1. Demand'!B77) -> 
B68: =IF(ISBLANK('N1. Demand'!B78),"",'N1. Demand'!B78) -> 
B69: =IF(ISBLANK('N1. Demand'!B79),"",'N1. Demand'!B79) -> 
B70: =IF(ISBLANK('N1. Demand'!B80),"",'N1. Demand'!B80) -> 
B71: =IF(ISBLANK('N1. Demand'!B81),"",'N1. Demand'!B81) -> 
B72: =IF(ISBLANK('N1. Demand'!B82),"",'N1. Demand'!B82) -> 
B73: =IF(ISBLANK('N1. Demand'!B83),"",'N1. Demand'!B83) -> 
B74: =IF(ISBLANK('N1. Demand'!B84),"",'N1. Demand'!B84) -> 
B75: =IF(ISBLANK('N1. Demand'!B85),"",'N1. Demand'!B85) -> 
B76: =IF(ISBLANK('N1. Demand'!B86),"",'N1. Demand'!B86) -> 
B77: =IF(ISBLANK('N1. Demand'!B87),"",'N1. Demand'!B87) -> 
B78: =IF(ISBLANK('N1. Demand'!B88),"",'N1. Demand'!B88) -> 
B79: =IF(ISBLANK('N1. Demand'!B89),"",'N1. Demand'!B89) -> 
B80: =IF(ISBLANK('N1. Demand'!B90),"",'N1. Demand'!B90) -> 
B81: =IF(ISBLANK('N1. Demand'!B91),"",'N1. Demand'!B91) -> 
B82: =IF(ISBLANK('N1. Demand'!B92),"",'N1. Demand'!B92) -> 
B83: =IF(ISBLANK('N1. Demand'!B93),"",'N1. Demand'!B93) -> 
B84: =IF(ISBLANK('N1. Demand'!B94),"",'N1. Demand'!B94) -> 
B85: =IF(ISBLANK('N1. Demand'!B95),"",'N1. Demand'!B95) -> 
B86: Total | C86: =SUM(C11:C85) -> 223360495.4 | D86: 228609467 | E86: 210078242 | F86: 211421240.9 | G86: 214031589.9 | H86: 214030506.1 | I86: 215651635.9
B88: F3.1.2 - STAND ALONE COST PER UNIT - BY TARIFF CLASS
C89: STAND ALONE COST PER UNIT
C90: =CONCATENATE("$0's, real ",dms_DollarReal) -> $0's, real June 2021
B91: Tariff Class | C91: =CRCP_y4 -> 2019-20 | D91: =CRCP_y5 -> 2020-21 | E91: =FRCP_y1 -> 2021-22 | F91: =FRCP_y2 -> 2022-23 | G91: =FRCP_y3 -> 2023-24 | H91: =FRCP_y4 -> 2024-25 | I91: =FRCP_y5 -> 2025-26
B92: Tariff R | C92: 198758770.5 | D92: 198758770.5 | E92: 197147236.2 | F92: 197147236.2 | G92: 197147236.2 | H92: 197147236.2 | I92: 197147236.2
B93: Tariff C | C93: 51950570.96 | D93: 51950570.96 | E93: 51069150.86 | F93: 51069150.86 | G93: 51069150.86 | H93: 51069150.86 | I93: 51069150.86
B94: Tariff D - Adelaide Northern | C94: 31161151.14 | D94: 31161151.14 | E94: 26105022.78 | F94: 26105022.78 | G94: 26105022.78 | H94: 26105022.78 | I94: 26105022.78
B95: Tariff D - Adelaide Central | C95: 31161151.14 | D95: 31161151.14 | E95: 26105022.78 | F95: 26105022.78 | G95: 26105022.78 | H95: 26105022.78 | I95: 26105022.78
B96: Tariff D - Adelaide Southern | C96: 31161151.14 | D96: 31161151.14 | E96: 26105022.78 | F96: 26105022.78 | G96: 26105022.78 | H96: 26105022.78 | I96: 26105022.78
B97: Tariff D - Port Pirie | C97: 31161151.14 | D97: 31161151.14 | E97: 26105022.78 | F97: 26105022.78 | G97: 26105022.78 | H97: 26105022.78 | I97: 26105022.78
B98: Tariff D - Riverland | C98: 31161151.14 | D98: 31161151.14 | E98: 26105022.78 | F98: 26105022.78 | G98: 26105022.78 | H98: 26105022.78 | I98: 26105022.78
B99: Tariff D - South East | C99: 31161151.14 | D99: 31161151.14 | E99: 26105022.78 | F99: 26105022.78 | G99: 26105022.78 | H99: 26105022.78 | I99: 26105022.78
B100: Tariff D - Whyalla | C100: 31161151.14 | D100: 31161151.14 | E100: 26105022.78 | F100: 26105022.78 | G100: 26105022.78 | H100: 26105022.78 | I100: 26105022.78
B101: Tariff D - Peterborough | C101: 31161151.14 | D101: 31161151.14 | E101: 26105022.78 | F101: 26105022.78 | G101: 26105022.78 | H101: 26105022.78 | I101: 26105022.78
B113: F3.1.3 - AVOIDABLE COST PER UNIT - BY TARIFF CLASS
C114: AVOIDABLE COST PER UNIT
C115: =CONCATENATE("$0's, real ",dms_DollarReal) -> $0's, real June 2021
B116: Tariff Class | C116: =CRCP_y4 -> 2019-20 | D116: =CRCP_y5 -> 2020-21 | E116: =FRCP_y1 -> 2021-22 | F116: =FRCP_y2 -> 2022-23 | G116: =FRCP_y3 -> 2023-24 | H116: =FRCP_y4 -> 2024-25 | I116: =FRCP_y5 -> 2025-26
B117: =IF(ISBLANK(B92),"",B92) -> Tariff R | C117: 861172.3088 | D117: 861172.3088 | E117: 1209604.533 | F117: 1209604.533 | G117: 1209604.533 | H117: 1209604.533 | I117: 1209604.533
B118: =IF(ISBLANK(B93),"",B93) -> Tariff C | C118: 2652575.454 | D118: 2652575.454 | E118: 6007461.075 | F118: 6007461.075 | G118: 6007461.075 | H118: 6007461.075 | I118: 6007461.075
B119: Tariff D - Adelaide Northern | C119: 2401943.251 | D119: 2401943.251 | E119: 2012210.107 | F119: 2012210.107 | G119: 2012210.107 | H119: 2012210.107 | I119: 2012210.107
B120: Tariff D - Adelaide Central | C120: 1407495.126 | D120: 1407495.126 | E120: 1179118.581 | F120: 1179118.581 | G120: 1179118.581 | H120: 1179118.581 | I120: 1179118.581
B121: Tariff D - Adelaide Southern | C121: 653469.6919 | D121: 653469.6919 | E121: 547439.3778 | F121: 547439.3778 | G121: 547439.3778 | H121: 547439.3778 | I121: 547439.3778
B122: Tariff D - Port Pirie | C122: 88418.72036 | D122: 88418.72036 | E122: 74072.12587 | F122: 74072.12587 | G122: 74072.12587 | H122: 74072.12587 | I122: 74072.12587
B123: Tariff D - Riverland | C123: 23520.48104 | D123: 23520.48104 | E123: 19704.10819 | F123: 19704.10819 | G123: 19704.10819 | H123: 19704.10819 | I123: 19704.10819
B124: Tariff D - South East | C124: 23520.48104 | D124: 23520.48104 | E124: 118224.6491 | F124: 118224.6491 | G124: 118224.6491 | H124: 118224.6491 | I124: 118224.6491
B125: Tariff D - Whyalla | C125: 141122.8862 | D125: 141122.8862 | E125: 19704.10819 | F125: 19704.10819 | G125: 19704.10819 | H125: 19704.10819 | I125: 19704.10819
B126: Tariff D - Peterborough | C126: 19948.42539 | D126: 19948.42539 | E126: 0 | F126: 0 | G126: 0 | H126: 0 | I126: 0
B139: F3.2 - ANCILLARY REFERENCE SERVICES
C140: REVENUE
C141: =CONCATENATE("$0's, real ",dms_DollarReal) -> $0's, real June 2021
B142: Service Name | C142: =CRCP_y4 -> 2019-20 | D142: =CRCP_y5 -> 2020-21 | E142: =FRCP_y1 -> 2021-22 | F142: =FRCP_y2 -> 2022-23 | G142: =FRCP_y3 -> 2023-24 | H142: =FRCP_y4 -> 2024-25 | I142: =FRCP_y5 -> 2025-26
B143: Special Meter Read | C143: 1188460.244 | D143: 1199704.16 | E143: 1206824.199 | F143: 1219217.436 | G143: 1233043.302 | H143: 1248299.352 | I143: 1263208.256
B144: Disconnection | C144: 505004.725 | D144: 507277.4557 | E144: 510288.0606 | F144: 515528.3608 | G144: 521374.4272 | H144: 527825.2259 | I144: 534129.2391
B145: Reconnection | C145: 506377.6423 | D145: 508656.5517 | E145: 511675.3413 | F145: 516929.8879 | G145: 522791.8474 | H145: 529260.1835 | I145: 535581.3349
B146: Meter Removal | C146: 171919.7478 | D146: 172693.458 | E146: 173718.3641 | F146: 175502.3298 | G146: 177492.5176 | H146: 179688.5756 | I146: 181834.6632
B147: Meter Reinstallation | C147: 3545.672153 | D147: 3558.067519 | E147: 3579.184041 | F147: 3615.939749 | G147: 3656.944328 | H147: 3702.190529 | I147: 3746.407169
B148: Meter Gas and Installation Test | C148: 11617.22989 | D148: 11722.31547 | E148: 11791.88541 | F148: 11912.97979 | G148: 12048.0724 | H148: 12197.13934 | I148: 12342.81432
B152: Total | C152: =SUM(C143:C151) -> 2386925.261 | D152: 2403612.008 | E152: =SUM(E143:E151) -> 2417877.034 | F152: =SUM(F143:F151) -> 2442706.934 | G152: 2470407.111 | H152: 2500972.666 | I152: 2530842.714
B155: F3.3 - REBATEABLE SERVICES
C156: REVENUE
C157: =CONCATENATE("$0's, real ",dms_DollarReal) -> $0's, real June 2021
B158: Service Name | C158: =CRCP_y4 -> 2019-20 | D158: =CRCP_y5 -> 2020-21 | E158: =FRCP_y1 -> 2021-22 | F158: =FRCP_y2 -> 2022-23 | G158: =FRCP_y3 -> 2023-24 | H158: =FRCP_y4 -> 2024-25 | I158: =FRCP_y5 -> 2025-26
C159: N/A | D159: N/A | E159: N/A | F159: N/A | G159: N/A | H159: N/A | I159: N/A
B165: Total | C165: =SUM(C159:C164) -> 0 | D165: =SUM(D159:D164) -> 0 | E165: 0 | F165: 0 | G165: 0 | H165: 0 | I165: 0
B168: F3.4 - NON-REFERENCE SERVICES
C169: REVENUE
C170: =CONCATENATE("$0's, real ",dms_DollarReal) -> $0's, real June 2021
B171: Service Name | C171: =CRCP_y4 -> 2019-20 | D171: =CRCP_y5 -> 2020-21 | E171: =FRCP_y1 -> 2021-22 | F171: =FRCP_y2 -> 2022-23 | G171: =FRCP_y3 -> 2023-24 | H171: =FRCP_y4 -> 2024-25 | I171: =FRCP_y5 -> 2025-26
B172: Meter Alter Position / Removal Total | C172: 215292.0679 | D172: 217304.6849 | E172: 218594.351 | F172: 220839.1616 | G172: 223343.4669 | H172: 226106.824 | I172: 228807.302
B173: Out of Hours Special Meter Reading | C173: 26231.9196 | D173: 26477.14373 | E173: 26634.28104 | F173: 26907.79642 | G173: 27212.92951 | H173: 27549.62636 | I173: 27878.66181
B174: Same Day Service | C174: 45428.18599 | D174: 45852.86277 | E174: 46124.99166 | F174: 46598.66295 | G174: 47127.08951 | H174: 47710.17788 | I174: 48279.9983
B175: Relocate / Remove Service Pipe | C175: 5445.259155 | D175: 5496.163127 | E175: 5528.781915 | F175: 5528.781915 | G175: 5528.781915 | H175: 5528.781915 | I175: 5528.781915
B176: Other Negotiated Service | C176: 46935.78843 | D176: 47374.55874 | E176: 47655.71864 | F176: 48145.10942 | G176: 48691.0726 | H176: 49293.51164 | I176: 49882.24241
B177: Upgrade Service Request | C177: 0 | D177: 0 | E177: 0 | F177: 0 | G177: 0 | H177: 0 | I177: 0
B178: Total | C178: =SUM(C172:C177) -> 339333.221 | D178: =SUM(D172:D177) -> 342505.4133 | E178: 344538.1243 | F178: 348019.5123 | G178: 351903.3404 | H178: 356188.9218 | I178: 360376.9864
B181: F3.5 - TOTAL REVENUE
C182: REVENUE
C183: =CONCATENATE("$0's, real ",dms_DollarReal) -> $0's, real June 2021
C184: =CRCP_y4 -> 2019-20 | D184: =CRCP_y5 -> 2020-21 | E184: =FRCP_y1 -> 2021-22 | F184: =FRCP_y2 -> 2022-23 | G184: =FRCP_y3 -> 2023-24 | H184: =FRCP_y4 -> 2024-25 | I184: =FRCP_y5 -> 2025-26
B185: Total | C185: =SUM(C178,C165,C152,C86) -> 226086753.9 | D185: 231355584.4 | E185: 212840657.2 | F185: 214211967.3 | G185: 216853900.3 | H185: 216887667.7 | I185: 218542855.6

Sheet Additional disclosures
B2: F3.4 - NON-REFERENCE SERVICES
C3: REVENUE
C4: $0's, real June 2021
B5: Service Name | C5: 2019-20 | D5: 2020-21 | E5: 2021-22 | F5: 2022-23 | G5: 2023-24 | H5: 2024-25 | I5: 2025-26
B6: Cut-off Service in Street for Debt | C6: 0 | D6: 0 | E6: 0 | F6: 0 | G6: 0 | H6: 0 | I6: 0
B7: Reconnect Service in Street After Cut-Off | C7: 0 | D7: 0 | E7: 0 | F7: 0 | G7: 0 | H7: 0 | I7: 0
B12: Total | C12: 0 | D12: 0 | E12: 0 | F12: 0 | G12: 0 | H12: 0 | I12: 0
B14: *Additional Non-Reference services which are forecast to generate zero revenue
